Workbook

Sheet Sommaire
A1: Graphiques Note à télécharger
A2: 1. SOLDE DES BIENS ET SERVICES DE LA FRANCE | B2: Graph 1 Note pdf'!A1
A3: 2. ÉVOLUTION DES PARTS DE MARCHÉ À L’EXPORTATION, France | B3: Graph 2 Zone euro Note pdf'!A1
A4: 2. ÉVOLUTION DES PARTS DE MARCHÉ À L’EXPORTATION, zone euro | B4: Graph 2 France Note pdf'!A1
A5: 3. CROISSANCE ANNUELLE MOYENNE DES SALAIRES BRUTS NOMINAUX | B5: Graph 3 Note pdf'!A1
A6: 4. COÛT SALARIAL UNITAIRE NOMINAL FRANCE ET ALLEMAGNE | B6: Graph 4 note pdf'!A1
A7: 5. COMPÉTENCES DE LA POPULATION ACTIVE EN LECTURE ET EN CALCUL | B7: Graph 5 Note pdf'!A1
A8: 6. QUALITÉ DU MANAGEMENT EN FRANCE ET DANS L’UNION EUROPÉENNE | B8: GRAPH 6 NOTE PDF'!A1
A9: 7. NOMBRE D'ENTREPRISES FRANÇAISES EXPORTATRICES | B9: Graph 7 Note pdf'!A1
A10: 8. DIFFUSION DU NUMÉRIQUE DANS LES ENTREPRISES FRANÇAISES EN 2015 | B10: Graph 8 Note pdf'!A1
A11: Graphiques insérés dans les encadrés
A12: GRAPHIQUE A : ÉVOLUTION DES COÛTS SALARIAUX UNITAIRES NOMINAUX | B12: Graphique A Encadré HTML'!A1
A13: GRAPHIQUE B : TAUX MOYENS DES PRÉLEVEMENTS SOCIAUX À LA CHARGE DES EMPLOYEURS | B13: Graphique B Encadré HTML'!A1
A14: GRAPHIQUE C : PARTS DE MARCHÉ MONDIAL DÉTENUES DANS LE SECTEUR DES PRODUITS DE HAUTE TECHNOLOGIE | B14: Graphique C Encadré HTML'!A1
A15: GRAPHIQUE D : PARTS DES EXPORTATIONS DE PRODUITS HAUT DE GAMME DANS LES EXPORTATIONS TOTALES | B15: Graphique D Encadré HTML'!A1
A16: GRAPHIQUE E : PARTS DE MARCHÉ MONDIAL DÉTENUES DANS LES PRODUITS HAUT DE GAMME | B16: Graphique E Encadré HTML '!A1
A17: Graphiques en accès via liens hypertexte
A18: COMPTE COURANT ET ENDETTEMENT EXTÉRIEUR DE LA FRANCE (compte courant) | B18: Graph Hyper 1,1'!A1
A19: COMPTE COURANT ET ENDETTEMENT EXTÉRIEUR DE LA FRANCE (position extérieure nette) | B19: Graph Hyper1,2'!A1
A20: PERFORMANCES À L'EXPORTATION DE BIENS ET SERVICES (en volume) | B20: Graph hyper 2'!A1
A21: TAUX DE CHANGE EURO/DOLLAR ET TAUX DE CHANGE EFFECTIF NOMINAL DE LA ZONE EURO | B21: Graph hyper 3'!A1
A22: DIFFÉRENTS INDICATEURS DE LA COMPÉTITIVITÉ-PRIX | B22: Graph hyper 4'!A1
A23: COUTS SALARIAUX UNITAIRES EN ZONE EURO | B23: Graph hyper 5 '!A1
A24: COMPTE COURANT DE LA FRANCE ET DE L'ALLEMAGNE | B24: Graph Hyper 6'!A1
A25: COÛTS SALARIAUX UNITAIRES NOMINAUX, SECTEUR ABRITÉ ET SECTEUR EXPOSÉ, COMPARAISON FRANCE-ALLEMAGNE | B25: Graph Hyper 7'!A1
A26: CROISSANCE DE LA PRODUCTIVITÉ ET DES SALAIRES RÉELS BRUTS EN FRANCE | B26: Graph Hyper 8'!A1
A27: COURBE DE PHILIPPS POUR LA FRANCE | B27: Graph Hyper 9'!A1
A28: PRIX DE L'IMMOBILIER | B28: Graph Hyper 10'!A1
A29: PARTS DE MARCHÉ MONDIAL DÉTENUES DANS LES PRODUITS HAUT DE GAMME | B29: Graph hyper 11 '!A1
A50: Graph | B50: Source
A51: Balance commerciale comparaison internationale | B51: OCDE
A52: Balance commerciale France | B52: OCDE
A54: Compte courant comparaison internationale | B54: OCDE
A55: Compte courant France | B55: OCDE
A57: Position extérieure nette France | B57: Banque de France
A59: Parts de marché comparaison internationale | B59: OCDE
A60: Parts de marché décomposition FR | B60: MEC WB
A61: Parts de marché décomposition comparaison ZE | B61: MEC WB
A63: Croissance des exportations | B63: OCDE
A65: Attractivité | B65: Graph
A67: Indicateur de compétivité prix (prix des X/Prix des X cc) multi pays | B67: OCDE
A68: Indicateur de compétivité prix (prix des X/Prix des X cc) France Allemagne | B68: OCDE
A69: Indicateur de compétivité prix (prix des X/Prix des X cc) France | B69: OCDE
A70: Indicateurs de compétitivité prix | B70: OCDE
A72: CSU zone euro | B72: Graph
A73: CSU France-Allemagne | B73: Graph
A74: CSU réel
A76: Taux de marge ZE | B76: AMECO
A77: Taux de marge FR manuf | B77: INSEE
A80: Taux de change effectif et euro/dollar | B80: Graph
A82: Evolutions salaires nominaux zone euro | B82: Graph
A83: Evolutions salaires nominaux Franc Allemagne | B83: Graph
A85: Taux de marge | B85: Graph
A86: Compétences | B86: Graph
A87: Numérique | B87: Graph
A88: Management | B88: Graph

Sheet Graph 1 Note pdf
C2: 2000 | D2: 2001 | E2: 2002 | F2: 2003 | G2: 2004 | H2: 2005 | I2: 2006 | J2: 2007 | K2: 2008 | L2: 2009 | M2: 2010 | N2: 2011 | O2: 2012 | P2: 2013 | Q2: 2014 | R2: 2015
B3: Energie | C3: -0.01572933832 | D3: -0.01475988211 | E3: -0.0134185493 | F3: -0.01392676107 | G3: -0.01648858227 | H3: -0.02145398656 | I3: -0.02472013461 | J3: -0.02305735724 | K3: -0.02952176114 | L3: -0.02050420393 | M3: -0.02403775668 | N3: -0.03029062529 | O3: -0.03313864535 | P3: -0.03106967453 | Q3: -0.02565782106 | R3: -0.01837143044
B4: Alimentaire | C4: 0.00625463785 | D4: 0.004666717639 | E4: 0.005139400515 | F4: 0.005068928698 | G4: 0.004513784469 | H4: 0.004230299959 | I4: 0.004643692369 | J4: 0.00455267421 | K4: 0.00434902474 | L4: 0.002616789848 | M4: 0.003959507246 | N4: 0.005530077444 | O4: 0.005471197151 | P4: 0.005286394494 | Q4: 0.00423738113 | R4: 0.00421983248
B5: Transports | C5: 0.01324626467 | D5: 0.01533685936 | E5: 0.0133894273 | F5: 0.01352361489 | G5: 0.01275872736 | H5: 0.01083026768 | I5: 0.01015288352 | J5: 0.006449193496 | K5: 0.006215898723 | L5: 0.003624001234 | M5: 0.007183956215 | N5: 0.005040586922 | O5: 0.008053460372 | P5: 0.008359297327 | Q5: 0.0069239633 | R5: 0.006875661496
B6: Autres biens industriels | C6: -0.01237794493 | D6: -0.01033128114 | E6: -0.007378978065 | F6: -0.008897434476 | G6: -0.01228577078 | H6: -0.01463336152 | I6: -0.01389060802 | J6: -0.01789872199 | K6: -0.01716211341 | L6: -0.01667133398 | M6: -0.02150133026 | N6: -0.02468576457 | O6: -0.02089242135 | P6: -0.01989071483 | Q6: -0.02066543953 | R6: -0.02163728951
B7: Services | C7: 0.008818402104 | D7: 0.009577702293 | E7: 0.01201059776 | F7: 0.008863234714 | G7: 0.00821272621 | H7: 0.008577418499 | I7: 0.008245440749 | J7: 0.01035684556 | K7: 0.009849438748 | L7: 0.006564666529 | M7: 0.007725867797 | N7: 0.01166327714 | O7: 0.01191128208 | P7: 0.01058223826 | Q7: 0.008360339838 | R7: 0.006290820376
B8: Négoce international | C8: 0.003337365951 | D8: 0.003483683658 | E8: 0.003070392522 | F8: 0.003025457505 | G8: 0.002359770513 | H8: 0.004115174399 | I8: 0.004128386046 | J8: 0.003664548105 | K8: 0.005511436882 | L8: 0.004650810179 | M8: 0.004775126709 | N8: 0.007466187277 | O8: 0.008532154184 | P8: 0.008513792903 | Q8: 0.009638682131 | R8: 0.01141104255
B9: Solde biens et services | C9: 0.009357685971 | D9: 0.01298628703 | E9: 0.01822978915 | F9: 0.01288109602 | G9: 0.008306251917 | H9: -0.0001783317485 | I9: -0.003488434948 | J9: -0.006702576696 | K9: -0.01447954677 | L9: -0.01219844901 | M9: -0.01623282883 | N9: -0.01969519503 | O9: -0.01401964322 | P9: -0.009712905355 | Q9: -0.007887643935 | R9: -0.004307306759
B10: Biens hors négoce | C10: -0.002798082085 | D10: -7.509892294e-05 | E10: 0.003148798868 | F10: 0.0009924038042 | G10: -0.002266244805 | H10: -0.01287092465 | I10: -0.01586226174 | J10: -0.02072397036 | K10: -0.0298404224 | L10: -0.02341392572 | M10: -0.02873382334 | N10: -0.03882465944 | O10: -0.03446307948 | P10: -0.02880893652 | Q10: -0.02588666591 | R10: -0.02200916969
B11: Ecart b&s vs total | C11: 0.005808298649 | D11: 0.005012487323 | E11: 0.005417498417 | F11: 0.005224055764 | G11: 0.009235596416 | H11: 0.00815585579 | I11: 0.007951905001 | J11: 0.009230241153 | K11: 0.006278528688 | L11: 0.007520821117 | M11: 0.005661800137 | N11: 0.00558106604 | O11: 0.006043329696 | P11: 0.008505761023 | Q11: 0.009275250262 | R11: 0.006904056288
B12: Ecart CAF/FAB vs FAB/FAB | C12: 0.005316374812 | D12: 0.003625297568 | E12: 0.004335735466 | F12: 0.004060549941 | G12: 0.007814382684 | H12: 0.007636662092 | I12: 0.007807295478 | J12: 0.008383231998 | K12: 0.008231080463 | L12: 0.007782293812 | M12: 0.008385869068 | N12: 0.008327651747 | O12: 0.008080773232 | P12: 0.008131569903 | Q12: 0.008073345897 | R12: 0.008070990644
B13: Ecart entre les deux | C13: 0.0004919238363 | D13: 0.001387189755 | E13: 0.001081762951 | F13: 0.001163505824 | G13: 0.001421213732 | H13: 0.0005191936982 | I13: 0.000144609523 | J13: 0.0008470091553 | K13: -0.001952551775 | L13: -0.0002614726947 | M13: -0.00272406893 | N13: -0.002746585706 | O13: -0.002037443535 | P13: 0.0003741911198 | Q13: 0.001201904364 | R13: -0.001166934356
C16: 2000 | D16: 2001 | E16: 2002 | F16: 2003 | G16: 2004 | H16: 2005 | I16: 2006 | J16: 2007 | K16: 2008 | L16: 2009 | M16: 2010 | N16: 2011 | O16: 2012 | P16: 2013 | Q16: 2014 | R16: 2015
B17: Solde commercial (FAB/FAB) | C17: 13029 | D17: -5383 | E17: -1533 | F17: 3548 | G17: -231 | H17: -5739 | I17: -24212 | J17: -29928 | K17: -42494 | L17: -56217 | M17: -45391 | N17: -52444 | O17: -74510 | P17: -67581 | Q17: -61538 | R17: -58306 | S17: -45670
B18: Energie | C18: -11660.077 | D18: -23362.835 | E18: -22798.547 | F18: -21392.639 | G18: -22804.212 | H18: -28208 | I18: -38016 | J18: -45813 | K18: -44862 | L18: -58921 | M18: -39758 | N18: -48039 | O18: -62377 | P18: -69158 | Q18: -65761 | R18: -54714 | S18: -40114
B19: Alimentaire | C19: 9187.386 | D19: 9290.033 | E19: 7208.349 | F19: 8193.534 | G19: 8300.058 | H19: 7722 | I19: 7496 | J19: 8606 | K19: 8858 | L19: 8680 | M19: 5074 | N19: 7913 | O19: 11388 | P19: 11418 | Q19: 11189 | R19: 9036 | S19: 9214
B20: Transports | C20: 15888.852 | D20: 19674.718 | E20: 23689.763 | F20: 21346.211 | G20: 22144.085 | H20: 21827.115 | I20: 19191 | J20: 18816 | K20: 12548 | L20: 12406 | M20: 7027 | N20: 14357 | O20: 10380 | P20: 16807 | Q20: 17693 | R20: 14765 | S20: 15013
B21: Autres biens industriels | C21: -7134.348 | D21: -18385 | E21: -15958 | F21: -11764 | G21: -14569 | H21: -21018 | I21: -25930 | J21: -25743 | K21: -34825 | L21: -34253 | M21: -32326 | N21: -42970 | O21: -50835 | P21: -43601 | Q21: -42100 | R21: -44068 | S21: -47245

Sheet Graph 2 Zone euro Note pdf
A3: T1-2006 T42011
B4: Géographie | C4: Secteurs | D4: Effet compétitivité pur | E4: Evolution p.d.m. | F4: Export Growth, Values (xg_v)
A5: Allemagne | B5: -0.2 | C5: -0.8 | D5: -1.6 | E5: -2.6 | F5: 6.8
A6: Espagne | B6: -0.8 | C6: -0.7 | D6: -1.1 | E6: -2.6 | F6: 6.8
A7: France | B7: -0.6 | C7: 0 | D7: -3.4 | E7: -4.1 | F7: 5.3
A8: Italie | B8: -0.2 | C8: -1.4 | D8: -1.4 | E8: -3 | F8: 6.4
A11: T1-2012 T22015
B12: Géographie | C12: Secteurs | D12: Effet compétitivité pur | E12: Evolution p.d.m. | F12: Export Growth, Values (xg_v)
A13: Allemagne | B13: -1.2 | C13: 1.9 | D13: -0.9 | E13: -0.2 | F13: -1.6
A14: Espagne | B14: -1.7 | C14: 1.6 | D14: 0.5 | E14: 0.4 | F14: -1.1
A15: France | B15: -1.2 | C15: 2.8 | D15: -2.9 | E15: -1.3 | F15: -2.8
A16: Italie | B16: -1.2 | C16: 1.6 | D16: -0.8 | E16: -0.4 | F16: -1.8
C19: Géographie | D19: Secteurs | E19: Effet compétitivité pur | F19: Evolution part de marché
A20: T1-2006 T4-2011 | B20: Allemagne | C20: -0.2 | D20: -0.8 | E20: -1.6 | F20: -2.6
B21: Espagne | C21: -0.8 | D21: -0.7 | E21: -1.1 | F21: -2.6
B22: France | C22: -0.6 | D22: 0 | E22: -3.4 | F22: -4.1
B23: Italie | C23: -0.2 | D23: -1.4 | E23: -1.4 | F23: -3
A24: T1-2012 T2-2015 | B24: Allemagne | C24: -1.2 | D24: 1.9 | E24: -0.9 | F24: -0.2
B25: Espagne | C25: -1.7 | D25: 1.6 | E25: 0.5 | F25: 0.4
B26: France | C26: -1.2 | D26: 2.8 | E26: -2.9 | F26: -1.3
B27: Italie | C27: -1.2 | D27: 1.6 | E27: -0.8 | F27: -0.4

Sheet Graph 2 France Note pdf
A1: Country | C1: Géographie | D1: Secteurs | E1: Effet compétitivité pure | F1: Évolution de la part de marché | G1: Export Growth, Values (xg_v)
A2: France | B2: 2006q1 | C2: -0.5 | D2: -1.7 | E2: -6.3 | F2: -8.5 | G2: 3.6
A3: France | B3: 2006q2 | C3: 0.1 | D3: -2.5 | E3: -3.4 | F3: -5.9 | G3: 7.2
A4: France | B4: 2006q3 | C4: 0.5 | D4: -0.3 | E4: -4.3 | F4: -4 | G4: 10.7
A5: France | B5: 2006q4 | C5: 2 | D5: 2.2 | E5: -2.6 | F5: 1.6 | G5: 15.5
A6: France | B6: 2007q1 | C6: 2.3 | D6: 1.5 | E6: -3.3 | F6: 0.5 | G6: 15.8
A7: France | B7: 2007q2 | C7: 1.2 | D7: 1.5 | E7: -3.8 | F7: -1.1 | G7: 13.1
A8: France | B8: 2007q3 | C8: 1.6 | D8: 0.8 | E8: -0.2 | F8: 2.2 | G8: 18.6
A9: France | B9: 2007q4 | C9: 0.8 | D9: -2.1 | E9: -4.1 | F9: -5.4 | G9: 15.4
A10: France | B10: 2008q1 | C10: 0.1 | D10: -2.5 | E10: -0.8 | F10: -3.2 | G10: 17.9
A11: France | B11: 2008q2 | C11: 1 | D11: -3 | E11: -0.2 | F11: -2.2 | G11: 20.9
A12: France | B12: 2008q3 | C12: -0.4 | D12: -4.4 | E12: -0.9 | F12: -5.7 | G12: 14.4
A13: France | B13: 2008q4 | C13: -2.1 | D13: 1.3 | E13: 0.2 | F13: -0.6 | G13: -9.3
A14: France | B14: 2009q1 | C14: -1.3 | D14: 6.4 | E14: -3.3 | F14: 1.8 | G14: -32.6
A15: France | B15: 2009q2 | C15: -3.1 | D15: 8.3 | E15: -1.4 | F15: 3.7 | G15: -34.5
A16: France | B16: 2009q3 | C16: -2.8 | D16: 8.3 | E16: 0.3 | F16: 5.8 | G16: -23.8
A17: France | B17: 2009q4 | C17: -1.9 | D17: 2.5 | E17: -0.6 | F17: -0.1 | G17: -0.3
A18: France | B18: 2010q1 | C18: -3.8 | D18: -2.9 | E18: -4.1 | F18: -10.7 | G18: 10.7
A19: France | B19: 2010q2 | C19: -2.5 | D19: -4.6 | E19: -11 | F19: -18.2 | G19: 5.1
A20: France | B20: 2010q3 | C20: -2.1 | D20: -0.9 | E20: -11.7 | F20: -14.7 | G20: 2.3
A21: France | B21: 2010q4 | C21: -0.7 | D21: -1 | E21: -10.3 | F21: -11.9 | G21: 3.7
A22: France | B22: 2011q1 | C22: -0.3 | D22: -3.2 | E22: -5.1 | F22: -8.6 | G22: 11.9
A23: France | B23: 2011q2 | C23: 0.2 | D23: -1.2 | E23: 1 | F23: 0 | G23: 22.5
A24: France | B24: 2011q3 | C24: -0.4 | D24: -2.7 | E24: -3.3 | F24: -6.4 | G24: 13.5
A25: France | B25: 2011q4 | C25: -2.8 | D25: -0.9 | E25: -2.2 | F25: -5.9 | G25: 4.9
A26: France | B26: 2012q1 | C26: -2.7 | D26: 0.5 | E26: -4.4 | F26: -6.6 | G26: -0.7
A27: France | B27: 2012q2 | C27: -3.7 | D27: 3.1 | E27: -9.3 | F27: -10 | G27: -10.8
A28: France | B28: 2012q3 | C28: -3.2 | D28: 3.3 | E28: -3.6 | F28: -3.5 | G28: -6.8
A29: France | B29: 2012q4 | C29: -1.9 | D29: 1.5 | E29: -3.8 | F29: -4.2 | G29: -3.3
A30: France | B30: 2013q1 | C30: -1.8 | D30: 1.7 | E30: -1.6 | F30: -1.7 | G30: -1.8
A31: France | B31: 2013q2 | C31: -1.2 | D31: 1.8 | E31: 0.9 | F31: 1.5 | G31: 1.8
A32: France | B32: 2013q3 | C32: -0.7 | D32: 2 | E32: 0.2 | F32: 1.5 | G32: 3.8
A33: France | B33: 2013q4 | C33: 0 | D33: 2.9 | E33: -0.9 | F33: 2.1 | G33: 4.2
A34: France | B34: 2014q1 | C34: 1.4 | D34: 3.8 | E34: 0.4 | F34: 5.6 | G34: 6.9
A35: France | B35: 2014q2 | C35: 0.7 | D35: 3.1 | E35: -2.8 | F35: 1.1 | G35: 4.1
A36: France | B36: 2014q3 | C36: 0.7 | D36: 2.2 | E36: -1.9 | F36: 0.9 | G36: 2.4
A37: France | B37: 2014q4 | C37: -1.9 | D37: 2 | E37: -2 | F37: -1.8 | G37: -5.4
A38: France | B38: 2015q1 | C38: -1.6 | D38: 5.3 | E38: -6.7 | F38: -3 | G38: -17.2
A39: France | B39: 2015q2 | C39: -0.8 | D39: 5.7 | E39: -5.5 | F39: -0.6 | G39: -16.3

Sheet Graph 3 Note pdf
B2: 1989 | C2: 1990 | D2: 1991 | E2: 1992 | F2: 1993 | G2: 1994 | H2: 1995 | I2: 1996 | J2: 1997 | K2: 1998 | L2: 1999 | M2: 2000 | N2: 2001 | O2: 2002 | P2: 2003 | Q2: 2004 | R2: 2005 | S2: 2006 | T2: 2007 | U2: 2008 | V2: 2009 | W2: 2010 | X2: 2011 | Y2: 2012 | Z2: 2013 | AA2: 2014 | AB2: 2015 | AC2: 2016 | AD2: 2017
A3: Allemagne | B3: NA | C3: NA | D3: 24.25415 | E3: 26.74665 | F3: 27.84452 | G3: 28.65009 | H3: 29.64281 | I3: 29.95363 | J3: 30.15716 | K3: 30.43278 | L3: 30.77649 | M3: 31.19331 | N3: 31.7828 | O3: 32.18324 | P3: 32.67624 | Q3: 32.73816 | R3: 32.81811 | S3: 33.14995 | T3: 33.43958 | U3: 34.14499 | V3: 34.21493 | W3: 35.09055 | X3: 36.12884 | Y3: 37.04512 | Z3: 37.71798 | AA3: 38.70926 | AB3: 39.81464 | AC3: 40.89399 | AD3: 42.222
A4: France | B4: 25.98852 | C4: 27.29176 | D4: 28.33472 | E4: 29.49725 | F4: 30.29556 | G4: 30.69834 | H4: 31.44184 | I4: 32.18929 | J4: 32.71887 | K4: 33.33627 | L4: 33.97334 | M4: 34.75654 | N4: 35.55434 | O4: 36.67641 | P4: 37.71316 | Q4: 38.99212 | R4: 40.15838 | S4: 41.41622 | T4: 42.51139 | U4: 43.63303 | V4: 44.4226 | W4: 45.81019 | X4: 46.96112 | Y4: 48.08117 | Z4: 48.85547 | AA4: 49.54794 | AB4: 49.95199 | AC4: 50.59327 | AD4: 51.37136
A5: Espagne | B5: 13.29316 | C5: 14.63629 | D5: 16.11032 | E5: 17.93391 | F5: 19.2683 | G5: 19.98304 | H5: 20.72537 | I5: 21.55511 | J5: 22.03978 | K5: 22.47147 | L5: 22.91703 | M5: 23.58304 | N5: 24.45723 | O5: 25.3178 | P5: 26.19438 | Q5: 27.05608 | R5: 28.04742 | S5: 29.15101 | T5: 30.52937 | U5: 32.61933 | V5: 34.04225 | W5: 34.40164 | X5: 34.64089 | Y5: 34.26488 | Z5: 34.80851 | AA5: 34.56877 | AB5: 34.80819 | AC5: 35.01177 | AD5: 35.48382
A6: Italie | B6: 17.35899 | C6: 19.16012 | D6: 20.86334 | E6: 22.05807 | F6: 23.05968 | G6: 23.84153 | H6: 24.86431 | I6: 26.41821 | J6: 27.50996 | K6: 27.28239 | L6: 28.01535 | M6: 28.65407 | N6: 29.48029 | O6: 30.4645 | P6: 31.77757 | Q6: 32.90738 | R6: 33.87435 | S6: 34.72929 | T6: 35.58053 | U6: 36.88259 | V6: 37.70871 | W6: 38.71441 | X6: 39.15934 | Y6: 39.3221 | Z6: 39.89487 | AA6: 40.14967 | AB6: 40.33677 | AC6: 40.49413 | AD6: 40.93738
A7: Zone euro | B7: NA | C7: NA | D7: NA | E7: NA | F7: NA | G7: NA | H7: 26.54309 | I7: 27.34007 | J7: 27.39296 | K7: 27.66689 | L7: 28.47282 | M7: 29.22489 | N7: 30.00825 | O7: 30.8284 | P7: 31.67045 | Q7: 32.39437 | R7: 33.13092 | S7: 33.95551 | T7: 34.88442 | U7: 36.09895 | V7: 36.78202 | W7: 37.578 | X7: 38.37942 | Y7: 39.05689 | Z7: 39.71231 | AA7: 40.24906 | AB7: 40.79558 | AC7: 41.43163 | AD7: 42.27113
D11: 1999-2008 | E11: 2009-2015
C12: Allemagne | D12: =(U3/L3)^(1/9)-1 -> 0.01160738026 | E12: =(AB3/V3)^(1/6)-1 -> 0.02558388833
C13: France | D13: =(U4/L4)^(1/9)-1 -> 0.02819440515 | E13: =(AB4/V4)^(1/6)-1 -> 0.01974473129
C14: Espagne | D14: =(U5/L5)^(1/9)-1 -> 0.04000443003 | E14: =(AB5/V5)^(1/6)-1 -> 0.003715268512
C15: Italie | D15: =(U6/L6)^(1/9)-1 -> 0.03102568418 | E15: =(AB6/V6)^(1/6)-1 -> 0.01129200505
C16: Zone euro | D16: =(U7/L7)^(1/9)-1 -> 0.02671892033 | E16: =(AB7/V7)^(1/6)-1 -> 0.01741059508
B19: 1989 | C19: 2008 | D19: 2009 | E19: 2010 | F19: 2011 | G19: 2012 | H19: 2013 | I19: 2014 | J19: 2015 | K19: 2016 | L19: 2017
A20: Allemagne | B20: NA | C20: =U3/T3-1 -> 0.0210950616 | D20: 0.002048323927 | E20: 0.0255917519 | F20: 0.02958887792 | G20: 0.02536145639 | H20: 0.01816325605 | I20: 0.02628136501 | J20: 0.02855595793 | K20: 0.02710937484 | L20: 0.03247445407
A21: France | B21: 25.98852 | C21: 0.02638445838 | D21: 0.01809569494 | E21: 0.03123612756 | F21: 0.02512388619 | G21: 0.02385058108 | H21: 0.01610401744 | I21: 0.01417384788 | J21: 0.008154728532 | K21: 0.01283792698 | L21: 0.01537931824

Sheet Graph 4 note pdf
A2: Country | B2: Euro area | C2: Germany | D2: France | G2: Zone euro | H2: Allemagne | I2: France | J2: Écart France-Allemagne
A3: Unit | F3: 1999 | G3: =B13/B$13*100 -> 100 | H3: =C13/C$13*100 -> 100 | I3: =D13/D$13*100 -> 100 | J3: =I3/H3-1 -> 0
A4: 1990 | B4: NA | C4: 79.871615 | D4: 74.4623452 | F4: 2000 | G4: 101.137223 | H4: 100.6730771 | I4: 101.1849415 | J4: =I4/H4-1 -> 0.00508442268
A5: 1991 | B5: NA | C5: 82.7252323 | D5: 76.5362846 | F5: 2001 | G5: 103.0581232 | H5: 100.5925622 | I5: 103.3897029 | J5: 0.02780663529
A6: 1992 | B6: NA | C6: 88.3347953 | D6: 77.7922512 | F6: 2002 | G6: 105.7198309 | H6: 101.4019484 | I6: 106.311556 | J6: 0.04841729071
A7: 1993 | B7: NA | C7: 91.6430827 | D7: 79.1629388 | F7: 2003 | G7: 108.3050697 | H7: 102.5662727 | I7: 108.4848299 | J7: 0.05770471227
A8: 1994 | B8: NA | C8: 92.0620633 | D8: 78.5347315 | F8: 2004 | G8: 109.2397251 | H8: 101.9272709 | I8: 109.3339275 | J8: 0.07266609349
A9: 1995 | B9: 78.5642371 | C9: 94.0214292 | D9: 79.3032649 | F9: 2005 | G9: 110.9529592 | H9: 101.4307715 | I9: 111.6099319 | J9: 0.1003557427
A10: 1996 | B10: 79.8721368 | C10: 94.2638377 | D10: 80.112501 | F10: 2006 | G10: 112.0452536 | H10: 99.57693077 | I10: 113.7129191 | J10: 0.1419604742
A11: 1997 | B11: 80.2783454 | C11: 93.127245 | D11: 80.0146306 | F11: 2007 | G11: 113.7778862 | H11: 98.96868474 | I11: 115.5237584 | J11: 0.1672758784
A12: 1998 | B12: 80.5385333 | C12: 93.2711969 | D12: 79.8722932 | F12: 2008 | G12: 118.0838742 | H12: 101.2908826 | I12: 118.8655678 | J12: 0.1735070793
A13: 1999 | B13: 81.5302641 | C13: 93.9894166 | D13: 80.4932541 | F13: 2009 | G13: 123.4440344 | H13: 107.6356814 | I13: 123.0563437 | J13: 0.1432671961
A14: 2000 | B14: 82.457445 | C14: 94.6220378 | D14: 81.4470521 | F14: 2010 | G14: 122.6538404 | H14: 106.3949577 | I14: 124.2340133 | J14: 0.1676682431
A15: 2001 | B15: 84.02356 | C15: 94.5463624 | D15: 83.2217363 | F15: 2011 | G15: 123.3406056 | H15: 107.1103001 | I15: 125.4380838 | J15: 0.1711113088
A16: 2002 | B16: 86.1936573 | C16: 95.3070997 | D16: 85.5736309 | F16: 2012 | G16: 125.6264979 | H16: 110.6542825 | I16: 128.3009116 | J16: 0.1594753377
A17: 2003 | B17: 88.3014094 | C17: 96.4014413 | D17: 87.3229698 | F17: 2013 | G17: 127.0464404 | H17: 113.0452861 | I17: 129.4965714 | J17: 0.1455282737
A18: 2004 | B18: 89.0634364 | C18: 95.8008473 | D18: 88.0064361 | F18: 2014 | G18: 128.4014889 | H18: 115.201171 | I18: 131.4654835 | J18: 0.1411818337
A19: 2005 | B19: 90.4602407 | C19: 95.3341904 | D19: 89.8384661 | F19: 2015 | G19: 129.2787116 | H19: 117.0342968 | I19: 131.5598826 | J19: 0.1241139237
A20: 2006 | B20: 91.3507912 | C20: 93.5917763 | D20: 91.5312289
A21: 2007 | B21: 92.7634111 | C21: 93.0200894 | D21: 92.9888324
A22: 2008 | B22: 96.2740945 | C22: 95.2027096 | D22: 95.6787635
A23: 2009 | B23: 100.6442473 | C23: 101.166149 | D23: 99.0520554
A24: 2010 | B24: 100 | C24: 100 | D24: 100
A25: 2011 | B25: 100.5599215 | C25: 100.6723462 | D25: 100.9691955
A26: 2012 | B26: 102.4236155 | C26: 104.0033146 | D26: 103.2735788
A27: 2013 | B27: 103.5812984 | C27: 106.2506049 | D27: 104.2360043
A28: 2014 | B28: 104.686073 | C28: 108.2769085 | D28: 105.8208457
A29: 2015 | B29: 105.401275 | C29: 109.9998528 | D29: 105.8968306

Sheet Graph 5 Note pdf
A1: Literacy | D1: Numeracy | H1: Literacy age | O1: numeracy age | V1: literacy étude | AA1: Literracy occupation
B2: Mean | E2: Adjusted mean | I2: 16-24 year-olds | K2: 25-34 | M2: 55-65 year-olds | P2: 16-24 year-olds | R2: 25-34 | T2: 55-65 year-olds | W2: Lower than upper secondary | Y2: Tertiary | AB2: Skilled occupations | AD2: Elementary occupations | AF2: Difference between workers in skilled and elementary occupations
B3: Score | C3: S.E. | E3: Score | F3: S.E. | G3: S.D. | I3: Mean score | J3: S.E. | M3: Mean score | N3: S.E. | P3: Mean score | Q3: S.E. | T3: Mean score | U3: S.E. | W3: Mean score | X3: S.E. | Y3: Mean score | Z3: S.E. | AB3: Mean score | AC3: S.E. | AD3: Mean score | AE3: S.E. | AF3: Dif. | AG3: S.E. | AH3: p-value
A4: OECD | D4: OECD | H4: OECD | O4: OECD | V4: OECD | AA4: OECD
A5: National entities | D5: National entities | H5: National entities | O5: National entities | V5: National entities | AA5: National entities
A6: Australia | B6: 280.4010668 | C6: 0.9136929398 | D6: Australia | E6: 264.1458603 | F6: 1.011766263 | G6: 61.37490782 | H6: Australia | I6: 284.1251759 | J6: 2.214238448 | K6: 287.4936248 | M6: 262.7476567 | N6: 1.727910558 | O6: Australia | P6: 270.0640513 | Q6: 2.550921566 | R6: 275.0502793 | T6: 250.4342908 | U6: 2.003183803 | V6: Australia | W6: 252.6581957 | X6: 1.593711104 | Y6: 302.2687878 | Z6: 1.225527521 | AA6: Australia | AB6: 302.3306178 | AC6: 1.127018379 | AD6: 261.9409362 | AE6: 3.013382065 | AF6: 40.38968156 | AG6: 3.390114991 | AH6: 1.001768677e-32
A7: Austria | B7: 269.4511534 | C7: 0.7366537254 | D7: Austria | E7: 271.5711218 | F7: 0.8878924125 | G7: 55.07778463 | H7: Austria | I7: 277.7152321 | J7: 1.467470864 | K7: 279.8031832 | M7: 249.8065607 | N7: 1.586289313 | O7: Austria | P7: 279.2653747 | Q7: 1.627662829 | R7: 282.0576309 | T7: 257.4805241 | U7: 1.744447756 | V7: Austria | W7: 245.3742072 | X7: 1.734773727 | Y7: 296.3668889 | Z7: 1.306582723 | AA7: Austria | AB7: 290.0602089 | AC7: 0.9676649761 | AD7: 236.4283766 | AE7: 2.785630632 | AF7: 53.63183229 | AG7: 2.829851653 | AH7: 4.283859351e-80
A8: Canada | B8: 273.4862718 | C8: 0.5690233923 | D8: Canada | E8: 263.8834697 | F8: 0.7271535886 | G8: 57.75615716 | H8: Canada | I8: 275.7308744 | J8: 1.272723488 | K8: 285.1412912 | M8: 260.3797331 | N8: 1.090239737 | O8: Canada | P8: 268.3252637 | Q8: 1.552073458 | R8: 276.5010265 | T8: 251.399911 | U8: 1.408994987 | V8: Canada | W8: 233.6110154 | X8: 1.61211666 | Y8: 290.4221573 | Z8: 0.7598108956 | AA8: Canada | AB8: 292.2965106 | AC8: 0.8045324012 | AD8: 251.0465931 | AE8: 2.168374289 | AF8: 41.24991748 | AG8: 2.207769721 | AH8: 6.699667685e-78
A9: Czech Republic | B9: 274.011658 | C9: 0.9821076521 | D9: Czech Republic | E9: 274.5495634 | F9: 0.9991542131 | G9: 46.0907831 | H9: Czech Republic | I9: 280.5309946 | J9: 2.113558071 | K9: 286.7164123 | M9: 262.3796411 | N9: 1.978498615 | O9: Czech Republic | P9: 277.9900048 | Q9: 1.636638655 | R9: 288.3704987 | T9: 263.2078005 | U9: 1.950620591 | V9: Czech Republic | W9: 255.8385802 | X9: 2.488244198 | Y9: 301.4696139 | Z9: 2.285717826 | AA9: Czech Republic | AB9: 290.8914371 | AC9: 1.905590403 | AD9: 253.7280453 | AE9: 3.744236511 | AF9: 37.16339178 | AG9: 4.249690227 | AH9: 2.231669187e-18
A10: Denmark | B10: 270.787543 | C10: 0.6233313784 | D10: Denmark | E10: 277.536749 | F10: 0.7046535927 | G10: 52.51241234 | H10: Denmark | I10: 276.0565475 | J10: 1.32223746 | K10: 282.0578044 | M10: 252.4166929 | N10: 1.050195865 | O10: Denmark | P10: 273.0920032 | Q10: 1.541178345 | R10: 286.7173269 | T10: 265.3454943 | U10: 1.20265894 | V10: Denmark | W10: 246.1345679 | X10: 1.48300196 | Y10: 292.2215815 | Z10: 1.032465706 | AA10: Denmark | AB10: 290.5699141 | AC10: 0.9130601576 | AD10: 251.8616553 | AE10: 2.266712286 | AF10: 38.70825872 | AG10: 2.360078791 | AH10: 1.890618909e-60
A11: Estonia | B11: 275.8840373 | C11: 0.7217326306 | D11: Estonia | E11: 272.3997087 | F11: 0.5214581469 | G11: 46.90946089 | H11: Estonia | I11: 287.0694813 | J11: 1.278357582 | K11: 285.8998906 | M11: 260.6233164 | N11: 1.509167592 | O11: Estonia | P11: 278.5398195 | Q11: 1.222210274 | R11: 283.629143 | T11: 259.4421203 | U11: 1.260582512 | V11: Estonia | W11: 257.4627818 | X11: 1.606018305 | Y11: 290.1064686 | Z11: 0.9735292933 | AA11: Estonia | AB11: 292.7004263 | AC11: 1.003519651 | AD11: 262.7919038 | AE11: 1.939539696 | AF11: 29.90852254 | AG11: 1.99136462 | AH11: 5.636114024e-51
A12: Finland | B12: 287.5457019 | C12: 0.6650219217 | D12: Finland | E12: 282.2266095 | F12: 0.7046883395 | G12: 52.20849133 | H12: Finland | I12: 296.7062782 | J12: 1.862923488 | K12: 308.8726965 | M12: 259.7319329 | N12: 1.447539743 | O12: Finland | P12: 284.7653 | Q12: 1.830635257 | R12: 302.4538602 | T12: 260.0487551 | U12: 1.259166541 | V12: Finland | W12: 260.3551582 | X12: 1.85462361 | Y12: 308.8327644 | Z12: 1.051057604 | AA12: Finland | AB12: 309.2687641 | AC12: 1.100228708 | AD12: 272.5946434 | AE12: 2.805563586 | AF12: 36.67412067 | AG12: 2.777387924 | AH12: 8.293839506e-40
A13: France | B13: 262.1391371 | C13: 0.5915768024 | D13: France | E13: 252.7625475 | F13: 0.6111598019 | G13: 58.03504017 | H13: France | I13: 275.0291212 | J13: 1.290641314 | K13: 277.9962933 | M13: 241.8104819 | N13: 1.254866427 | O13: France | P13: 263.358677 | Q13: 1.553638818 | R13: 269.360521 | T13: 234.1290954 | U13: 1.473917178 | V13: France | W13: 231.9125768 | X13: 1.10350741 | Y13: 294.4023859 | Z13: 0.9006393374 | AA13: France | AB13: 283.3993933 | AC13: 0.8347529183 | AD13: 233.8069885 | AE13: 1.724229332 | AF13: 49.59240475 | AG13: 1.79399379 | AH13: 3.358504563e-168
A14: Germany | B14: 269.808368 | C14: 0.9156747547 | D14: Germany | E14: 268.9678289 | F14: 0.9942435983 | G14: 57.28932851 | H14: Germany | I14: 278.9060758 | J14: 1.612781527 | K14: 281.3068222 | M14: 253.6171099 | N14: 1.657875159 | O14: Germany | P14: 275.1012237 | Q14: 1.805795364 | R14: 281.9688504 | T14: 256.3791436 | U14: 1.910418079 | V14: Germany | W14: 244.359925 | X14: 2.279685978 | Y14: 292.9707636 | Z14: 1.320347709 | AA14: Germany | AB14: 293.7059218 | AC14: 1.250331385 | AD14: 245.2508052 | AE14: 2.656709701 | AF14: 48.45511663 | AG14: 2.858187286 | AH14: 1.827276111e-64
A15: Ireland | B15: 266.5448219 | C15: 0.9165344456 | D15: Ireland | E15: 254.7891396 | F15: 1.009727136 | G15: 54.79415094 | H15: Ireland | I15: 270.574682 | J15: 1.817444391 | K15: 275.6186625 | M15: 250.512187 | N15: 1.80721566 | O15: Ireland | P15: 257.8730292 | Q15: 2.248925587 | R15: 265.5027869 | T15: 238.2650269 | U15: 2.342530681 | V15: Ireland | W15: 237.3541849 | X15: 1.624893201 | Y15: 291.6981598 | Z15: 1.174381355 | AA15: Ireland | AB15: 287.8109202 | AC15: 1.167269573 | AD15: 251.5102777 | AE15: 2.925957864 | AF15: 36.30064248 | AG15: 3.065130761 | AH15: 2.345156477e-32
A16: Italy | B16: 250.4826646 | C16: 1.09498585 | D16: Italy | E16: 246.070544 | F16: 1.154531208 | G16: 51.50704598 | H16: Italy | I16: 260.8012839 | J16: 2.719387485 | K16: 260.2446958 | M16: 233.3649701 | N16: 2.211849783 | O16: Italy | P16: 251.3010485 | Q16: 2.632932233 | R16: 262.4126514 | T16: 229.3746039 | U16: 2.213225604 | V16: Italy | W16: 235.0542409 | X16: 1.609502855 | Y16: 281.8194016 | Z16: 1.574436097 | AA16: Italy | AB16: 273.6080549 | AC16: 1.45934884 | AD16: 229.6073371 | AE16: 2.927511847 | AF16: 44.00071779 | AG16: 3.206414122 | AH16: 7.427042018e-43
A17: Japan | B17: 296.2422519 | C17: 0.6849840167 | D17: Japan | E17: 285.6593506 | F17: 0.7349817373 | G17: 49.1345707 | H17: Japan | I17: 299.4156581 | J17: 1.563763625 | K17: 309.2063233 | M17: 273.3471858 | N17: 1.600328695 | O17: Japan | P17: 283.2101384 | Q17: 2.287351935 | R17: 297.3209439 | T17: 273.2217361 | U17: 1.61995548 | V17: Japan | W17: 269.4973658 | X17: 2.022064958 | Y17: 313.3587575 | Z17: 0.8546331123 | AA17: Japan | AB17: 310.6225996 | AC17: 1.083111575 | AD17: 280.4247366 | AE17: 2.615918101 | AF17: 30.19786298 | AG17: 2.854013096 | AH17: 3.656888759e-26
A18: Korea | B18: 272.5627635 | C18: 0.5845263393 | D18: Korea | E18: 262.9086353 | F18: 0.6958902527 | G18: 46.49949135 | H18: Korea | I18: 292.9392377 | J18: 1.71564225 | K18: 289.5251619 | M18: 244.0984917 | N18: 1.428914356 | O18: Korea | P18: 280.9214265 | Q18: 1.911284221 | R18: 280.6901355 | T18: 231.7618451 | U18: 1.668575415 | V18: Korea | W18: 243.9599911 | X18: 1.567414723 | Y18: 290.9591382 | Z18: 0.9083996316 | AA18: Korea | AB18: 290.1340131 | AC18: 1.246600004 | AD18: 247.0127228 | AE18: 1.970887804 | AF18: 43.12129032 | AG18: 2.239379064 | AH18: 1.262573649e-82
A19: Netherlands | B19: 284.0068673 | C19: 0.7107687268 | D19: Netherlands | E19: 275.9292295 | F19: 0.733085816 | G19: 58.24251241 | H19: Netherlands | I19: 294.6133444 | J19: 1.644157354 | K19: 298.0723195 | M19: 260.8037344 | N19: 1.568279132 | O19: Netherlands | P19: 285.3966038 | Q19: 1.755543331 | R19: 292.9795793 | T19: 261.979807 | U19: 1.658859877 | V19: Netherlands | W19: 253.5238013 | X19: 1.439420014 | Y19: 310.5167556 | Z19: 1.203534805 | AA19: Netherlands | AB19: 302.7064557 | AC19: 0.9745100893 | AD19: 257.1730957 | AE19: 3.179799311 | AF19: 45.53335995 | AG19: 3.289098177 | AH19: 1.390497063e-43
A20: Norway | B20: 278.42521 | C20: 0.6075724261 | D20: Norway | E20: 273.9545008 | F20: 0.813397477 | G20: 60.77194006 | H20: Norway | I20: 275.0369839 | J20: 1.432002169 | K20: 288.5275576 | M20: 261.8656735 | N20: 1.47420376 | O20: Norway | P20: 270.9270133 | Q20: 1.728944773 | R20: 284.9312797 | T20: 264.7205304 | U20: 1.730599818 | V20: Norway | W20: 255.8175956 | X20: 1.336153561 | Y20: 301.1204246 | Z20: 0.9154900752 | AA20: Norway | AB20: 300.2351793 | AC20: 0.8766708604 | AD20: 244.616394 | AE20: 3.986000619 | AF20: 55.61878525 | AG20: 4.08693436 | AH20: 3.563624215e-42
A21: Poland | B21: 266.9037694 | C21: 0.6035017263 | D21: Poland | E21: 259.76888 | F21: 0.8244445026 | G21: 50.71596792 | H21: Poland | I21: 281.4774268 | J21: 1.067499432 | K21: 277.1864741 | M21: 249.1206753 | N21: 1.720124805 | O21: Poland | P21: 268.5931087 | Q21: 1.107093964 | R21: 270.4309933 | T21: 243.6532565 | U21: 1.853159763 | V21: Poland | W21: 248.7881929 | X21: 1.842722408 | Y21: 297.0486544 | Z21: 1.201685701 | AA21: Poland | AB21: 292.506282 | AC21: 1.273280767 | AD21: 254.4531909 | AE21: 2.44547342 | AF21: 38.05309113 | AG21: 2.911936763 | AH21: 5.021685289e-39
A22: Slovak Republic | B22: 273.8456011 | C22: 0.6156703304 | D22: Slovak Republic | E22: 275.2906403 | F22: 0.8041970585 | G22: 48.56105346 | H22: Slovak Republic | I22: 276.0014717 | J22: 1.609190853 | K22: 278.3585604 | M22: 265.9680514 | N22: 1.2749081 | O22: Slovak Republic | P22: 277.979155 | Q22: 1.764995702 | R22: 278.8211957 | T22: 265.27867 | U22: 1.550365524 | V22: Slovak Republic | W22: 247.6942364 | X22: 1.533030792 | Y22: 295.2147279 | Z22: 1.291456599 | AA22: Slovak Republic | AB22: 288.1262391 | AC22: 1.006739542 | AD22: 258.5287809 | AE22: 2.677179538 | AF22: 29.59745817 | AG22: 2.724161666 | AH22: 1.699030511e-27
A23: Spain | B23: 251.7898349 | C23: 0.7144633556 | D23: Spain | E23: 244.5919077 | F23: 0.6499400264 | G23: 53.00815902 | H23: Spain | I23: 263.8840373 | J23: 1.568776899 | K23: 262.7964864 | M23: 226.7273843 | N23: 1.873184771 | O23: Spain | P23: 255.1503574 | Q23: 1.723237739 | R23: 257.2867675 | T23: 220.526176 | U23: 1.748684371 | V23: Spain | W23: 228.2401122 | X23: 1.207046102 | Y23: 282.2674959 | Z23: 1.115698717 | AA23: Spain | AB23: 279.4477429 | AC23: 1.439615334 | AD23: 230.5890445 | AE23: 2.164844714 | AF23: 48.85869845 | AG23: 2.562364496 | AH23: 4.686185667e-81
A24: Sweden | B24: 279.2308439 | C24: 0.6771571848 | D24: Sweden | E24: 279.0524278 | F24: 0.8182489537 | G24: 54.87490586 | H24: Sweden | I24: 282.7618574 | J24: 1.678203234 | K24: 290.0090302 | M24: 262.3687347 | N24: 1.327165334 | O24: Sweden | P24: 278.2146623 | Q24: 1.729463099 | R24: 287.7547989 | T24: 268.2569179 | U24: 1.694078216 | V24: Sweden | W24: 247.5927678 | X24: 1.641084745 | Y24: 305.6245771 | Z24: 1.244007246 | AA24: Sweden | AB24: 302.1296417 | AC24: 1.126270687 | AD24: 248.7196596 | AE24: 4.232116829 | AF24: 53.40998207 | AG24: 4.477757381 | AH24: 8.487159838e-33
A25: United States | B25: 269.8063016 | C25: 1.046084119 | D25: United States | E25: 245.732508 | F25: 1.243620141 | G25: 65.24012603 | H25: United States | I25: 271.5349051 | J25: 1.998706182 | K25: 275.4789649 | M25: 262.8921767 | N25: 1.535533942 | O25: United States | P25: 249.4218644 | Q25: 2.19223404 | R25: 259.849714 | T25: 247.1529337 | U25: 1.765452474 | V25: United States | W25: 230.2543841 | X25: 2.12641737 | Y25: 297.6555355 | Z25: 1.500289999 | AA25: United States | AB25: 292.098565 | AC25: 1.262563693 | AD25: 239.4319997 | AE25: 3.464225436 | AF25: 52.66656528 | AG25: 3.531815996 | AH25: 2.752661056e-50
A27: Sub-national entities | D27: Sub-national entities | H27: Sub-national entities | O27: Sub-national entities | V27: Sub-national entities | AA27: Sub-national entities
A28: Flanders (Belgium) | B28: 275.4803187 | C28: 0.8303333825 | D28: Flanders (Belgium) | E28: w | F28: w | G28: w | H28: Flanders (Belgium) | I28: 285.0285981 | J28: 1.639143384 | K28: 290.7725367 | M28: 255.039385 | N28: 1.550915413 | O28: Flanders (Belgium) | P28: 282.8225015 | Q28: 1.740906835 | R28: 295.0104224 | T28: 259.8725908 | U28: 1.586457049 | V28: Flanders (Belgium) | W28: 242.3137846 | X28: 1.730982182 | Y28: 302.6252981 | Z28: 1.191447752 | AA28: Flanders (Belgium) | AB28: 296.6824541 | AC28: 1.085891937 | AD28: 242.3683855 | AE28: 3.034203294 | AF28: 54.31406858 | AG28: 3.160921521 | AH28: 3.599930211e-66
A29: England (UK) | B29: 272.5836481 | C29: 1.051751928 | D29: England (UK) | E29: 259.3758541 | F29: 1.049809268 | G29: 58.37915855 | H29: England (UK) | I29: 265.4462463 | J29: 2.368096695 | K29: 280.1032542 | M29: 265.3325998 | N29: 1.984144773 | O29: England (UK) | P29: 256.2695258 | Q29: 2.678602717 | R29: 266.7208591 | T29: 256.9314651 | U29: 1.920026425 | V29: England (UK) | W29: 238.9979213 | X29: 1.457426375 | Y29: 294.4482793 | Z29: 1.462110826 | AA29: England (UK) | AB29: 297.0279729 | AC29: 1.547592831 | AD29: 245.5323463 | AE29: 2.797440128 | AF29: 51.49562657 | AG29: 3.229795849 | AH29: 3.143236712e-57
A30: Northern Ireland (UK) | B30: 268.7015448 | C30: 1.929761516 | D30: Northern Ireland (UK) | E30: 255.3196444 | F30: 1.768380501 | G30: 56.6526954 | H30: Northern Ireland (UK) | I30: 272.3490787 | J30: 2.715159783 | K30: 277.6226603 | M30: 255.1079918 | N30: 3.215834972 | O30: Northern Ireland (UK) | P30: 263.5865977 | Q30: 3.399990962 | R30: 267.5833243 | T30: 245.1763484 | U30: 3.060980375 | V30: Northern Ireland (UK) | W30: 239.3268804 | X30: 2.368764187 | Y30: 293.9571979 | Z30: 2.448882072 | AA30: Northern Ireland (UK) | AB30: 295.8984829 | AC30: 2.353313 | AD30: 251.3638995 | AE30: 3.976243618 | AF30: 44.5345834 | AG30: 4.191386004 | AH30: 2.289948117e-26
A31: England/N. Ireland (UK) | B31: 272.456989 | C31: 1.018671902 | D31: England/N. Ireland (UK) | E31: 259.2424253 | F31: 1.020436994 | G31: 58.32825058 | H31: England/N. Ireland (UK) | I31: 265.6948462 | J31: 2.277823868 | K31: 280.0212044 | M31: 265.0250098 | N31: 1.944516849 | O31: England/N. Ireland (UK) | P31: 256.5330442 | Q31: 2.596760564 | R31: 266.7493866 | T31: 256.5778324 | U31: 1.873373997 | V31: England/N. Ireland (UK) | W31: 239.0125754 | X31: 1.393354956 | Y31: 294.4350317 | Z31: 1.424800552 | AA31: England/N. Ireland (UK) | AB31: 296.9980382 | AC31: 1.502273229 | AD31: 245.6711097 | AE31: 2.721305991 | AF31: 51.32692851 | AG31: 3.142831469 | AH31: 5.905331971e-60
A33: Average | B33: 272.7860534 | C33: 0.166787067 | D33: Average | E33: 266.2396975 | F33: 0.1792340428 | G33: 54.23488287 | H33: Average | I33: 279.6197324 | J33: 0.3692199337 | K33: 284.1411816 | M33: 255.2112175 | N33: 0.3407480454 | O33: Average | P33: 271.3111669 | Q33: 0.4039228785 | R33: 279.3568087 | T33: 252.6595028 | U33: 0.3685434731 | V33: Average | W33: 245.7641019 | X33: 0.3635267322 | Y33: 296.9729714 | Z33: 0.264999524 | AA33: Average | AB33: 293.5604263 | AC33: 0.2520160395 | AD33: 249.9798492 | AE33: 0.6108175634 | AF33: 43.58057715 | AG33: 0.6528523115 | AH33: 0
A34: Max | B34: =MAX(B6:B31) -> 296.2422519 | E34: =MAX(E6:E31) -> 285.6593506 | I34: =MAX(I6:I31) -> 299.4156581 | K34: =MAX(K6:K31) -> 309.2063233 | M34: =MAX(M6:M31) -> 273.3471858 | P34: =MAX(P6:P31) -> 285.3966038 | R34: =MAX(R6:R31) -> 302.4538602 | T34: =MAX(T6:T31) -> 273.2217361 | W34: =MAX(W6:W31) -> 269.4973658 | Y34: =MAX(Y6:Y31) -> 313.3587575 | AB34: =MAX(AB6:AB31) -> 310.6225996 | AD34: =MAX(AD6:AD31) -> 280.4247366 | AF34: =MAX(AF6:AF31) -> 55.61878525
B40: Score litératie ensemble des adultes | C40: Score numératie ensemble des adultes | D40: Score moyen jeunes (16-24 ans) | E40: Score moyen jeunes actifs (25-34 ans) | F40: Score moyen des seniors (55-65 ans) | G40: Score moyen des adultes diplômés de l'enseignement supérieur | H40: Score moyen des adultes n'ayant pas terminé le 2è cycle du secondaire | I40: Score moyen des adultes ayant un emploi qualifié | J40: Score moyen des adultes ayant un emploi non qualifié
A41: France | B41: 262.1391371 | C41: 252.7625475 | D41: =(I13+P13)/2 -> 269.1938991 | E41: =AVERAGE(K13,R13) -> 273.6784072 | F41: =(M13+T13)/2 -> 237.9697887 | G41: 292.9707636 | H41: 231.9125768 | I41: 283.3993933 | J41: 233.8069885
A42: Moyenne OCDE | B42: 272.7860534 | C42: 266.2396975 | D42: =AVERAGE(I33,P33) -> 275.4654496 | E42: =AVERAGE(K33,R33) -> 281.7489952 | F42: =AVERAGE(M33,T33) -> 253.9353602 | G42: 296.9729714 | H42: 245.7641019 | I42: 293.5604263 | J42: 249.9798492
A43: Score du pays le plus performant dans chaque dimension | B43: =MAX(B15:B40) -> 296.2422519 | C43: 285.6593506 | D43: =AVERAGE(I34,P34) -> 292.406131 | E43: =(K34+R34)/2 -> 305.8300918 | F43: =AVERAGE(M34,T34) -> 273.2844609 | G43: =Y34 -> 313.3587575 | H43: =W34 -> 269.4973658 | I43: =AB34 -> 310.6225996 | J43: =AD34 -> 280.4247366

Sheet Graph 6 note pdf
B2: Autonomie des équipes (EWC 2010) | C2: Possibilité de change de méthode de travail (EWC 2015) | D2: Manager aidant et supportif (EWC 2010) | E2: Retours sur travaux du manager (EWC 10) | F2: Consultation avant changement d'objectif (EWC 2010) | G2: Pratique de rémunération variable (ECS) | H2: Travail en équipe (ECS) | I2: Outils d'identification des bonnes pratiques (ECS) | J2: Organisation de réunion de travail pour impliquer les employés dans l'organisation du travail (ECS) | K2: Tension perçues entre employé et employeurs (Enquête qualité de vie)*
A3: AT | B3: 18.1 | C3: 66.9 | D3: 57 | E3: 79.3 | F3: 46.4 | G3: 56.4 | H3: 37.7 | I3: 60.8 | J3: 92.6 | K3: 75.1 | M3: * inverse de l'indicateur de tension
A4: BE | B4: 19.1 | C4: 74.9 | D4: 56.1 | E4: 75.7 | F4: 48.3 | G4: 31.6 | H4: 16.2 | I4: 68.4 | J4: 82.7 | K4: 69.2 | AC4: Questions | AD4: Réponses
A5: BG | B5: 18.4 | C5: 51.7 | D5: 69.9 | E5: 77.3 | F5: 42.5 | G5: 39.7 | H5: 17.7 | I5: 57.3 | J5: 91.9 | K5: 86.3 | AB5: Autonomie des équipes (EWC 2010) | AC5: Level of team economy | AD5: High
A6: CY | B6: 10.1 | C6: 58.7 | D6: 82.6 | E6: 93.2 | F6: 50.1 | G6: 36.9 | H6: 8.7 | I6: 55.1 | J6: 88.1 | K6: 64.9 | AB6: Possibilité de changer de méthode de travail (EWC 2015) | AC6: Etes vous en mesure de changer de choisir ou de changer vos méthodes de travail? | AD6: oui
A7: CZ | B7: 16.6 | C7: 54.6 | D7: 67.2 | E7: 82.8 | F7: 63.7 | G7: 74.3 | H7: 11.6 | I7: 73.4 | J7: 92.1 | K7: 60.4 | AB7: Manager aidant et supportif (EWC 2010) | AC7: Does your manager help and support you? | AD7: Always or most of the times
A8: DE | B8: 18.6 | C8: 76.2 | D8: 46.6 | E8: 80.9 | F8: 37.9 | G8: 44.2 | H8: 26.5 | I8: 58.8 | J8: 90 | K8: 76.3 | AB8: Retours sur travaux du manager (EWC 2010) | AC8: Does your manager or supervisor generally provide feedback on your work? | AD8: Yes
A9: DK | B9: 34.8 | C9: 83.1 | D9: 70.5 | E9: 79.7 | F9: 67.4 | G9: 53.4 | H9: 43 | I9: 51 | J9: 92 | K9: 94.8 | AB9: Consultation des employés avant changement d'objectif (EWC 2010) | AC9: Are you consulted before targets for your work are set | AD9: Yes
A10: EE | B10: 26.2 | C10: 79.1 | D10: 61.5 | E10: 83.8 | F10: 55.1 | G10: 53.6 | H10: 26.7 | I10: 59.3 | J10: 77.7 | K10: 77.3 | AB10: Pratique de rémunération variable (ECS) | AC10: Rémunération au résultat disponible dans l'établissement pour au moins certains employés | AD10: Oui
A11: EL | B11: 16.2 | C11: 59.8 | D11: 75.6 | E11: 90.8 | F11: 40.4 | G11: 39.3 | H11: 8.6 | I11: 48.8 | J11: 88.3 | K11: 36.2 | AB11: Travail en équipe (ECS) | AC11: Travail d'équipe au sein de l'établissement | AD11: Travail en équipe autonome
A12: ES | B12: 28.6 | C12: 64.4 | D12: 75.4 | E12: 68.7 | F12: 40.8 | G12: 35.1 | H12: 12.7 | I12: 66.1 | J12: 82.7 | K12: 68.7 | AB12: Existence d'outils d'identification des bonnes pratiques (ECS) | AC12: Les employés de l'établissement documentent et gardent une trace de leurs bonnes pratiques | AD12: Oui
A13: FI | B13: 41.2 | C13: 74.3 | D13: 73.8 | E13: 81.8 | F13: 58.5 | G13: 44.5 | H13: 43.8 | I13: 50.2 | J13: 94.1 | K13: 85.1 | AB13: Réunions de travail régulières pour impliquer les employés dans l'organisation du travail (ECS) | AC13: L'établissement recourt à la pratique de réunions régulières entre les employés et les responsables directs pour impliquer les employés dans l'irganisation du travail | AD13: Oui
A14: FR | B14: 22.1 | C14: 71 | D14: 58.5 | E14: 65.9 | F14: 44.3 | G14: 39.7 | H14: 16.7 | I14: 66.9 | J14: 79.8 | K14: 51 | AB14: Tensions perçues entre employés et employeurs* (Enquête sur la qualité de vie) | AC14: Tension perçue entre les cadres et les employés | AD14: Tension importante
A15: HR | B15: 17.9 | C15: 60.2 | D15: 70 | E15: 83.5 | F15: 51.7 | G15: 40.3 | H15: 12.3 | I15: 39.9 | J15: 88 | K15: 42.4
A16: HU | B16: 18.6 | C16: 58 | D16: 74 | E16: 90 | F16: 59.9 | G16: 34.3 | H16: 12 | I16: 52.4 | J16: 95.4 | K16: 41.2
A17: IE | B17: 33.6 | C17: 68.6 | D17: 83 | E17: 81.6 | F17: 61.9 | G17: 37.8 | H17: 18.4 | I17: 61.1 | J17: 90 | K17: 77.9
A18: IT | B18: 14.4 | C18: 73.3 | D18: 41.4 | E18: 54.7 | F18: 40.5 | G18: 35.2 | H18: 15.7 | I18: 62.4 | J18: 79.6 | K18: 70.6
A19: LT | B19: 26.4 | C19: 66.5 | D19: 61.4 | E19: 75.2 | F19: 49.2 | G19: 67.2 | H19: 20.7 | I19: 58.9 | J19: 82.2 | K19: 63.6
A20: LU | B20: 28 | C20: 76.6 | D20: 54.9 | E20: 73.3 | F20: 46.2 | G20: 42.7 | H20: 31.4 | I20: 82.7 | J20: 80.2 | K20: 67.7
A21: LV | B21: 21.3 | C21: 62.2 | D21: 72.9 | E21: 78.7 | F21: 63.5 | G21: 48.4 | H21: 19 | I21: 38.4 | J21: 81.4 | K21: 76.6
A22: MT | B22: 22.6 | C22: 89.9 | D22: 83.7 | E22: 82 | F22: 59 | G22: 43.4 | H22: 18.7 | I22: 63.9 | J22: 79.8 | K22: 75.7
A23: NL | B23: 20.3 | C23: 72.7 | D23: 61.9 | E23: 77 | F23: 59 | G23: 47.8 | H23: 21.1 | I23: 63.2 | J23: 89.4 | K23: 78
A24: PL | B24: 16.5 | C24: 65.5 | D24: 49.5 | E24: 79.6 | F24: 48.3 | G24: 54.6 | H24: 21 | I24: 53.8 | J24: 78.4 | K24: 67.5
A25: PT | B25: 8.5 | C25: 63.2 | D25: 63.4 | E25: 84 | F25: 42.8 | G25: 34.7 | H25: 14.4 | I25: 67 | J25: 82.2 | K25: 73.7
A26: RO | B26: 32.3 | C26: 54 | D26: 71 | E26: 74.3 | F26: 47.8 | G26: 45.3 | H26: 7.6 | I26: 79.8 | J26: 84.4 | K26: 55.7
A27: SE | B27: 43.4 | C27: 83.4 | D27: 54 | E27: 79.1 | F27: 50.8 | G27: 36.5 | H27: 42.5 | I27: 63.4 | J27: 93.7 | K27: 85.7
A28: SI | B28: 33.1 | C28: 67.2 | D28: 72.2 | E28: 82.6 | F28: 58.9 | G28: 72.5 | H28: 38.7 | I28: 62.4 | J28: 92.2 | K28: 41.7
A29: SK | B29: 18.7 | C29: 60.8 | D29: 54.7 | E29: 83 | F29: 50.5 | G29: 55.2 | H29: 8.9 | I29: 35.5 | J29: 89 | K29: 71.7
A30: UK | B30: 26.3 | C30: 69.5 | D30: 73.3 | E30: 82.4 | F30: 55.4 | G30: 41 | H30: 18.2 | I30: 65.7 | J30: 86.6 | K30: 75.7
B32: Autonomie des équipes (EWC 2010) | C32: Possibilité pour un salarié de changer/choisir sa méthode de travail (EWC 2015) | D32: Qualité de l'aide et du soutien du manager (EWC 2010) | E32: Qualité du retour et des commentaires du manager sur le travail du salarié (EWC 2010) | F32: Consultation des salariés avant changement d'objectif (EWC 2010) | G32: Pratique de rémunération variable (ECS) | H32: Travail en équipe au sein de l'entreprise (ECS) | I32: Existence d'outils d'identification des bonnes pratiques (ECS) | J32: Réunions de travail régulières pour impliquer les employés dans l'organisation du travail (ECS) | K32: Tensions perçues entre employés et employeurs* (Enquête sur la qualité de vie)
A33: France | B33: 22.1 | C33: 71 | D33: 58.5 | E33: 65.9 | F33: 44.3 | G33: 39.7 | H33: 16.7 | I33: 66.9 | J33: 79.8 | K33: 51
A34: Moyenne UE | B34: =AVERAGE(B3:B30) -> 23.28214286 | C34: =AVERAGE(C3:C30) -> 68.08214286 | D34: 65.57142857 | E34: 79.31785714 | F34: 51.45714286 | G34: 45.91428571 | H34: 21.08928571 | I34: 59.52142857 | J34: 86.58928571 | K34: 68.23928571
A35: Min | B35: =MIN(B3:B30) -> 8.5 | C35: =MIN(C3:C30) -> 51.7 | D35: 41.4 | E35: 54.7 | F35: 37.9 | G35: 31.6 | H35: 7.6 | I35: 35.5 | J35: 77.7 | K35: 36.2
A36: Score le plus élevé | B36: =MAX(B3:B30) -> 43.4 | C36: =MAX(C3:C30) -> 89.9 | D36: 83.7 | E36: 93.2 | F36: 67.4 | G36: 74.3 | H36: 43.8 | I36: 82.7 | J36: 95.4 | K36: 94.8

Sheet Graph 7 Note pdf
D7: 1994 | E7: 1995 | F7: 1996 | G7: 1997 | H7: 1998 | I7: 1999 | J7: 2000 | K7: 2001 | L7: 2002 | M7: 2003 | N7: 2004 | O7: 2005 | P7: 2006 | Q7: 2007 | R7: 2008 | S7: 2009 | T7: 2010 | U7: 2011 | V7: 2012 | W7: 2013 | X7: 2014 | Y7: 2015
D8: 115167 | E8: 118427 | F8: 123237 | G8: 126644 | H8: 129324 | I8: 130449 | J8: 131809 | K8: 130318 | L8: 129429 | M8: 125415 | N8: 124049 | O8: 123594 | P8: 122545 | Q8: 121785 | R8: 119473 | S8: 116033 | T8: 118624 | U8: 116299 | V8: 119518 | W8: 120917 | X8: 121523 | Y8: 125009

Sheet Graph 8 Note pdf
B1: Pourcentage des entreprises qui ont un site web | C1: Pourcentage des entreprises qui utilisent un service de cloud | D1: Pourcentage des entreprises qui ont un logiciel ERP | E1: Pourcentage des entreprises qui emploient un spécialiste TIC | F1: Poucentage des entreprises qui utilisent un CRM
A2: European Union (28 countries) | B2: 75 | C2: 19 | D2: 36 | E2: 20 | F2: 33
A3: European Union (27 countries) | B3: 75 | C3: 19 | D3: 36 | E3: 20 | F3: 33
A4: European Union (25 countries) | B4: : | C4: 21 | D4: : | E4: 21 | F4: : | I4: Pourcentage des entreprises qui ont un site web | J4: Pourcentage des entreprises qui utilisent un service de cloud | K4: Pourcentage des entreprises qui ont un logiciel de gestion intégrée | L4: Pourcentage des entreprises qui emploient un spécialiste TIC | M4: Poucentage des entreprises qui utilisent un logiciel de gestion de la relation client
A5: European Union (15 countries) | B5: 78 | C5: 19 | D5: 39 | F5: 36 | H5: France | I5: 67 | J5: 12 | K5: 39 | L5: 16 | M5: 32
A6: Euro area (EA11-2000, EA12-2006, EA13-2007, EA15-2008, EA16-2010, EA17-2013, EA18-2014, EA19) | B6: 77 | D6: 43 | E6: 21 | F6: 36 | H6: Moyenne UE | I6: 75 | J6: 19 | K6: 36 | L6: 20 | M6: 33
A7: Belgium | B7: 81 | C7: 21 | D7: 50 | E7: 28 | F7: 40 | H7: Score du pays le plus performant dans chaque dimension | I7: 95 | J7: 51 | K7: 56 | L7: 30 | M7: 47
A8: Bulgaria | B8: 48 | C8: 8 | D8: 25 | E8: 20 | F8: 17 | H8: Allemagne | I8: 87 | J8: 11 | K8: 56 | L8: 21 | M8: 45
A9: Czech Republic | B9: 83 | C9: 15 | D9: 30 | E9: 19 | F9: 20
A10: Denmark | B10: 92 | C10: 38 | D10: 47 | E10: 24 | F10: 34
A11: Germany (until 1990 former territory of the FRG) | B11: 87 | C11: 11 | D11: 56 | E11: 21 | F11: 45
A12: Estonia | B12: 80 | C12: 15 | D12: 22 | E12: 15 | F12: 27
A13: Ireland | B13: 75 | C13: 28 | D13: 25 | E13: 30 | F13: 33
A14: Greece | B14: 61 | C14: 8 | D14: 37 | E14: 26 | F14: 22
A15: Spain | B15: 75 | C15: 14 | D15: 35 | E15: 25 | F15: 35
A16: France | B16: 67 | C16: 12 | D16: 39 | E16: 16 | F16: 32
A17: Croatia | B17: 71 | C17: 22 | D17: 29 | E17: 22 | F17: 22
A18: Italy | B18: 71 | C18: 40 | D18: 36 | E18: 17 | F18: 30
A19: Cyprus | B19: 72 | C19: 10 | D19: 43 | E19: 26 | F19: 39
A20: Latvia | B20: 59 | C20: 6 | D20: 16 | E20: 19 | F20: 18
A21: Lithuania | B21: 77 | C21: 13 | D21: 40 | E21: 15 | F21: 34
A22: Luxembourg | B22: 79 | C22: 13 | D22: 39 | E22: 25 | F22: 36
A23: Hungary | B23: 64 | C23: 8 | D23: 16 | E23: 26 | F23: 15
A24: Malta | B24: 83 | C24: 17 | D24: 30 | E24: 26 | F24: 28
A25: Netherlands | B25: 90 | C25: 28 | D25: 45 | E25: 28 | F25: 47
A26: Austria | B26: 87 | C26: 12 | D26: 41 | E26: 24 | F26: 44
A27: Poland | B27: 65 | C27: 6 | D27: 21 | E27: 12 | F27: 24
A28: Portugal | B28: 61 | C28: 13 | D28: 44 | E28: 20 | F28: 29
A29: Romania | B29: 45 | C29: 5 | D29: 22 | E29: 13 | F29: 20
A30: Slovenia | B30: 83 | C30: 15 | D30: 33 | E30: 20 | F30: 29
A31: Slovakia | B31: 79 | C31: 19 | D31: 30 | E31: 19 | F31: 22
A32: Finland | B32: 95 | C32: 51 | D32: 37 | E32: 25 | F32: 39
A33: Sweden | B33: 90 | C33: 39 | D33: : | E33: 19 | F33: 35
A34: United Kingdom | B34: 81 | C34: 24 | D34: 17 | E34: 22 | F34: 30
A35: Iceland | B35: : | C35: 43 | D35: : | E35: : | F35: :
A36: Norway | B36: 80 | C36: 29 | D36: 32 | E36: 19 | F36: 37
A37: Former Yugoslav Republic of Macedonia, the | B37: 52 | C37: 12 | D37: 18 | E37: 13 | F37: 22
A38: Serbia | B38: : | C38: 4 | D38: : | E38: : | F38: :
A39: Turkey | B39: 65 | D39: 20 | E39: : | F39: 9
B40: =MAX(B2:B39) -> 95 | C40: =MAX(C2:C39) -> 51 | D40: 56 | E40: =MAX(E2:E39) -> 30 | F40: =MAX(F2:F39) -> 47

Sheet Graphique A Encadré HTML
X2: 1981 | Y2: 1982 | Z2: 1983 | AA2: 1984 | AB2: 1985 | AC2: 1986 | AD2: 1987 | AE2: 1988 | AF2: 1989 | AG2: 1990 | AH2: 1991 | AI2: 1992 | AJ2: 1993 | AK2: 1994 | AL2: 1995 | AM2: 1996 | AN2: 1997 | AO2: 1998 | AP2: 1999 | AQ2: 2000 | AR2: 2001 | AS2: 2002 | AT2: 2003 | AU2: 2004 | AV2: 2005 | AW2: 2006 | AX2: 2007 | AY2: 2008 | AZ2: 2009 | BA2: 2010 | BB2: 2011 | BC2: 2012 | BD2: 2013 | BE2: 2014 | BF2: 2015 | BG2: 2016 | BH2: 2017
X3: 68.4794242 | Y3: 70.881861 | Z3: 71.3164182 | AA3: 72.0006586 | AB3: 73.0538064 | AC3: 75.11043 | AD3: 77.2344823 | AE3: 77.4583755 | AF3: 77.9070016 | AG3: 79.871615 | AH3: 82.7252323 | AI3: 88.3347953 | AJ3: 91.6430827 | AK3: 92.0620633 | AL3: 94.0214292 | AM3: 94.2638377 | AN3: 93.127245 | AO3: 93.2711969 | AP3: 93.9894166 | AQ3: 94.6220378 | AR3: 94.5463624 | AS3: 95.3070997 | AT3: 96.4014413 | AU3: 95.8008473 | AV3: 95.3341904 | AW3: 93.5917763 | AX3: 93.0200894 | AY3: 95.2027096 | AZ3: 101.166149 | BA3: 100 | BB3: 100.6723462 | BC3: 104.0033146 | BD3: 106.2506049 | BE3: 108.2769085 | BF3: 109.9998528 | BG3: 111.5383144 | BH3: 113.92818
X4: 51.6458448 | Y4: 57.5519315 | Z4: 62.334994 | AA4: 65.7847971 | AB4: 68.3143242 | AC4: 69.8622308 | AD4: 70.809308 | AE4: 71.1611692 | AF4: 72.1956008 | AG4: 74.4623452 | AH4: 76.5362846 | AI4: 77.7922512 | AJ4: 79.1629388 | AK4: 78.5347315 | AL4: 79.3032649 | AM4: 80.112501 | AN4: 80.0146306 | AO4: 79.8722932 | AP4: 80.4932541 | AQ4: 81.4470521 | AR4: 83.2217363 | AS4: 85.5736309 | AT4: 87.3229698 | AU4: 88.0064361 | AV4: 89.8384661 | AW4: 91.5312289 | AX4: 92.9888324 | AY4: 95.6787635 | AZ4: 99.0520554 | BA4: 100 | BB4: 100.9691955 | BC4: 103.2735788 | BD4: 104.2360043 | BE4: 105.8208457 | BF4: 105.8968306 | BG4: 106.3106599 | BH4: 107.0054302
X5: 26.3171559 | Y5: 29.3072699 | Z5: 32.6683704 | AA5: 34.6168354 | AB5: 36.5414337 | AC5: 39.6457704 | AD5: 42.1323714 | AE5: 44.5835341 | AF5: 47.3019603 | AG5: 52.0755335 | AH5: 56.5365826 | AI5: 61.4432751 | AJ5: 64.7604391 | AK5: 65.2728271 | AL5: 67.0975661 | AM5: 68.8121721 | AN5: 70.2642578 | AO5: 71.5895933 | AP5: 73.097753 | AQ5: 74.9105166 | AR5: 77.3166588 | AS5: 79.7410686 | AT5: 82.2516081 | AU5: 84.6723443 | AV5: 87.6739253 | AW5: 90.6815394 | AX5: 94.4755068 | AY5: 100.0174158 | AZ5: 101.6629274 | BA5: 100 | BB5: 99.1188614 | BC5: 96.2212878 | BD5: 96.1686614 | BE5: 95.3140867 | BF5: 95.66432 | BG5: 96.1052889 | BH5: 96.9807358
X6: 28.1328347 | Y6: 32.7316586 | Z6: 37.6867066 | AA6: 40.9097001 | AB6: 44.1824177 | AC6: 46.5098302 | AD6: 48.8708503 | AE6: 51.2865469 | AF6: 54.0219399 | AG6: 59.0049121 | AH6: 63.7835756 | AI6: 66.3454796 | AJ6: 67.7481575 | AK6: 67.8434157 | AL6: 68.7450567 | AM6: 72.507682 | AN6: 74.3465259 | AO6: 73.0722906 | AP6: 74.2552689 | AQ6: 74.5104401 | AR6: 76.6234701 | AS6: 79.7977397 | AT6: 83.594939 | AU6: 85.6047325 | AV6: 87.3430303 | AW6: 89.2861373 | AX6: 91.0330722 | AY6: 94.9780271 | AZ6: 99.9133478 | BA6: 100 | BB6: 100.6937779 | BC6: 102.6158585 | BD6: 103.3640749 | BE6: 104.708752 | BF6: 105.3777568 | BG6: 105.3530507 | BH6: 106.0443358
X7: NA | Y7: NA | Z7: NA | AA7: NA | AB7: NA | AC7: NA | AD7: NA | AE7: NA | AF7: NA | AG7: NA | AH7: NA | AI7: NA | AJ7: NA | AK7: NA | AL7: 78.5642371 | AM7: 79.8721368 | AN7: 80.2783454 | AO7: 80.5385333 | AP7: 81.5302641 | AQ7: 82.457445 | AR7: 84.02356 | AS7: 86.1936573 | AT7: 88.3014094 | AU7: 89.0634364 | AV7: 90.4602407 | AW7: 91.3507912 | AX7: 92.7634111 | AY7: 96.2740945 | AZ7: 100.6442473 | BA7: 100 | BB7: 100.5599215 | BC7: 102.4236155 | BD7: 103.5812984 | BE7: 104.686073 | BF7: 105.401275 | BG7: 106.1063018 | BH7: 107.31162
C9: 1999 | D9: 2000 | E9: 2001 | F9: 2002 | G9: 2003 | H9: 2004 | I9: 2005 | J9: 2006 | K9: 2007 | L9: 2008 | M9: 2009 | N9: 2010 | O9: 2011 | P9: 2012 | Q9: 2013 | R9: 2014 | S9: 2015 | V9: 1999-2008 | W9: 2009-2015
B10: Allemagne | C10: =AP3/$AP3*100 -> 100 | D10: =AQ3/$AP3*100 -> 100.6730771 | E10: 100.5925622 | F10: 101.4019484 | G10: 102.5662727 | H10: 101.9272709 | I10: 101.4307715 | J10: 99.57693077 | K10: 98.96868474 | L10: 101.2908826 | M10: 107.6356814 | N10: 106.3949577 | O10: 107.1103001 | P10: 110.6542825 | Q10: 113.0452861 | R10: 115.201171 | S10: 117.0342968 | U10: Allemagne | V10: =AY3/AP3-1 -> 0.01290882574 | W10: =BF3/AZ3-1 -> 0.08731877102
B11: France | C11: =AP4/$AP4*100 -> 100 | D11: 101.1849415 | E11: 103.3897029 | F11: 106.311556 | G11: 108.4848299 | H11: 109.3339275 | I11: 111.6099319 | J11: 113.7129191 | K11: 115.5237584 | L11: 118.8655678 | M11: 123.0563437 | N11: 124.2340133 | O11: 125.4380838 | P11: 128.3009116 | Q11: 129.4965714 | R11: 131.4654835 | S11: 131.5598826 | U11: France | V11: =AY4/AP4-1 -> 0.1886556777 | W11: =BF4/AZ4-1 -> 0.06910280834
B12: Espagne | C12: 100 | D12: 102.479917 | E12: 105.7715944 | F12: 109.0882624 | G12: 112.5227585 | H12: 115.834401 | I12: 119.9406571 | J12: 124.0551668 | K12: 129.2454322 | L12: 136.8269361 | M12: 139.0780472 | N12: 136.8031108 | O12: 135.5976857 | P12: 131.6337149 | Q12: 131.5617204 | R12: 130.3926356 | S12: 130.8717656 | U12: Espagne | V12: 0.3682693612 | W12: -0.05900486592
B13: Italie | C13: 100 | D13: 100.3436405 | E13: 103.1892702 | F13: 107.4640775 | G13: 112.5777877 | H13: 115.2843883 | I13: 117.625364 | J13: 120.2421574 | K13: 122.5947647 | L13: 127.9074583 | M13: 134.5538832 | N13: 134.6705782 | O13: 135.6048929 | P13: 138.19337 | Q13: 139.2009974 | R13: 141.0118818 | S13: 141.9128344 | U13: Italie | V13: 0.2790745829 | W13: 0.05469148137
B14: Zone euro | C14: 100 | D14: 101.137223 | E14: 103.0581232 | F14: 105.7198309 | G14: 108.3050697 | H14: 109.2397251 | I14: 110.9529592 | J14: 112.0452536 | K14: 113.7778862 | L14: 118.0838742 | M14: 123.4440344 | N14: 122.6538404 | O14: 123.3406056 | P14: 125.6264979 | Q14: 127.0464404 | R14: 128.4014889 | S14: 129.2787116 | U14: Zone euro | V14: 0.1808387421 | W14: 0.04726576856

Sheet Graphique B Encadré HTML
D3: GRAPHIQUE B

Sheet Graphique C Encadré HTML
B5: 2000 | C5: 2014
A6: Espagne | B6: 0.79 | C6: 0.86
A7: Italie | B7: 1.83 | C7: 1.67
A8: Royaume-Uni | B8: 5.29 | C8: 2.41
A9: France | B9: 4.77 | C9: 3.99
A10: Japon | B10: 11.25 | C10: 4.48
A11: Chine | B11: 6.63 | C11: 7.51
A12: États-Unis | B12: 17.84 | C12: 9.68
A13: Allemagne | B13: 5.98 | C13: 24.49

Sheet Graphique D Encadré HTML
B1: Allemagne | C1: États-Unis | D1: Japon | E1: Royaume-Uni | F1: France | G1: Italie | H1: Espagne | I1: Chine
A2: 2000 | B2: 0.3949288037 | C2: 0.4610046235 | D2: 0.5191679975 | E2: 0.4100868383 | F2: 0.3482742865 | G2: 0.329356383 | H2: 0.2544604559 | I2: 0.1176313731
A3: 2013 | B3: 0.4821301682 | C3: 0.4497262765 | D3: 0.4365943683 | E3: 0.4266700621 | F3: 0.4035915955 | G3: 0.3988444985 | H3: 0.2845848875 | I3: 0.1616813878

Sheet Graphique E Encadré HTML
B4: 2000 | C4: 2014
A5: Espagne | B5: 1.53 | C5: 1.77
A6: Royaume-Uni | B6: 5.86 | C6: 4.2
A7: Italie | B7: 4.05 | C7: 4.22
A8: France | B8: 5.4 | C8: 4.65
A9: Japon | B9: 12.2 | C9: 5.73
A10: Chine | B10: 2.25 | C10: 7.13
A11: États-unis | B11: 17.32 | C11: 11.05
A12: Allemagne | B12: 11.26 | C12: 14.24

Sheet Graph Hyper 1,1
B2: 1999 | C2: 2000 | D2: 2001 | E2: 2002 | F2: 2003 | G2: 2004 | H2: 2005 | I2: 2006 | J2: 2007 | K2: 2008 | L2: 2009 | M2: 2010 | N2: 2011 | O2: 2012 | P2: 2013 | Q2: 2014
A3: Solde biens et services | B3: ='[2]BC Pays'!B3 -> 0.02538420732 | C3: ='[2]BC Pays'!C3 -> 0.009357686613 | D3: ='[2]BC Pays'!D3 -> 0.01298628991 | E3: ='[2]BC Pays'!E3 -> 0.01822978575 | F3: ='[2]BC Pays'!F3 -> 0.0128810984 | G3: ='[2]BC Pays'!G3 -> 0.008306249854 | H3: ='[2]BC Pays'!H3 -> -0.0001777674441 | I3: ='[2]BC Pays'!I3 -> -0.003488434208 | J3: ='[2]BC Pays'!J3 -> -0.006702575462 | K3: ='[2]BC Pays'!K3 -> -0.01448054714 | L3: ='[2]BC Pays'!L3 -> -0.01219741756 | M3: ='[2]BC Pays'!M3 -> -0.01623382959 | N3: ='[2]BC Pays'!N3 -> -0.01969470942 | O3: ='[2]BC Pays'!O3 -> -0.01401964322 | P3: ='[2]BC Pays'!P3 -> -0.009713379934 | Q3: ='[2]BC Pays'!Q3 -> -0.007887644675
A4: Balance des revenus | B4: ='[2]Source OCDE'!P48/'[2]Source OCDE'!N85 -> 0.02114320897 | C4: ='[2]Source OCDE'!Q48/'[2]Source OCDE'!O85 -> 0.01789062568 | D4: ='[2]Source OCDE'!R48/'[2]Source OCDE'!P85 -> 0.01800108635 | E4: ='[2]Source OCDE'!S48/'[2]Source OCDE'!Q85 -> 0.009467721368 | F4: ='[2]Source OCDE'!T48/'[2]Source OCDE'!R85 -> 0.01277972051 | G4: ='[2]Source OCDE'!U48/'[2]Source OCDE'!S85 -> 0.01338118731 | H4: ='[2]Source OCDE'!V48/'[2]Source OCDE'!T85 -> 0.01770676611 | I4: ='[2]Source OCDE'!W48/'[2]Source OCDE'!U85 -> 0.02081945019 | J4: ='[2]Source OCDE'!X48/'[2]Source OCDE'!V85 -> 0.02063299532 | K4: ='[2]Source OCDE'!Y48/'[2]Source OCDE'!W85 -> 0.02199313576 | L4: ='[2]Source OCDE'!Z48/'[2]Source OCDE'!X85 -> 0.02270738214 | M4: ='[2]Source OCDE'!AA48/'[2]Source OCDE'!Y85 -> 0.02660020285 | N4: ='[2]Source OCDE'!AB48/'[2]Source OCDE'!Z85 -> 0.02800730739 | O4: ='[2]Source OCDE'!AC48/'[2]Source OCDE'!AA85 -> 0.02266727809 | P4: ='[2]Source OCDE'!AD48/'[2]Source OCDE'!AB85 -> 0.02264423724 | Q4: ='[2]Source OCDE'!AE48/'[2]Source OCDE'!AC85 -> 0.02086474284
A5: Balance des transferts | B5: ='[2]Source OCDE'!P62/'[2]Source OCDE'!N85 -> -0.01267115432 | C5: ='[2]Source OCDE'!Q62/'[2]Source OCDE'!O85 -> -0.01543254137 | D5: ='[2]Source OCDE'!R62/'[2]Source OCDE'!P85 -> -0.01591644337 | E5: ='[2]Source OCDE'!S62/'[2]Source OCDE'!Q85 -> -0.01595600213 | F5: ='[2]Source OCDE'!T62/'[2]Source OCDE'!R85 -> -0.01699117768 | G5: ='[2]Source OCDE'!U62/'[2]Source OCDE'!S85 -> -0.01729056092 | H5: ='[2]Source OCDE'!V62/'[2]Source OCDE'!T85 -> -0.01770958782 | I5: ='[2]Source OCDE'!W62/'[2]Source OCDE'!U85 -> -0.01697380895 | J5: ='[2]Source OCDE'!X62/'[2]Source OCDE'!V85 -> -0.01692064944 | K5: ='[2]Source OCDE'!Y62/'[2]Source OCDE'!W85 -> -0.0170714232 | L5: ='[2]Source OCDE'!Z62/'[2]Source OCDE'!X85 -> -0.01882242394 | M5: ='[2]Source OCDE'!AA62/'[2]Source OCDE'!Y85 -> -0.01872472143 | N5: ='[2]Source OCDE'!AB62/'[2]Source OCDE'!Z85 -> -0.01820050076 | O5: ='[2]Source OCDE'!AC62/'[2]Source OCDE'!AA85 -> -0.02058575064 | P5: ='[2]Source OCDE'!AD62/'[2]Source OCDE'!AB85 -> -0.02098966958 | Q5: ='[2]Source OCDE'!AE62/'[2]Source OCDE'!AC85 -> -0.02223640518
A6: Balance courante | B6: ='[2]CC Pays '!B3 -> 0.03385484168 | C6: ='[2]CC Pays '!C3 -> 0.01181577092 | D6: ='[2]CC Pays '!D3 -> 0.01507093289 | E6: ='[2]CC Pays '!E3 -> 0.01174150499 | F6: ='[2]CC Pays '!F3 -> 0.008669030522 | G6: ='[2]CC Pays '!G3 -> 0.004395707171 | H6: ='[2]CC Pays '!H3 -> -0.0001811534906 | I6: ='[2]CC Pays '!I3 -> 0.0003577466172 | J6: ='[2]CC Pays '!J3 -> -0.002990229587 | K6: ='[2]CC Pays '!K3 -> -0.009558834582 | L6: ='[2]CC Pays '!L3 -> -0.00831400653 | M6: ='[2]CC Pays '!M3 -> -0.008357847785 | N6: ='[2]CC Pays '!N3 -> -0.009887902786 | O6: ='[2]CC Pays '!O3 -> -0.01193811577 | P6: ='[2]CC Pays '!P3 -> -0.008058812274 | Q6: ='[2]CC Pays '!Q3 -> -0.009260244911

Sheet Graph Hyper1,2
A1: Titre : | B1: Compte financier - Investissements directs - en valeur mixte - Ensemble de l'économie - Net -France vis-à-vis du reste du monde - Brut | C1: Compte financier - Dérivés financiers (autres que les réserves) et options sur titres des salariés - Ensemble de l'économie - Net -France vis-à-vis du reste du monde - Brut | D1: Compte financier - Autres investissements - Ensemble de l'économie - Net -France vis-à-vis du reste du monde - Brut | E1: Compte financier - Investissements de portefeuille - Ensemble de l'économie - Net -France vis-à-vis du reste du monde - Brut | F1: Compte financier - Avoirs de réserve - Banque centrale - Avoirs -France vis-à-vis du reste du monde - Brut | G1: Compte financier - en valeur mixte - Ensemble de l'économie - Net -France vis-à-vis du reste du monde - Brut
A2: Code série : | B2: BPM6.A.N.FR.W1.S1.S1.LE.N.FA.D.F._Z.EUR._T._X.N | C2: BPM6.A.N.FR.W1.S1.S1.LE.N.FA.F.F7.T.EUR._T.T.N | D2: BPM6.A.N.FR.W1.S1.S1.LE.N.FA.O.F.T.EUR._T._X.N | E2: BPM6.A.N.FR.W1.S1.S1.LE.N.FA.P.F._Z.EUR._T.M.N | F2: BPM6.A.N.FR.W1.S121.S1.LE.A.FA.R.F._Z.EUR.X1._X.N | G2: BPM6.A.N.FR.W1.S1.S1.LE.N.FA._T.F._Z.EUR._T._X.N
A3: Unité : | B3: Euro (EUR) | C3: Euro (EUR) | D3: Euro (EUR) | E3: Euro (EUR) | F3: Euro (EUR) | G3: Euro (EUR)
A4: Magnitude : | B4: Millions (6) | C4: Millions (6) | D4: Millions (6) | E4: Millions (6) | F4: Millions (6) | G4: Millions (6)
A5: Source : | B5: Banque de France (FR2) | C5: Banque de France (FR2) | D5: Banque de France (FR2) | E5: Banque de France (FR2) | F5: Banque de France (FR2) | G5: Banque de France (FR2)
B7: IDE | C7: Dérivés | D7: Autres | E7: Portefeuille | F7: Réserve | G7: Total
A8: 2008 | B8: 266736 | C8: -51009 | D8: -574155 | E8: 9359 | F8: 73960 | G8: -275109 | H8: 1995850
A9: 2009 | B9: 327966 | C9: -71668 | D9: -416684 | E9: -219213 | F9: 92385 | G9: -287214 | H9: 1939017
A10: 2010 | B10: 405840 | C10: -47778 | D10: -346944 | E10: -320766 | F10: 124472 | G10: -185176 | H10: 1998481
A11: 2011 | B11: 424389 | C11: -44471 | D11: -144802 | E11: -546582 | F11: 133091 | G11: -178374 | H11: 2059284
A12: 2012 | B12: 447487 | C12: -45183 | D12: -162822 | E12: -648334 | F12: 139875 | G12: -268977 | H12: 2086929
A13: 2013 | B13: 408825 | C13: -62075 | D13: -84701 | E13: -736622 | F13: 105104 | G13: -369469 | H13: 2116565
A14: 2014 | B14: 452963 | C14: -59129 | D14: -98597 | E14: -831767 | F14: 118158 | G14: -418372 | H14: 2132449
B17: Investissement direct étranger | C17: Dérivés | D17: Autres | E17: Portefeuille | F17: Réserve | G17: Total
A18: 2008 | B18: =B8/$H8 -> 0.133645314 | C18: =C8/$H8 -> -0.02555753188 | D18: -0.2876744244 | E18: 0.004689230153 | F18: 0.03705689305 | G18: -0.1378405191
A19: 2009 | B19: =B9/$H9 -> 0.1691403428 | C19: -0.03696099622 | D19: -0.2148944543 | E19: -0.1130536762 | F19: 0.04764527593 | G19: -0.1481235079
A20: 2010 | B20: 0.2030742349 | C20: -0.02390715749 | D20: -0.1736038521 | E20: -0.1605049035 | F20: 0.06228330417 | G20: -0.09265837404
A21: 2011 | B21: 0.2060857075 | C21: -0.02159537004 | D21: -0.07031667317 | E21: -0.2654233219 | F21: 0.0646297451 | G21: -0.08661942695
A22: 2012 | B22: 0.2144236819 | C22: -0.02165047302 | D22: -0.07801990389 | E22: -0.3106641385 | F22: 0.06702432138 | G22: -0.1288865122
A23: 2013 | B23: 0.1931549468 | C23: -0.02932818033 | D23: -0.0400181426 | E23: -0.34802711 | F23: 0.04965781821 | G23: -0.1745606679
A24: 2014 | B24: 0.2124144587 | C24: -0.02772821296 | D24: -0.04623651023 | E24: -0.3900524702 | F24: 0.05540953148 | G24: -0.1961932032

Sheet Graph hyper 2
A2: GEO/TIME | B2: 2009Q1 | C2: 2009Q2 | D2: 2009Q3 | E2: 2009Q4 | F2: 2010Q1 | G2: 2010Q2 | H2: 2010Q3 | I2: 2010Q4 | J2: 2011Q1 | K2: 2011Q2 | L2: 2011Q3 | M2: 2011Q4 | N2: 2012Q1 | O2: 2012Q2 | P2: 2012Q3 | Q2: 2012Q4 | R2: 2013Q1 | S2: 2013Q2 | T2: 2013Q3 | U2: 2013Q4 | V2: 2014Q1 | W2: 2014Q2 | X2: 2014Q3 | Y2: 2014Q4 | Z2: 2015Q1 | AA2: 2015Q2 | AB2: 2015Q3 | AC2: 2015Q4
A3: Allemagne (jusqu'en 1990, ancien territoire de la RFA) | B3: 226556 | C3: 222207 | D3: 232628 | E3: 248649 | F3: 247624 | G3: 270758 | H3: 277936 | I3: 293767 | J3: 296522 | K3: 300717 | L3: 303757 | M3: 310493 | N3: 315911 | O3: 315336 | P3: 318436 | Q3: 317241 | R3: 312760 | S3: 320651 | T3: 321213 | U3: 328515 | V3: 324748 | W3: 327784 | X3: 336674 | Y3: 343980 | Z3: 342950 | AA3: 355335 | AB3: 358254 | AC3: 363067
A4: Espagne | B4: 56288 | C4: 61640 | D4: 64055 | E4: 62675 | F4: 61807 | G4: 69361 | H4: 71707 | I4: 72972 | J4: 73671 | K4: 78936 | L4: 80001 | M4: 76967 | N4: 74771 | O4: 79916 | P4: 83753 | Q4: 80783 | R4: 77045 | S4: 85525 | T4: 85323 | U4: 81652 | V4: 77862 | W4: 84653 | X4: 89675 | Y4: 86658 | Z4: 82899 | AA4: 90555 | AB4: 93793 | AC4: 91144
A5: France | B5: 117032 | C5: 115702 | D5: 114052 | E5: 119967 | F5: 124029 | G5: 131081 | H5: 128530 | I5: 136829 | J5: 141709 | K5: 144244 | L5: 138958 | M5: 147642 | N5: 149790 | O5: 148339 | P5: 145020 | Q5: 152081 | R5: 150335 | S5: 152898 | T5: 146891 | U5: 153116 | V5: 151623 | W5: 151437 | X5: 148895 | Y5: 159857 | Z5: 159936 | AA5: 165390 | AB5: 158007 | AC5: 166712
A6: Italie | B6: 83006.7 | C6: 88005.7 | D6: 91086.5 | E6: 91430.6 | F6: 89320.9 | G6: 103374 | H6: 104364.1 | I6: 107089.4 | J6: 102896.5 | K6: 114395.4 | L6: 113002.7 | M6: 111924.3 | N6: 109478.1 | O6: 118638.1 | P6: 116935.7 | Q6: 116122 | R6: 109053.3 | S6: 119175.2 | T6: 118094 | U6: 117705.2 | V6: 111427.4 | W6: 121353.9 | X6: 121527.5 | Y6: 122895.7 | Z6: 115217.1 | AA6: 128428.7 | AB6: 125385.4 | AC6: =Y6*(1+AVERAGE(Z13:AB13)) -> 127977.6204
B8: 2009Q1 | C8: 2009Q2 | D8: 2009Q3 | E8: 2009Q4 | F8: 2010Q1 | G8: 2010Q2 | H8: 2010Q3 | I8: 2010Q4 | J8: 2011Q1 | K8: 2011Q2 | L8: 2011Q3 | M8: 2011Q4 | N8: 2012Q1 | O8: 2012Q2 | P8: 2012Q3 | Q8: 2012Q4 | R8: 2013Q1 | S8: 2013Q2 | T8: 2013Q3 | U8: 2013Q4 | V8: 2014Q1 | W8: 2014Q2 | X8: 2014Q3 | Y8: 2014Q4 | Z8: 2015Q1 | AA8: 2015Q2 | AB8: 2015Q3 | AC8: 2015Q4
A9: Allemagne | B9: 100 | C9: =C3/B3*B9 -> 98.08038631 | D9: =D3/C3*C9 -> 102.6801321 | E9: 109.7516729 | F9: 109.2992461 | G9: 119.510408 | H9: 122.6787196 | I9: 129.6663959 | J9: 130.8824308 | K9: 132.7340702 | L9: 134.0759018 | M9: 137.0491181 | N9: 139.4405798 | O9: 139.1867794 | P9: 140.5550945 | Q9: 140.0276311 | R9: 138.0497537 | S9: 141.5327778 | T9: 141.7808401 | U9: 145.0038842 | V9: 143.3411607 | W9: 144.6812267 | X9: 148.6052014 | Y9: 151.8300111 | Z9: 151.3753774 | AA9: 156.842017 | AB9: 158.1304402 | AC9: 160.2548597
A10: Espagne | B10: 100 | C10: =C4/B4*B10 -> 109.5082433 | D10: 113.7986782 | E10: 111.3470011 | F10: 109.8049318 | G10: 123.225199 | H10: 127.39305 | I10: 129.6404207 | J10: 130.8822484 | K10: 140.2359295 | L10: 142.1279847 | M10: 136.7378482 | N10: 132.8364838 | O10: 141.9769756 | P10: 148.7937038 | Q10: 143.5172683 | R10: 136.8764213 | S10: 151.9417993 | T10: 151.5829306 | U10: 145.0611143 | V10: 138.3278852 | W10: 150.3926236 | X10: 159.3145964 | Y10: 153.9546617 | Z10: 147.2765065 | AA10: 160.8779847 | AB10: 166.6305429 | AC10: 161.9243889
A11: France | B11: 100 | C11: 98.86355868 | D11: 97.45368788 | E11: 102.5078611 | F11: 105.9787067 | G11: 112.0044091 | H11: 109.8246633 | I11: 116.9158863 | J11: 121.085686 | K11: 123.2517602 | L11: 118.7350468 | M11: 126.1552396 | N11: 127.990635 | O11: 126.7508032 | P11: 123.9148267 | Q11: 129.9482193 | R11: 128.4563196 | S11: 130.646319 | T11: 125.5135348 | U11: 130.8325928 | V11: 129.5568733 | W11: 129.3979424 | X11: 127.2258869 | Y11: 136.5925559 | Z11: 136.6600588 | AA11: 141.3203226 | AB11: 135.0117916 | AC11: 142.4499282
A12: Italie | B12: 100 | C12: 106.0224054 | D12: 109.733913 | E12: 110.1484579 | F12: 107.6068558 | G12: 124.536935 | H12: 125.7297303 | I12: 129.0129592 | J12: 123.9616802 | K12: 137.8146583 | L12: 136.136842 | M12: 134.8376697 | N12: 131.8906787 | O12: 142.9259325 | P12: 140.8750137 | Q12: 139.8947314 | R12: 131.3789128 | S12: 143.5729887 | T12: 142.2704432 | U12: 141.8020473 | V12: 134.2390434 | W12: 146.1977166 | X12: 146.4068563 | Y12: 148.055157 | Z12: 138.8045784 | AA12: 154.720884 | AB12: 151.0545534 | AC12: =Y12*(1+AVERAGE(Z13:AB13)) -> 154.1774585
Z13: =Z12/V12-1 -> 0.03401048575 | AA13: =AA12/W12-1 -> 0.05829890922 | AB13: 0.03174507827
B15: 2009 | C15: 2010 | D15: 2011 | E15: 2012 | F15: 2013 | G15: 2014 | H15: 2015
A16: Allemagne | B16: =SUM(B3:E3) -> 930040 | C16: =SUM(F3:I3) -> 1090085 | D16: =SUM(J3:M3) -> 1211489 | E16: =SUM(N3:Q3) -> 1266924 | F16: =SUM(R3:U3) -> 1283139 | G16: =SUM(V3:Y3) -> 1333186 | H16: =SUM(Z3:AC3) -> 1419606
A17: Espagne | B17: =SUM(B4:E4) -> 244658 | C17: =SUM(F4:I4) -> 275847 | D17: 309575 | E17: 319223 | F17: 329545 | G17: 338848 | H17: 358391
A18: France | B18: 466753 | C18: 520469 | D18: 572553 | E18: 595230 | F18: 603240 | G18: 611812 | H18: 650045
A19: Italie | B19: 353529.5 | C19: 404148.4 | D19: 442218.9 | E19: 461173.9 | F19: 464027.7 | G19: 477204.5 | H19: =SUM(Z6:AC6) -> 497008.8204
B21: 2009 | C21: 2010 | D21: 2011 | E21: 2012 | F21: 2013 | G21: 2014 | H21: 2015
A22: Allemagne | B22: 100 | C22: =C16/B16*B22 -> 117.2083996 | D22: =D16/C16*C22 -> 130.2620317 | E22: 136.2225281 | F22: 137.9660015 | G22: 143.3471679 | H22: 152.6392413
A23: Espagne | B23: 100 | C23: =C17/B17*B23 -> 112.7479992 | D23: 126.5337737 | E23: 130.4772376 | F23: 134.6961881 | G23: 138.4986389 | H23: 146.486524
A24: France | B24: 100 | C24: =C18/B18*B24 -> 111.5084424 | D24: 122.6672351 | E24: 127.5256935 | F24: 129.2418046 | G24: 131.0783219 | H24: 139.2695923
A25: Italie | B25: 100 | C25: =C19/B19*B25 -> 114.3181545 | D25: 125.0868457 | E25: 130.4484916 | F25: 131.2557226 | G25: 134.9829364 | H25: 140.5848226

Sheet Graph hyper 3
A1: BIS effective exchange rate
A2: Nominal, Broad Indices
A3: Monthly averages; 2010=100
D4: Taux de change effectif réel France (échelle de droite) | E4: Euro/dollar
C5: 1999-01-31 | D5: 97.01 | E5: 1.159433
C6: 1999-02-28 | D6: 96.29 | E6: 1.120609
C7: 1999-03-31 | D7: 95.6 | E7: 1.088451
C8: 1999-04-30 | D8: 95.03 | E8: 1.06963
C9: 1999-05-31 | D9: 94.8 | E9: 1.06227
C10: 1999-06-30 | D10: 94.03 | E10: 1.037733
C11: 1999-07-31 | D11: 94.02 | E11: 1.036858
C12: 1999-08-31 | D12: 94.63 | E12: 1.06048
C13: 1999-09-30 | D13: 94.12 | E13: 1.049824
C14: 1999-10-31 | D14: 94.65 | E14: 1.070628
C15: 1999-11-30 | D15: 93.58 | E15: 1.032632
C16: 1999-12-31 | D16: 92.77 | E16: 1.011142
C17: 2000-01-31 | D17: 92.8 | E17: 1.012853
C18: 2000-02-29 | D18: 92.17 | E18: 0.983018
C19: 2000-03-31 | D19: 91.5 | E19: 0.964815
C20: 2000-04-30 | D20: 90.88 | E20: 0.94652
C21: 2000-05-31 | D21: 90.08 | E21: 0.907981
C22: 2000-06-30 | D22: 91.56 | E22: 0.949122
C23: 2000-07-31 | D23: 91.31 | E23: 0.939933
C24: 2000-08-31 | D24: 90.17 | E24: 0.905515
C25: 2000-09-30 | D25: 89.32 | E25: 0.871199
C26: 2000-10-31 | D26: 88.82 | E26: 0.85564
C27: 2000-11-30 | D27: 89.13 | E27: 0.855531
C28: 2000-12-31 | D28: 90.57 | E28: 0.899703
C29: 2001-01-31 | D29: 92.21 | E29: 0.938574
C30: 2001-02-28 | D30: 91.86 | E30: 0.920986
C31: 2001-03-31 | D31: 91.95 | E31: 0.9095
C32: 2001-04-30 | D32: 91.72 | E32: 0.89204
C33: 2001-05-31 | D33: 90.94 | E33: 0.876484
C34: 2001-06-30 | D34: 90.36 | E34: 0.853592
C35: 2001-07-31 | D35: 90.82 | E35: 0.859598
C36: 2001-08-31 | D36: 92.1 | E36: 0.900659
C37: 2001-09-30 | D37: 92.46 | E37: 0.912037
C38: 2001-10-31 | D38: 92.52 | E38: 0.906215
C39: 2001-11-30 | D39: 91.83 | E39: 0.887413
C40: 2001-12-31 | D40: 92.05 | E40: 0.892402
C41: 2002-01-31 | D41: 91.87 | E41: 0.884789
C42: 2002-02-28 | D42: 91.56 | E42: 0.869958
C43: 2002-03-31 | D43: 91.64 | E43: 0.876115
C44: 2002-04-30 | D44: 91.81 | E44: 0.885166
C45: 2002-05-31 | D45: 92.75 | E45: 0.915993
C46: 2002-06-30 | D46: 93.98 | E46: 0.954855
C47: 2002-07-31 | D47: 94.87 | E47: 0.994158
C48: 2002-08-31 | D48: 94.61 | E48: 0.977707
C49: 2002-09-30 | D49: 94.73 | E49: 0.980205
C50: 2002-10-31 | D50: 94.92 | E50: 0.981798
C51: 2002-11-30 | D51: 95.26 | E51: 1.002403
C52: 2002-12-31 | D52: 95.72 | E52: 1.016637
C53: 2003-01-31 | D53: 96.89 | E53: 1.060419
C54: 2003-02-28 | D54: 97.46 | E54: 1.078337
C55: 2003-03-31 | D55: 97.72 | E55: 1.079397
C56: 2003-04-30 | D56: 97.8 | E56: 1.084253
C57: 2003-05-31 | D57: 99.41 | E57: 1.154068
C58: 2003-06-30 | D58: 99.54 | E58: 1.169205
C59: 2003-07-31 | D59: 98.88 | E59: 1.138956
C60: 2003-08-31 | D60: 98.36 | E60: 1.115421
C61: 2003-09-30 | D61: 98.32 | E61: 1.121155
C62: 2003-10-31 | D62: 99.2 | E62: 1.171361
C63: 2003-11-30 | D63: 99.18 | E63: 1.17067
C64: 2003-12-31 | D64: 100.46 | E64: 1.226736
C65: 2004-01-31 | D65: 100.94 | E65: 1.260916
C66: 2004-02-29 | D66: 100.89 | E66: 1.261464
C67: 2004-03-31 | D67: 100.04 | E67: 1.22726
C68: 2004-04-30 | D68: 99.32 | E68: 1.203665
C69: 2004-05-31 | D69: 99.83 | E69: 1.200287
C70: 2004-06-30 | D70: 99.86 | E70: 1.214925
C71: 2004-07-31 | D71: 100.04 | E71: 1.226877
C72: 2004-08-31 | D72: 99.99 | E72: 1.218116
C73: 2004-09-30 | D73: 100.14 | E73: 1.226152
C74: 2004-10-31 | D74: 100.65 | E74: 1.249037
C75: 2004-11-30 | D75: 101.3 | E75: 1.298316
C76: 2004-12-31 | D76: 101.87 | E76: 1.342733
C77: 2005-01-31 | D77: 101.27 | E77: 1.330047
C78: 2005-02-28 | D78: 100.85 | E78: 1.299736
C79: 2005-03-31 | D79: 101.25 | E79: 1.320237
C80: 2005-04-30 | D80: 100.84 | E80: 1.294407
C81: 2005-05-31 | D81: 100.29 | E81: 1.270371
C82: 2005-06-30 | D82: 99.03 | E82: 1.217058
C83: 2005-07-31 | D83: 99.06 | E83: 1.202554
C84: 2005-08-31 | D84: 99.33 | E84: 1.229775
C85: 2005-09-30 | D85: 99.11 | E85: 1.22664
C86: 2005-10-31 | D86: 98.85 | E86: 1.203514
C87: 2005-11-30 | D87: 98.43 | E87: 1.179138
C88: 2005-12-31 | D88: 98.44 | E88: 1.186
C89: 2006-01-31 | D89: 98.75 | E89: 1.210719
C90: 2006-02-28 | D90: 98.31 | E90: 1.194605
C91: 2006-03-31 | D91: 98.65 | E91: 1.201838
C92: 2006-04-30 | D92: 99.15 | E92: 1.225542
C93: 2006-05-31 | D93: 99.97 | E93: 1.276864
C94: 2006-06-30 | D94: 100.18 | E94: 1.266846
C95: 2006-07-31 | D95: 100.23 | E95: 1.269758
C96: 2006-08-31 | D96: 100.25 | E96: 1.280321
C97: 2006-09-30 | D97: 100.13 | E97: 1.273713
C98: 2006-10-31 | D98: 99.82 | E98: 1.262044
C99: 2006-11-30 | D99: 100.13 | E99: 1.287527
C100: 2006-12-31 | D100: 100.62 | E100: 1.320957
C101: 2007-01-31 | D101: 100.24 | E101: 1.299218
C102: 2007-02-28 | D102: 100.4 | E102: 1.307155
C103: 2007-03-31 | D103: 100.75 | E103: 1.323835
C104: 2007-04-30 | D104: 101.11 | E104: 1.349975
C105: 2007-05-31 | D105: 101.02 | E105: 1.351307
C106: 2007-06-30 | D106: 100.79 | E106: 1.341639
C107: 2007-07-31 | D107: 101.09 | E107: 1.371765
C108: 2007-08-31 | D108: 101.02 | E108: 1.362119
C109: 2007-09-30 | D109: 101.45 | E109: 1.388938
C110: 2007-10-31 | D110: 101.84 | E110: 1.422358
C111: 2007-11-30 | D111: 102.56 | E111: 1.466557
C112: 2007-12-31 | D112: 102.51 | E112: 1.456068
C113: 2008-01-31 | D113: 102.73 | E113: 1.470302
C114: 2008-02-29 | D114: 102.58 | E114: 1.471697
C115: 2008-03-31 | D115: 103.93 | E115: 1.5481
C116: 2008-04-30 | D116: 104.45 | E116: 1.576778
C117: 2008-05-31 | D117: 104.06 | E117: 1.5543
C118: 2008-06-30 | D118: 103.94 | E118: 1.554867
C119: 2008-07-31 | D119: 104.07 | E119: 1.57489
C120: 2008-08-31 | D120: 102.78 | E120: 1.501676
C121: 2008-09-30 | D121: 102.07 | E121: 1.437589
C122: 2008-10-31 | D122: 100.76 | E122: 1.340196
C123: 2008-11-30 | D123: 100.25 | E123: 1.273578
C124: 2008-12-31 | D124: 102.42 | E124: 1.351063
C125: 2009-01-31 | D125: 102.33 | E125: 1.334248
C126: 2009-02-28 | D126: 101.82 | E126: 1.2807
C127: 2009-03-31 | D127: 102.87 | E127: 1.306447
C128: 2009-04-30 | D128: 102.49 | E128: 1.319375
C129: 2009-05-31 | D129: 102.83 | E129: 1.363636
C130: 2009-06-30 | D130: 103.41 | E130: 1.403703
C131: 2009-07-31 | D131: 103.37 | E131: 1.407364
C132: 2009-08-31 | D132: 103.46 | E132: 1.425749
C133: 2009-09-30 | D133: 104.03 | E133: 1.455586
C134: 2009-10-31 | D134: 104.43 | E134: 1.48068
C135: 2009-11-30 | D135: 104.45 | E135: 1.489463
C136: 2009-12-31 | D136: 103.89 | E136: 1.458711
C137: 2010-01-31 | D137: 102.88 | E137: 1.427811
C138: 2010-02-28 | D138: 101.65 | E138: 1.366303
C139: 2010-03-31 | D139: 101.22 | E139: 1.357563
C140: 2010-04-30 | D140: 100.55 | E140: 1.344132
C141: 2010-05-31 | D141: 98.91 | E141: 1.262359
C142: 2010-06-30 | D142: 97.97 | E142: 1.221578
C143: 2010-07-31 | D143: 98.98 | E143: 1.277154
C144: 2010-08-31 | D144: 98.89 | E144: 1.290825
C145: 2010-09-30 | D145: 99.06 | E145: 1.304259
C146: 2010-10-31 | D146: 100.69 | E146: 1.389231
C147: 2010-11-30 | D147: 100.11 | E147: 1.367404
C148: 2010-12-31 | D148: 99.1 | E148: 1.321449
C149: 2011-01-31 | D149: 99.12 | E149: 1.33554
C150: 2011-02-28 | D150: 99.78 | E150: 1.364673
C151: 2011-03-31 | D151: 100.57 | E151: 1.402954
C152: 2011-04-30 | D152: 101.36 | E152: 1.444553
C153: 2011-05-31 | D153: 100.98 | E153: 1.433708
C154: 2011-06-30 | D154: 101.05 | E154: 1.438555
C155: 2011-07-31 | D155: 100.59 | E155: 1.430906
C156: 2011-08-31 | D156: 100.74 | E156: 1.432797
C157: 2011-09-30 | D157: 100.13 | E157: 1.379742
C158: 2011-10-31 | D158: 100.31 | E158: 1.371901
C159: 2011-11-30 | D159: 100.03 | E159: 1.357885
C160: 2011-12-31 | D160: 99.19 | E160: 1.317683
C161: 2012-01-31 | D161: 98.17 | E161: 1.289317
C162: 2012-02-29 | D162: 98.5 | E162: 1.322539
C163: 2012-03-31 | D163: 98.63 | E163: 1.321181
C164: 2012-04-30 | D164: 98.52 | E164: 1.317242
C165: 2012-05-31 | D165: 97.87 | E165: 1.282802
C166: 2012-06-30 | D166: 97.52 | E166: 1.253872
C167: 2012-07-31 | D167: 96.63 | E167: 1.230484
C168: 2012-08-31 | D168: 96.68 | E168: 1.239019
C169: 2012-09-30 | D169: 97.74 | E169: 1.286302
C170: 2012-10-31 | D170: 97.98 | E170: 1.297391
C171: 2012-11-30 | D171: 97.68 | E171: 1.28281
C172: 2012-12-31 | D172: 98.42 | E172: 1.310754
C173: 2013-01-31 | D173: 99.07 | E173: 1.328593
C174: 2013-02-28 | D174: 99.59 | E174: 1.337917
C175: 2013-03-31 | D175: 98.76 | E175: 1.296483
C176: 2013-04-30 | D176: 98.87 | E176: 1.301931
C177: 2013-05-31 | D177: 98.93 | E177: 1.29846
C178: 2013-06-30 | D178: 99.77 | E178: 1.317987
C179: 2013-07-31 | D179: 99.75 | E179: 1.30745
C180: 2013-08-31 | D180: 100.39 | E180: 1.332239
C181: 2013-09-30 | D181: 100.4 | E181: 1.334844
C182: 2013-10-31 | D182: 100.84 | E182: 1.364005
C183: 2013-11-30 | D183: 100.74 | E183: 1.349165
C184: 2013-12-31 | D184: 101.43 | E184: 1.369996
C185: 2014-01-31 | D185: 101.45 | E185: 1.362896
C186: 2014-02-28 | D186: 101.6 | E186: 1.364764
C187: 2014-03-31 | D187: 102.14 | E187: 1.382927
C188: 2014-04-30 | D188: 101.98 | E188: 1.380575
C189: 2014-05-31 | D189: 101.62 | E189: 1.373847
C190: 2014-06-30 | D190: 101.21 | E190: 1.359937
C191: 2014-07-31 | D191: 100.96 | E191: 1.354672
C192: 2014-08-31 | D192: 100.58 | E192: 1.332904
C193: 2014-09-30 | D193: 99.81 | E193: 1.290698
C194: 2014-10-31 | D194: 99.5 | E194: 1.26707
C195: 2014-11-30 | D195: 99.48 | E195: 1.247452
C196: 2014-12-31 | D196: 99.74 | E196: 1.232089
C197: 2015-01-31 | D197: 97.93 | E197: 1.161163
C198: 2015-02-28 | D198: 97.09 | E198: 1.135006
C199: 2015-03-31 | D199: 95.7 | E199: 1.083365
C200: 2015-04-30 | D200: 95.22 | E200: 1.080727
... 9 more rows

Sheet Graph hyper 4
A1: Frequency | E1: Annual
A2: Time | E2: 1995 | F2: 1996 | G2: 1997 | H2: 1998 | I2: 1999 | J2: 2000 | K2: 2001 | L2: 2002 | M2: 2003 | N2: 2004 | O2: 2005 | P2: 2006 | Q2: 2007 | R2: 2008 | S2: 2009 | T2: 2010 | U2: 2011 | V2: 2012 | W2: 2013 | X2: 2014 | Y2: 2015 | Z2: 2016 | AA2: 2017
A3: Country | B3: Variable | C3: Unit
A4: France | B4: Competitiveness indicator, relative consumer prices (CPI), overall weights | C4: Index, 2010=100 | D4: i | E4: 107.295 | F4: 106.615 | G4: 101.839 | H4: 103.229 | I4: 101.307 | J4: 96.051 | K4: 95.884 | L4: 97.651 | M4: 103.004 | N4: 104.78 | O4: 103.371 | P4: 102.712 | Q4: 103.076 | R4: 103.811 | S4: 104.041 | T4: 100 | U4: 99.259 | V4: 96.344 | W4: 97.397 | X4: 97.816 | Y4: 93.789 | Z4: 93.874 | AA4: 93.282
B5: Real effective exchange rate, constant trade weights | C5: Index, 2010 | D5: i | E5: 1.137 | F5: 1.112 | G5: 1.055 | H5: 1.075 | I5: 1.063 | J5: 0.999 | K5: 0.998 | L5: 1.014 | M5: 1.062 | N5: 1.065 | O5: 1.044 | P5: 1.035 | Q5: 1.042 | R5: 1.048 | S5: 1.048 | T5: 1 | U5: 0.986 | V5: 0.958 | W5: 0.97 | X5: 0.974 | Y5: 0.944 | Z5: 0.945 | AA5: 0.94
B6: Relative price of exported goods and services | C6: Ratio | D6: i | E6: 1.177 | F6: 1.175 | G6: 1.114 | H6: 1.142 | I6: 1.104 | J6: 1.006 | K6: 1 | L6: 1.022 | M6: 1.082 | N6: 1.085 | O6: 1.051 | P6: 1.034 | Q6: 1.054 | R6: 1.05 | S6: 1.072 | T6: 1 | U6: 0.971 | V6: 0.936 | W6: 0.963 | X6: 0.971 | Y6: 0.94 | Z6: 0.948 | AA6: 0.944
B7: Competitiveness indicator, relative unit labour costs, overall economy | C7: Index, 2010=100 | D7: i | E7: 101.845 | F7: 101.414 | G7: 96.779 | H7: 98.196 | I7: 97.253 | J7: 92.112 | K7: 92.376 | L7: 94.993 | M7: 100.377 | N7: 101.707 | O7: 101.177 | P7: 101.126 | Q7: 101.738 | R7: 102.041 | S7: 102.484 | T7: 100 | U7: 99.175 | V7: 96.511 | W7: 97.677 | X7: 99.177 | Y7: 95.192 | Z7: 95.546 | AA7: 95.286
C9: 1995 | D9: 1996 | E9: 1997 | F9: 1998 | G9: 1999 | H9: 2000 | I9: 2001 | J9: 2002 | K9: 2003 | L9: 2004 | M9: 2005 | N9: 2006 | O9: 2007 | P9: 2008 | Q9: 2009 | R9: 2010 | S9: 2011 | T9: 2012 | U9: 2013 | V9: 2014 | W9: 2015 | X9: 2016 | Y9: 2017
B10: Indicateur basé sur l'indice des prix à la consommation | C10: 100 | D10: =C10*F4/E4 -> 99.36623328 | E10: =D10*G4/F4 -> 94.9149541 | F10: 96.21044783 | G10: 94.41912484 | H10: 89.52048092 | I10: 89.36483527 | J10: 91.01169672 | K10: 96.00074561 | L10: 97.65599515 | M10: 96.34279323 | N10: 95.72859872 | O10: 96.06785032 | P10: 96.75287758 | Q10: 96.96723985 | R10: 93.20098793 | S10: =R10*U4/T4 -> 92.51036861 | T10: =S10*V4/U4 -> 89.79355981 | U10: =T10*W4/V4 -> 90.77496621 | V10: =U10*X4/W4 -> 91.16547835 | W10: =V10*Y4/X4 -> 87.41227457
B11: Indicateur basé sur le déflateur du PIB | C11: 100 | D11: =C11*F5/E5 -> 97.80123131 | E11: =D11*G5/F5 -> 92.7880387 | F11: =E11*H5/G5 -> 94.54705365 | G11: =F11*I5/H5 -> 93.49164468 | H11: =G11*J5/I5 -> 87.86279683 | I11: =H11*K5/J5 -> 87.77484609 | J11: =I11*L5/K5 -> 89.18205805 | K11: =J11*M5/L5 -> 93.40369393 | L11: =K11*N5/M5 -> 93.66754617 | M11: =L11*O5/N5 -> 91.82058047 | N11: =M11*P5/O5 -> 91.02902375 | O11: =N11*Q5/P5 -> 91.64467898 | P11: =O11*R5/Q5 -> 92.17238347 | Q11: =P11*S5/R5 -> 92.17238347 | R11: =Q11*T5/S5 -> 87.95074758 | S11: 86.71943712 | T11: 84.25681618 | U11: 85.31222515 | V11: 85.66402814 | W11: 83.02550572
B12: Indicateur basé sur le prix des exportations | C12: 100 | D12: 99.83007647 | E12: 94.64740867 | F12: 97.02633815 | G12: 93.79779099 | H12: 85.47153781 | I12: 84.9617672 | J12: 86.83092608 | K12: 91.92863212 | L12: 92.18351742 | M12: 89.29481733 | N12: 87.85046729 | O12: 89.54970263 | P12: 89.20985556 | Q12: 91.07901444 | R12: 84.9617672 | S12: 82.49787596 | T12: 79.5242141 | U12: 81.81818182 | V12: 82.49787596 | W12: 79.86406117
B13: Indicateur basé sur le coût salarial unitaire | C13: 100 | D13: 99.57680789 | E13: 95.02577446 | F13: 96.41710442 | G13: 95.49118759 | H13: 90.44332073 | I13: 90.70253817 | J13: 93.27212922 | K13: 98.55859394 | L13: 99.86449998 | M13: 99.34410133 | N13: 99.29402523 | O13: 99.89493839 | P13: 100.1924493 | Q13: 100.627424 | R13: 98.18842358 | S13: 97.37836909 | T13: 94.76262949 | U13: 95.9075065 | V13: 97.38033286 | W13: 93.46752418

Sheet Graph hyper 5
C2: 1960 | D2: 1961 | E2: 1962 | F2: 1963 | G2: 1964 | H2: 1965 | I2: 1966 | J2: 1967 | K2: 1968 | L2: 1969 | M2: 1970 | N2: 1971 | O2: 1972 | P2: 1973 | Q2: 1974 | R2: 1975 | S2: 1976 | T2: 1977 | U2: 1978 | V2: 1979 | W2: 1980 | X2: 1981 | Y2: 1982 | Z2: 1983 | AA2: 1984 | AB2: 1985 | AC2: 1986 | AD2: 1987 | AE2: 1988 | AF2: 1989 | AG2: 1990 | AH2: 1991 | AI2: 1992 | AJ2: 1993 | AK2: 1994 | AL2: 1995 | AM2: 1996 | AN2: 1997 | AO2: 1998 | AP2: 1999 | AQ2: 2000 | AR2: 2001 | AS2: 2002 | AT2: 2003 | AU2: 2004 | AV2: 2005 | AW2: 2006 | AX2: 2007 | AY2: 2008 | AZ2: 2009 | BA2: 2010 | BB2: 2011 | BC2: 2012 | BD2: 2013 | BE2: 2014 | BF2: 2015 | BG2: 2016 | BH2: 2017
B3: Allemagne | C3: 25.5301637 | D3: 27.265604 | E3: 28.5139336 | F3: 29.4872613 | G3: 29.9393069 | H3: 31.2889366 | I3: 32.6560559 | J3: 32.7317636 | K3: 33.14915 | L3: 34.313549 | M3: 38.3647517 | N3: 41.6647372 | O3: 44.0035242 | P3: 47.5160315 | Q3: 51.8715175 | R3: 54.5522056 | S3: 55.7965646 | T3: 57.6167203 | U3: 59.4891679 | V3: 61.4959102 | W3: 65.7346833 | X3: 68.4794242 | Y3: 70.881861 | Z3: 71.3164182 | AA3: 72.0006586 | AB3: 73.0538064 | AC3: 75.11043 | AD3: 77.2344823 | AE3: 77.4583755 | AF3: 77.9070016 | AG3: 79.871615 | AH3: 82.7252323 | AI3: 88.3347953 | AJ3: 91.6430827 | AK3: 92.0620633 | AL3: 94.0214292 | AM3: 94.2638377 | AN3: 93.127245 | AO3: 93.2711969 | AP3: 93.9894166 | AQ3: 94.6220378 | AR3: 94.5463624 | AS3: 95.3070997 | AT3: 96.4014413 | AU3: 95.8008473 | AV3: 95.3341904 | AW3: 93.5917763 | AX3: 93.0200894 | AY3: 95.2027096 | AZ3: 101.166149 | BA3: 100 | BB3: 100.6723462 | BC3: 104.0033146 | BD3: 106.2506049 | BE3: 108.2769085 | BF3: 109.9998528 | BG3: 111.5383144 | BH3: 113.92818
B4: France | C4: 11.5117634 | D4: 12.1266094 | E4: 12.7042196 | F4: 13.5269551 | G4: 13.9651926 | H4: 14.2619549 | I4: 14.4723462 | J4: 14.8004824 | K4: 15.8121102 | L4: 16.6379624 | M4: 17.5670492 | N4: 18.6222692 | O4: 19.7044848 | P4: 21.1141999 | Q4: 24.0099279 | R4: 28.4900503 | S4: 31.5705602 | T4: 34.5210234 | U4: 37.4512936 | V4: 40.9181612 | W4: 46.1262285 | X4: 51.6458448 | Y4: 57.5519315 | Z4: 62.334994 | AA4: 65.7847971 | AB4: 68.3143242 | AC4: 69.8622308 | AD4: 70.809308 | AE4: 71.1611692 | AF4: 72.1956008 | AG4: 74.4623452 | AH4: 76.5362846 | AI4: 77.7922512 | AJ4: 79.1629388 | AK4: 78.5347315 | AL4: 79.3032649 | AM4: 80.112501 | AN4: 80.0146306 | AO4: 79.8722932 | AP4: 80.4932541 | AQ4: 81.4470521 | AR4: 83.2217363 | AS4: 85.5736309 | AT4: 87.3229698 | AU4: 88.0064361 | AV4: 89.8384661 | AW4: 91.5312289 | AX4: 92.9888324 | AY4: 95.6787635 | AZ4: 99.0520554 | BA4: 100 | BB4: 100.9691955 | BC4: 103.2735788 | BD4: 104.2360043 | BE4: 105.8208457 | BF4: 105.8968306 | BG4: 106.3106599 | BH4: 107.0054302
B5: Espagne | C5: 2.8153038 | D5: 2.8483428 | E5: 3.0271829 | F5: 3.389103 | G5: 3.6460977 | H5: 3.9865497 | I5: 4.4094102 | J5: 4.8857851 | K5: 5.0292277 | L5: 5.2062199 | M5: 5.4990677 | N5: 6.0010826 | O5: 6.5535176 | P5: 7.3381681 | Q5: 8.4852985 | R5: 10.1687546 | S5: 12.0151111 | T5: 14.7067002 | U5: 17.7732358 | V5: 20.7807466 | W5: 23.3239171 | X5: 26.3171559 | Y5: 29.3072699 | Z5: 32.6683704 | AA5: 34.6168354 | AB5: 36.5414337 | AC5: 39.6457704 | AD5: 42.1323714 | AE5: 44.5835341 | AF5: 47.3019603 | AG5: 52.0755335 | AH5: 56.5365826 | AI5: 61.4432751 | AJ5: 64.7604391 | AK5: 65.2728271 | AL5: 67.0975661 | AM5: 68.8121721 | AN5: 70.2642578 | AO5: 71.5895933 | AP5: 73.097753 | AQ5: 74.9105166 | AR5: 77.3166588 | AS5: 79.7410686 | AT5: 82.2516081 | AU5: 84.6723443 | AV5: 87.6739253 | AW5: 90.6815394 | AX5: 94.4755068 | AY5: 100.0174158 | AZ5: 101.6629274 | BA5: 100 | BB5: 99.1188614 | BC5: 96.2212878 | BD5: 96.1686614 | BE5: 95.3140867 | BF5: 95.66432 | BG5: 96.1052889 | BH5: 96.9807358
B6: Italie | C6: 3.7150673 | D6: 3.7228365 | E6: 3.9345966 | F6: 4.3904608 | G6: 4.7455009 | H6: 4.8859607 | I6: 4.8978003 | J6: 5.0087771 | K6: 5.0475054 | L6: 5.1405811 | M6: 5.6380165 | N6: 6.2882636 | O6: 6.6628617 | P6: 7.4594214 | Q6: 8.8554626 | R6: 10.9267183 | S6: 12.5406739 | T6: 14.8723184 | U6: 16.8687898 | V6: 19.3440403 | W6: 23.1678957 | X6: 28.1328347 | Y6: 32.7316586 | Z6: 37.6867066 | AA6: 40.9097001 | AB6: 44.1824177 | AC6: 46.5098302 | AD6: 48.8708503 | AE6: 51.2865469 | AF6: 54.0219399 | AG6: 59.0049121 | AH6: 63.7835756 | AI6: 66.3454796 | AJ6: 67.7481575 | AK6: 67.8434157 | AL6: 68.7450567 | AM6: 72.507682 | AN6: 74.3465259 | AO6: 73.0722906 | AP6: 74.2552689 | AQ6: 74.5104401 | AR6: 76.6234701 | AS6: 79.7977397 | AT6: 83.594939 | AU6: 85.6047325 | AV6: 87.3430303 | AW6: 89.2861373 | AX6: 91.0330722 | AY6: 94.9780271 | AZ6: 99.9133478 | BA6: 100 | BB6: 100.6937779 | BC6: 102.6158585 | BD6: 103.3640749 | BE6: 104.708752 | BF6: 105.3777568 | BG6: 105.3530507 | BH6: 106.0443358
B7: Zone euro | C7: NA | D7: NA | E7: NA | F7: NA | G7: NA | H7: NA | I7: NA | J7: NA | K7: NA | L7: NA | M7: NA | N7: NA | O7: NA | P7: NA | Q7: NA | R7: NA | S7: NA | T7: NA | U7: NA | V7: NA | W7: NA | X7: NA | Y7: NA | Z7: NA | AA7: NA | AB7: NA | AC7: NA | AD7: NA | AE7: NA | AF7: NA | AG7: NA | AH7: NA | AI7: NA | AJ7: NA | AK7: NA | AL7: 78.5642371 | AM7: 79.8721368 | AN7: 80.2783454 | AO7: 80.5385333 | AP7: 81.5302641 | AQ7: 82.457445 | AR7: 84.02356 | AS7: 86.1936573 | AT7: 88.3014094 | AU7: 89.0634364 | AV7: 90.4602407 | AW7: 91.3507912 | AX7: 92.7634111 | AY7: 96.2740945 | AZ7: 100.6442473 | BA7: 100 | BB7: 100.5599215 | BC7: 102.4236155 | BD7: 103.5812984 | BE7: 104.686073 | BF7: 105.401275 | BG7: 106.1063018 | BH7: 107.31162
C9: 1999 | D9: 2000 | E9: 2001 | F9: 2002 | G9: 2003 | H9: 2004 | I9: 2005 | J9: 2006 | K9: 2007 | L9: 2008 | M9: 2009 | N9: 2010 | O9: 2011 | P9: 2012 | Q9: 2013 | R9: 2014 | S9: 2015 | V9: 1999-2008 | W9: 2009-2015
B10: Allemagne | C10: =AP3/$AP3*100 -> 100 | D10: =AQ3/$AP3*100 -> 100.6730771 | E10: 100.5925622 | F10: 101.4019484 | G10: 102.5662727 | H10: 101.9272709 | I10: 101.4307715 | J10: 99.57693077 | K10: 98.96868474 | L10: 101.2908826 | M10: 107.6356814 | N10: 106.3949577 | O10: 107.1103001 | P10: 110.6542825 | Q10: 113.0452861 | R10: 115.201171 | S10: 117.0342968 | U10: Allemagne | V10: =AY3/AP3-1 -> 0.01290882574 | W10: =BF3/AZ3-1 -> 0.08731877102
B11: France | C11: =AP4/$AP4*100 -> 100 | D11: 101.1849415 | E11: 103.3897029 | F11: 106.311556 | G11: 108.4848299 | H11: 109.3339275 | I11: 111.6099319 | J11: 113.7129191 | K11: 115.5237584 | L11: 118.8655678 | M11: 123.0563437 | N11: 124.2340133 | O11: 125.4380838 | P11: 128.3009116 | Q11: 129.4965714 | R11: 131.4654835 | S11: 131.5598826 | U11: France | V11: =AY4/AP4-1 -> 0.1886556777 | W11: =BF4/AZ4-1 -> 0.06910280834
B12: Espagne | C12: 100 | D12: 102.479917 | E12: 105.7715944 | F12: 109.0882624 | G12: 112.5227585 | H12: 115.834401 | I12: 119.9406571 | J12: 124.0551668 | K12: 129.2454322 | L12: 136.8269361 | M12: 139.0780472 | N12: 136.8031108 | O12: 135.5976857 | P12: 131.6337149 | Q12: 131.5617204 | R12: 130.3926356 | S12: 130.8717656 | U12: Espagne | V12: 0.3682693612 | W12: -0.05900486592
B13: Italie | C13: 100 | D13: 100.3436405 | E13: 103.1892702 | F13: 107.4640775 | G13: 112.5777877 | H13: 115.2843883 | I13: 117.625364 | J13: 120.2421574 | K13: 122.5947647 | L13: 127.9074583 | M13: 134.5538832 | N13: 134.6705782 | O13: 135.6048929 | P13: 138.19337 | Q13: 139.2009974 | R13: 141.0118818 | S13: 141.9128344 | U13: Italie | V13: 0.2790745829 | W13: 0.05469148137
B14: Zone euro | C14: 100 | D14: 101.137223 | E14: 103.0581232 | F14: 105.7198309 | G14: 108.3050697 | H14: 109.2397251 | I14: 110.9529592 | J14: 112.0452536 | K14: 113.7778862 | L14: 118.0838742 | M14: 123.4440344 | N14: 122.6538404 | O14: 123.3406056 | P14: 125.6264979 | Q14: 127.0464404 | R14: 128.4014889 | S14: 129.2787116 | U14: Zone euro | V14: 0.1808387421 | W14: 0.04726576856
M61: é

Sheet Graph Hyper 6
W1: 1997 | X1: 1998 | Y1: 1999 | Z1: 2000 | AA1: 2001 | AB1: 2002 | AC1: 2003 | AD1: 2004 | AE1: 2005 | AF1: 2006 | AG1: 2007 | AH1: 2008 | AI1: 2009 | AJ1: 2010 | AK1: 2011 | AL1: 2012 | AM1: 2013 | AN1: 2014 | AO1: 2015 | AP1: 2016 | AQ1: 2017 | AR1: 2018 | AS1: 2019 | AT1: 2020 | AU1: Estimates Start After
W2: 3.697 | X2: 3.669 | Y2: 4.203 | Z2: 1.182 | AA2: 1.507 | AB2: 1.174 | AC2: 0.867 | AD2: 0.44 | AE2: -0.018 | AF2: 0.036 | AG2: -0.299 | AH2: -0.953 | AI2: -0.831 | AJ2: -0.836 | AK2: -1.032 | AL2: -1.194 | AM2: -0.806 | AN2: -0.926 | AO2: -0.216 | AP2: -0.37 | AQ2: -0.363 | AR2: -0.385 | AS2: -0.392 | AT2: -0.268 | AU2: 2014
B5: 1980 | C5: 1981 | D5: 1982 | E5: 1983 | F5: 1984 | G5: 1985 | H5: 1986 | I5: 1987 | J5: 1988 | K5: 1989 | L5: 1990 | M5: 1991 | N5: 1992 | O5: 1993 | P5: 1994 | Q5: 1995 | R5: 1996 | S5: 1997 | T5: 1998 | U5: 1999 | V5: 2000 | W5: 2001 | X5: 2002 | Y5: 2003 | Z5: 2004 | AA5: 2005 | AB5: 2006 | AC5: 2007 | AD5: 2008 | AE5: 2009 | AF5: 2010 | AG5: 2011 | AH5: 2012 | AI5: 2013 | AJ5: 2014 | AK5: 2015
A6: France | B6: -0.593 | C6: -0.768 | D6: -2.055 | E6: -0.835 | F6: -0.142 | G6: -0.063 | H6: 0.303 | I6: -0.474 | J6: -0.455 | K6: -0.449 | L6: -0.772 | M6: -0.483 | N6: 0.272 | O6: 0.69 | P6: 0.582 | Q6: 0.455 | R6: 1.199 | S6: 3.697 | T6: 3.669 | U6: 4.203 | V6: 1.182 | W6: 1.507 | X6: 1.174 | Y6: 0.867 | Z6: 0.44 | AA6: -0.018 | AB6: 0.036 | AC6: -0.299 | AD6: -0.953 | AE6: -0.831 | AF6: -0.836 | AG6: -1.032 | AH6: -1.194 | AI6: -0.806 | AJ6: -0.926 | AK6: -0.216
A7: Allemagne | B7: -2.198 | C7: -1.097 | D7: 0.473 | E7: 0.291 | F7: 1.162 | G7: 2.372 | H7: 3.818 | I7: 3.502 | J7: 4.027 | K7: 4.324 | L7: 2.759 | M7: -1.427 | N7: -1.188 | O7: -1.038 | P7: -1.499 | Q7: -1.243 | R7: -0.674 | S7: -0.508 | T7: -0.709 | U7: -1.419 | V7: -1.746 | W7: -0.363 | X7: 1.888 | Y7: 1.406 | Z7: 4.441 | AA7: 4.613 | AB7: 5.68 | AC7: 6.748 | AD7: 5.595 | AE7: 5.736 | AF7: 5.624 | AG7: 6.087 | AH7: 6.801 | AI7: 6.372 | AJ7: 7.392 | AK7: 8.492

Sheet Graph Hyper 7
A1: Secteur exposé
B2: 1998 | F2: 1999 | J2: 2000 | N2: 2001 | R2: 2002 | V2: 2003 | Z2: 2004 | AD2: 2005 | AH2: 2006 | AL2: 2007 | AP2: 2008 | AT2: 2009 | AX2: 2010 | BB2: 2011 | BF2: 2012 | BJ2: 2013 | BN2: 2014
A3: France | B3: 100 | C3: 98.43349224 | D3: 98.43381239 | E3: 97.63452169 | F3: 98.2410376 | G3: 97.67304663 | H3: 97.56016697 | I3: 96.78770806 | J3: 96.39485979 | K3: 96.28086814 | L3: 97.29355211 | M3: 98.19114198 | N3: 97.59073193 | O3: 99.30144163 | P3: 99.32730165 | Q3: 100.2357239 | R3: 98.44655682 | S3: 97.58365645 | T3: 97.62300105 | U3: 98.04641568 | V3: 98.38603777 | W3: 99.55601104 | X3: 99.26686083 | Y3: 97.65028827 | Z3: 97.12221442 | AA3: 96.54861306 | AB3: 96.55493059 | AC3: 96.71726118 | AD3: 97.59860142 | AE3: 98.6850142 | AF3: 99.09734378 | AG3: 99.35310717 | AH3: 99.13773509 | AI3: 98.27845231 | AJ3: 99.02575177 | AK3: 100.1351853 | AL3: 98.24242963 | AM3: 98.07987439 | AN3: 98.40987088 | AO3: 100.1454876 | AP3: 100.4099154 | AQ3: 101.6153996 | AR3: 102.0902069 | AS3: 103.7724678 | AT3: 105.0361983 | AU3: 103.8255671 | AV3: 103.4001776 | AW3: 103.1463619 | AX3: 104.3755231 | AY3: 104.2223048 | AZ3: 104.264246 | BA3: 104.0113577 | BB3: 101.9280876 | BC3: 102.3460581 | BD3: 102.1719966 | BE3: 102.385782 | BF3: 103.1162088 | BG3: 104.2249606 | BH3: 103.8338644 | BI3: 104.6863237 | BJ3: 104.5973062 | BK3: 103.5272515 | BL3: 104.2548487 | BM3: 103.9822443 | BN3: 104.6374438
A4: Allemagne | B4: 100 | C4: 101.4229617 | D4: 101.8543422 | E4: 103.3353636 | F4: 101.4443461 | G4: 101.6138274 | H4: 100.7600496 | I4: 101.1442129 | J4: 102.4753129 | K4: 103.0916234 | L4: 103.0238631 | M4: 103.0115655 | N4: 101.2391479 | O4: 101.7660155 | P4: 101.6090499 | Q4: 102.8218627 | R4: 103.1904868 | S4: 102.924353 | T4: 103.7510119 | U4: 103.8815654 | V4: 105.9556229 | W4: 107.1271069 | X4: 107.2887901 | Y4: 106.3283953 | Z4: 105.9498381 | AA4: 104.2912476 | AB4: 104.3432808 | AC4: 105.189789 | AD4: 106.1272648 | AE4: 104.9408218 | AF4: 104.118557 | AG4: 103.9437324 | AH4: 103.437141 | AI4: 101.7276122 | AJ4: 100.8919436 | AK4: 100.5635534 | AL4: 99.40012386 | AM4: 99.71762191 | AN4: 98.41714423 | AO4: 99.22360109 | AP4: 100.391556 | AQ4: 101.358917 | AR4: 102.6638515 | AS4: 108.6467568 | AT4: 116.2468538 | AU4: 114.5627221 | AV4: 112.3414846 | AW4: 111.4965364 | AX4: 107.2229288 | AY4: 105.0651211 | AZ4: 105.3360021 | BA4: 104.7993445 | BB4: 104.8003416 | BC4: 105.4787487 | BD4: 104.9079139 | BE4: 106.578867 | BF4: 105.3760891 | BG4: 106.5208348 | BH4: 106.245133 | BI4: 108.8105155 | BJ4: 109.2109197 | BK4: 109.8177801 | BL4: 109.7962362 | BM4: 109.4115981 | BN4: 110.4951015
A6: Secteur abrité
B7: 1998 | F7: 1999 | J7: 2000 | N7: 2001 | R7: 2002 | V7: 2003 | Z7: 2004 | AD7: 2005 | AH7: 2006 | AL7: 2007 | AP7: 2008 | AT7: 2009 | AX7: 2010 | BB7: 2011 | BF7: 2012 | BJ7: 2013 | BN7: 2014
A8: France | B8: 100 | C8: 100.6866959 | D8: 101.5487902 | E8: 102.1663427 | F8: 102.7097994 | G8: 103.4381211 | H8: 103.8549571 | I8: 104.4878186 | J8: 105.0911282 | K8: 105.6924912 | L8: 106.6113508 | M8: 107.0584862 | N8: 107.060808 | O8: 108.4578162 | P8: 109.7821151 | Q8: 111.1809387 | R8: 112.4927194 | S8: 114.1269677 | T8: 115.0616085 | U8: 116.1724208 | V8: 117.0138459 | W8: 117.7260168 | X8: 118.3462457 | Y8: 118.7054687 | Z8: 119.8487565 | AA8: 120.1206449 | AB8: 120.7043857 | AC8: 121.0292817 | AD8: 122.0517744 | AE8: 122.7533561 | AF8: 123.5342246 | AG8: 124.2547515 | AH8: 124.6671582 | AI8: 125.0546947 | AJ8: 126.7589444 | AK8: 127.1990465 | AL8: 127.9116862 | AM8: 128.4620421 | AN8: 129.2507186 | AO8: 130.0134372 | AP8: 130.39016 | AQ8: 131.6684604 | AR8: 132.6487865 | AS8: 134.4783698 | AT8: 135.6121826 | AU8: 136.2691319 | AV8: 137.2406064 | AW8: 137.9760262 | AX8: 138.226539 | AY8: 138.48037 | AZ8: 138.6339689 | BA8: 139.0013279 | BB8: 139.6819528 | BC8: 140.7760034 | BD8: 141.2119123 | BE8: 141.8788841 | BF8: 141.8762648 | BG8: 142.4038398 | BH8: 142.8367089 | BI8: 143.4168617 | BJ8: 143.662051 | BK8: 143.8891014 | BL8: 144.3639982 | BM8: 144.8741399 | BN8: 145.5913723
A9: Allemagne | B9: 100 | C9: 100.8771963 | D9: 101.4439461 | E9: 101.2663362 | F9: 102.1242008 | G9: 103.6572284 | H9: 103.569558 | I9: 102.8956163 | J9: 102.4352722 | K9: 102.2089023 | L9: 103.3868487 | M9: 103.7569478 | N9: 102.5020622 | O9: 102.6068271 | P9: 102.6986464 | Q9: 103.0478628 | R9: 102.5580257 | S9: 102.5709241 | T9: 102.5323771 | U9: 103.0030088 | V9: 103.0473735 | W9: 102.3928282 | X9: 102.1588232 | Y9: 102.0924015 | Z9: 102.7684437 | AA9: 102.1826608 | AB9: 102.3696293 | AC9: 101.7951676 | AD9: 101.4283662 | AE9: 100.9948968 | AF9: 100.1866673 | AG9: 99.82154758 | AH9: 99.3842614 | AI9: 99.21930784 | AJ9: 99.43402448 | AK9: 98.02977316 | AL9: 98.97563946 | AM9: 98.48506431 | AN9: 98.83888505 | AO9: 98.68552967 | AP9: 99.13676873 | AQ9: 100.2919098 | AR9: 101.2260008 | AS9: 102.5896312 | AT9: 105.3288373 | AU9: 105.8120571 | AV9: 106.7141481 | AW9: 106.544368 | AX9: 108.598446 | AY9: 108.8875278 | AZ9: 109.0226011 | BA9: 109.8839005 | BB9: 108.8201096 | BC9: 110.4569455 | BD9: 110.7382164 | BE9: 111.0743031 | BF9: 113.5170874 | BG9: 114.7491528 | BH9: 115.6138616 | BI9: 116.5932655 | BJ9: 117.0076221 | BK9: 117.4012613 | BL9: 118.2895956 | BM9: 119.19464 | BN9: 119.1723641

Sheet Graph Hyper 8
B1: Delta_val | C1: Delta_vol | D1: Delta_prix | E1: Indice prix | F1: VA par heure travaillée (constant) | G1: Rémunération (constant prix prod) | H1: Rémunération par heure travaillées (courant) | L1: Valeur ajoutée par heure travaillée | M1: Rémunération par heure travaillée
A2: 2015-12-01 | B2: =[4]branche!T4/[4]branche!T5-1 -> 0.004620216049 | C2: =[4]branche!C4/[4]branche!C5-1 -> 0.002707226981 | D2: =B2-C2 -> 0.001912989068 | E2: =E3*(1+D2) -> 125.7098912 | F2: =[4]branche!C4/[4]branche!P4 ->  | K2: 2015-12-01
A3: 2015-09-01 | B3: =[4]branche!T5/[4]branche!T6-1 -> 0.006609254059 | C3: =[4]branche!C5/[4]branche!C6-1 -> 0.002514096595 | D3: =B3-C3 -> 0.004095157464 | E3: 125.4698687 | F3: =[4]branche!C5/[4]branche!P5 -> 46.65304022 | G3: =(1+([4]branche!G5/[4]branche!G6-1)-'Graph Hyper 8'!D3)*'Graph Hyper 8'!G4 -> 227797.3809 | H3: =G3/[4]branche!P5 -> 22.54772203 | K3: 2015-09-01 | L3: =L4*F3/F4 -> 116.4830036 | M3: =M4*H3/H4 -> 120.3714147 | N3: =L3/L7-1 -> 0.005137722465
A4: 2015-06-01 | B4: =[4]branche!T6/[4]branche!T7-1 -> 0.002244892317 | C4: =[4]branche!C6/[4]branche!C7-1 -> 1.701617174e-05 | D4: 0.002227876145 | E4: 124.9581454 | F4: =[4]branche!C6/[4]branche!P6 -> 46.61540597 | G4: =(1+([4]branche!G6/[4]branche!G7-1)-'Graph Hyper 8'!D4)*'Graph Hyper 8'!G5 -> 227783.5583 | H4: =G4/[4]branche!P6 -> 22.58480406 | K4: 2015-06-01 | L4: 116.3890386 | M4: 120.5693777 | N4: =L4/L8-1 -> 0.005933140371
A5: 2015-03-01 | B5: =[4]branche!T7/[4]branche!T8-1 -> 0.01142540769 | C5: =[4]branche!C7/[4]branche!C8-1 -> 0.006066688637 | D5: 0.005358719054 | E5: 124.680373 | F5: =[4]branche!C7/[4]branche!P7 -> 46.66828799 | G5: =(1+([4]branche!G7/[4]branche!G8-1)-'Graph Hyper 8'!D5)*'Graph Hyper 8'!G6 -> 227725.8328 | H5: =G5/[4]branche!P7 -> 22.60507964 | K5: 2015-03-01 | L5: 116.5210741 | M5: 120.6776192 | N5: 0.004851475281
A6: 2014-12-01 | B6: =[4]branche!T8/[4]branche!T9-1 -> 0.004994660622 | C6: =[4]branche!C8/[4]branche!C9-1 -> 0.0004260265849 | D6: 0.004568634037 | E6: 124.0158071 | F6: =[4]branche!C8/[4]branche!P8 -> 46.42973532 | G6: =(1+([4]branche!G8/[4]branche!G9-1)-'Graph Hyper 8'!D6)*'Graph Hyper 8'!G7 -> 228033.51 | H6: =G6/[4]branche!P8 -> 22.65653664 | K6: 2014-12-01 | L6: 115.9254574 | M6: 120.9523234 | N6: -0.00240530919
A7: 2014-09-01 | B7: =[4]branche!T9/[4]branche!T10-1 -> 0.004087682963 | C7: =[4]branche!C9/[4]branche!C10-1 -> 0.002575621315 | D7: 0.001512061648 | E7: 123.451801 | F7: =[4]branche!C9/[4]branche!P9 -> 46.41457501 | G7: =(1+([4]branche!G9/[4]branche!G10-1)-'Graph Hyper 8'!D7)*'Graph Hyper 8'!G8 -> 228389.5014 | H7: =G7/[4]branche!P9 -> 22.69416139 | K7: 2014-09-01 | L7: 115.8876052 | M7: 121.1531837 | N7: -0.00231674468
A8: 2014-06-01 | B8: =[4]branche!T10/[4]branche!T11-1 -> -0.0003723239218 | C8: =[4]branche!C10/[4]branche!C11-1 -> -0.001303280709 | D8: 0.0009309567873 | E8: 123.2654161 | F8: =[4]branche!C10/[4]branche!P10 -> 46.34046151 | G8: =(1+([4]branche!G10/[4]branche!G11-1)-'Graph Hyper 8'!D8)*'Graph Hyper 8'!G9 -> 228217.4117 | H8: =G8/[4]branche!P10 -> 22.69916568 | K8: 2014-06-01 | L8: 115.7025591 | M8: 121.1798993 | N8: -0.004586553743
A9: 2014-03-01 | B9: =[4]branche!T11/[4]branche!T12-1 -> 0.001627330105 | C9: =[4]branche!C11/[4]branche!C12-1 -> -0.0006983105597 | D9: 0.002325640665 | E9: 123.1507681 | F9: =[4]branche!C11/[4]branche!P11 -> 46.44297106 | G9: =(1+([4]branche!G11/[4]branche!G12-1)-'Graph Hyper 8'!D9)*'Graph Hyper 8'!G10 -> 227714.2846 | H9: =G9/[4]branche!P11 -> 22.66964177 | K9: 2014-03-01 | L9: 115.9585043 | M9: 121.0222854 | N9: 0.007215476355
A10: 2013-12-01 | B10: =[4]branche!T12/[4]branche!T13-1 -> 0.001255975786 | C10: =[4]branche!C12/[4]branche!C13-1 -> 0.001703690829 | D10: -0.0004477150438 | E10: 122.8650281 | F10: =[4]branche!C12/[4]branche!P12 -> 46.54168245 | G10: =(1+([4]branche!G12/[4]branche!G13-1)-'Graph Hyper 8'!D10)*'Graph Hyper 8'!G11 -> 226856.3754 | H10: =G10/[4]branche!P12 -> 22.61643126 | K10: 2013-12-01 | L10: 116.2049663 | M10: 120.7382201 | N10: 0.01265247148
A11: 2013-09-01 | B11: =[4]branche!T13/[4]branche!T14-1 -> -0.0006275937716 | C11: =[4]branche!C13/[4]branche!C14-1 -> 4.935368136e-05 | D11: -0.0006769474529 | E11: 122.9200613 | F11: =[4]branche!C13/[4]branche!P13 -> 46.52235543 | G11: =(1+([4]branche!G13/[4]branche!G14-1)-'Graph Hyper 8'!D11)*'Graph Hyper 8'!G12 -> 225826.3184 | H11: =G11/[4]branche!P13 -> 22.54273121 | K11: 2013-09-01 | L11: 116.1567107 | M11: 120.3447711 | N11: 0.01469145736
A12: 2013-06-01 | B12: =[4]branche!T14/[4]branche!T15-1 -> 0.008599550634 | C12: =[4]branche!C14/[4]branche!C15-1 -> 0.007780704372 | D12: 0.0008188462614 | E12: 123.0033281 | F12: =[4]branche!C14/[4]branche!P14 -> 46.55398386 | G12: =(1+([4]branche!G14/[4]branche!G15-1)-'Graph Hyper 8'!D12)*'Graph Hyper 8'!G13 -> 224701.1338 | H12: =G12/[4]branche!P14 -> 22.44676874 | K12: 2013-06-01 | L12: 116.2356803 | M12: 119.8324737 | N12: 0.0203945235
A13: 2013-03-01 | B13: =[4]branche!T15/[4]branche!T16-1 -> 0.004444902682 | C13: =[4]branche!C15/[4]branche!C16-1 -> 0.000800768738 | D13: 0.003644133944 | E13: 122.9026897 | F13: =[4]branche!C15/[4]branche!P15 -> 46.11026354 | G13: =(1+([4]branche!G15/[4]branche!G16-1)-'Graph Hyper 8'!D13)*'Graph Hyper 8'!G14 -> 223880.4617 | H13: =G13/[4]branche!P15 -> 22.32397636 | K13: 2013-03-01 | L13: 115.1278024 | M13: 119.1769444 | N13: 0.01013853908
A14: 2012-12-01 | B14: =[4]branche!T16/[4]branche!T17-1 -> 0.001326827925 | C14: =[4]branche!C16/[4]branche!C17-1 -> -8.656209965e-05 | D14: 0.001413390025 | E14: 122.456442 | F14: =[4]branche!C16/[4]branche!P16 -> 45.96017268 | G14: =(1+([4]branche!G16/[4]branche!G17-1)-'Graph Hyper 8'!D14)*'Graph Hyper 8'!G15 -> 224464.7089 | H14: =G14/[4]branche!P16 -> 22.32724341 | K14: 2012-12-01 | L14: 114.7530565 | M14: 119.1943856 | N14: 0.006849843599
A15: 2012-09-01 | B15: =[4]branche!T17/[4]branche!T18-1 -> 0.006022068737 | C15: =[4]branche!C17/[4]branche!C18-1 -> 0.003374285081 | D15: 0.002647783656 | E15: 122.2836076 | F15: =[4]branche!C17/[4]branche!P17 -> 45.84877018 | G15: =(1+([4]branche!G17/[4]branche!G18-1)-'Graph Hyper 8'!D15)*'Graph Hyper 8'!G16 -> 224112.0162 | H15: =G15/[4]branche!P17 -> 22.23620271 | K15: 2012-09-01 | L15: 114.4749075 | M15: 118.7083632 | N15: 0.007032762388
A16: 2012-06-01 | B16: =[4]branche!T18/[4]branche!T19-1 -> 0.0005176541224 | C16: =[4]branche!C18/[4]branche!C19-1 -> -0.002086651282 | D16: 0.002604305405 | E16: 121.9606821 | F16: =[4]branche!C18/[4]branche!P18 -> 45.62351403 | G16: =(1+([4]branche!G18/[4]branche!G19-1)-'Graph Hyper 8'!D16)*'Graph Hyper 8'!G17 -> 223599.5845 | H16: =G16/[4]branche!P18 -> 22.15085438 | K16: 2012-06-01 | L16: 113.9124894 | M16: 118.2527296 | N16: 0.003776992698
A17: 2012-03-01 | B17: =[4]branche!T19/[4]branche!T20-1 -> 0.003477834358 | C17: =[4]branche!C19/[4]branche!C20-1 -> 0.001038986955 | D17: 0.002438847403 | E17: 121.6438843 | F17: =[4]branche!C19/[4]branche!P19 -> 45.64746494 | G17: =(1+([4]branche!G19/[4]branche!G20-1)-'Graph Hyper 8'!D17)*'Graph Hyper 8'!G18 -> 223243.9307 | H17: =G17/[4]branche!P19 -> 22.08105979 | K17: 2012-03-01 | L17: 113.9722898 | M17: 117.88013 | N17: 0.002178972067
A18: 2011-12-01 | B18: =[4]branche!T20/[4]branche!T21-1 -> 0.005092900799 | C18: =[4]branche!C20/[4]branche!C21-1 -> 0.003078690458 | D18: 0.002014210341 | E18: 121.3479352 | F18: =[4]branche!C20/[4]branche!P20 -> 45.64749448 | G18: =(1+([4]branche!G20/[4]branche!G21-1)-'Graph Hyper 8'!D18)*'Graph Hyper 8'!G19 -> 222515.7585 | H18: =G18/[4]branche!P20 -> 22.03191764 | K18: 2011-12-01 | L18: 113.9723636 | M18: 117.6177837 | N18: 0.009724467342
A19: 2011-09-01 | B19: =[4]branche!T21/[4]branche!T22-1 -> 0.004560449845 | C19: =[4]branche!C21/[4]branche!C22-1 -> 0.002095279625 | D19: 0.00246517022 | E19: 121.1040062 | F19: =[4]branche!C21/[4]branche!P21 -> 45.5285785 | G19: =(1+([4]branche!G21/[4]branche!G22-1)-'Graph Hyper 8'!D19)*'Graph Hyper 8'!G20 -> 221262.4599 | H19: =G19/[4]branche!P21 -> 21.91802475 | K19: 2011-09-01 | L19: 113.675455 | M19: 117.0097645 | N19: 0.008288471894
A20: 2011-06-01 | B20: =[4]branche!T22/[4]branche!T23-1 -> 0.00145467184 | C20: =[4]branche!C22/[4]branche!C23-1 -> 0.0001439212881 | D20: 0.001310750552 | E20: 120.8061984 | F20: =[4]branche!C22/[4]branche!P22 -> 45.45184275 | G20: =(1+([4]branche!G22/[4]branche!G23-1)-'Graph Hyper 8'!D20)*'Graph Hyper 8'!G21 -> 220839.3193 | H20: =G20/[4]branche!P22 -> 21.8849973 | K20: 2011-06-01 | L20: 113.4838617 | M20: 116.8334469 | N20: 0.01073835225
A21: 2011-03-01 | B21: =[4]branche!T23/[4]branche!T24-1 -> 0.01277880719 | C21: =[4]branche!C23/[4]branche!C24-1 -> 0.01181968418 | D21: 0.0009591230168 | E21: 120.6480589 | F21: =[4]branche!C23/[4]branche!P23 -> 45.54821664 | G21: =(1+([4]branche!G23/[4]branche!G24-1)-'Graph Hyper 8'!D21)*'Graph Hyper 8'!G22 -> 219608.4314 | H21: =G21/[4]branche!P23 -> 21.81230137 | K21: 2011-03-01 | L21: 113.7244874 | M21: 116.4453584 | N21: 0.016316921
A22: 2010-12-01 | B22: =[4]branche!T24/[4]branche!T25-1 -> 0.006815222455 | C22: =[4]branche!C24/[4]branche!C25-1 -> 0.004824288163 | D22: 0.001990934293 | E22: 120.5324534 | F22: =[4]branche!C24/[4]branche!P24 -> 45.20787201 | G22: =(1+([4]branche!G24/[4]branche!G25-1)-'Graph Hyper 8'!D22)*'Graph Hyper 8'!G23 -> 217812.2909 | H22: =G22/[4]branche!P24 -> 21.72604493 | K22: 2010-12-01 | L22: 112.8747171 | M22: 115.9848769 | N22: 0.01032317277
A23: 2010-09-01 | B23: =[4]branche!T25/[4]branche!T26-1 -> 0.01033959744 | C23: =[4]branche!C25/[4]branche!C26-1 -> 0.004635053567 | D23: 0.005704543873 | E23: 120.292958 | F23: =[4]branche!C25/[4]branche!P25 -> 45.15431821 | G23: =(1+([4]branche!G25/[4]branche!G26-1)-'Graph Hyper 8'!D23)*'Graph Hyper 8'!G24 -> 216937.2925 | H23: =G23/[4]branche!P25 -> 21.71740121 | K23: 2010-09-01 | L23: 112.7410043 | M23: 115.9387322 | N23: 0.0157414972
A24: 2010-06-01 | B24: =[4]branche!T26/[4]branche!T27-1 -> 0.01031413921 | C24: =[4]branche!C26/[4]branche!C27-1 -> 0.005950967256 | D24: 0.004363171955 | E24: 119.6106339 | F24: =[4]branche!C26/[4]branche!P26 -> 44.96895032 | G24: =(1+([4]branche!G26/[4]branche!G27-1)-'Graph Hyper 8'!D24)*'Graph Hyper 8'!G25 -> 217074.5816 | H24: =G24/[4]branche!P26 -> 21.74224576 | K24: 2010-06-01 | L24: 112.278179 | M24: 116.0713652 | N24: 0.01643648709
A25: 2010-03-01 | B25: =[4]branche!T27/[4]branche!T28-1 -> 0.008458423171 | C25: =[4]branche!C27/[4]branche!C28-1 -> 0.002563048523 | D25: 0.005895374648 | E25: 119.0910193 | F25: =[4]branche!C27/[4]branche!P27 -> 44.81694214 | G25: =(1+([4]branche!G27/[4]branche!G28-1)-'Graph Hyper 8'!D25)*'Graph Hyper 8'!G26 -> 216483.9402 | H25: =G25/[4]branche!P27 -> 21.73839096 | K25: 2010-03-01 | L25: 111.898646 | M25: 116.0507863 | N25: 0.0199359859
A26: 2009-12-01 | B26: =[4]branche!T28/[4]branche!T29-1 -> 0.01002749073 | C26: =[4]branche!C28/[4]branche!C29-1 -> 0.00623169144 | D26: 0.003795799286 | E26: 118.393048 | F26: =[4]branche!C28/[4]branche!P28 -> 44.74595181 | G26: =(1+([4]branche!G28/[4]branche!G29-1)-'Graph Hyper 8'!D26)*'Graph Hyper 8'!G27 -> 216253.4771 | H26: =G26/[4]branche!P28 -> 21.73642082 | K26: 2009-12-01 | L26: 111.7213978 | M26: 116.0402687 | N26: 0.01118724281
A27: 2009-09-01 | B27: =[4]branche!T29/[4]branche!T30-1 -> 0.0001656342134 | C27: =[4]branche!C29/[4]branche!C30-1 -> 0.002612954179 | D27: -0.002447319966 | E27: 117.9453511 | F27: =[4]branche!C29/[4]branche!P29 -> 44.45453723 | G27: =(1+([4]branche!G29/[4]branche!G30-1)-'Graph Hyper 8'!D27)*'Graph Hyper 8'!G28 -> 215050.5199 | H27: =G27/[4]branche!P29 -> 21.60855698 | K27: 2009-09-01 | L27: 110.9937958 | M27: 115.3576654 | N27: -0.005375040194
A28: 2009-06-01 | B28: =[4]branche!T30/[4]branche!T31-1 -> -0.004794784461 | C28: =[4]branche!C30/[4]branche!C31-1 -> 0.0002176046712 | D28: -0.005012389133 | E28: 118.2347092 | F28: =[4]branche!C30/[4]branche!P30 -> 44.24177102 | G28: =(1+([4]branche!G30/[4]branche!G31-1)-'Graph Hyper 8'!D28)*'Graph Hyper 8'!G29 -> 213221.0676 | H28: =G28/[4]branche!P30 -> 21.37790308 | K28: 2009-06-01 | L28: 110.4625625 | M28: 114.1263154 | N28: -0.008890620754
A29: 2009-03-01 | B29: =[4]branche!T31/[4]branche!T32-1 -> -0.01724860632 | C29: =[4]branche!C31/[4]branche!C32-1 -> -0.0153313573 | D29: -0.00191724902 | E29: 118.8303331 | F29: =[4]branche!C31/[4]branche!P31 -> 43.94093625 | G29: =(1+([4]branche!G31/[4]branche!G32-1)-'Graph Hyper 8'!D29)*'Graph Hyper 8'!G30 -> 212022.7417 | H29: =G29/[4]branche!P31 -> 21.11780296 | K29: 2009-03-01 | L29: 109.7114403 | M29: 112.7377663 | N29: -0.02029346428
A30: 2008-12-01 | B30: =[4]branche!T32/[4]branche!T33-1 -> -0.01232402465 | C30: =[4]branche!C32/[4]branche!C33-1 -> -0.01554133186 | D30: 0.003217307209 | E30: 119.0585981 | F30: =[4]branche!C32/[4]branche!P32 -> 44.25090618 | G30: =(1+([4]branche!G32/[4]branche!G33-1)-'Graph Hyper 8'!D30)*'Graph Hyper 8'!G31 -> 212919.0161 | H30: =G30/[4]branche!P32 -> 21.02924633 | K30: 2008-12-01 | L30: 110.4853711 | M30: 112.2650051 | N30: -0.008963675488
A31: 2008-09-01 | B31: =[4]branche!T33/[4]branche!T34-1 -> -0.0002159537859 | C31: =[4]branche!C33/[4]branche!C34-1 -> -0.00169342438 | D31: 0.001477470595 | E31: 118.6767784 | F31: =[4]branche!C33/[4]branche!P33 -> 44.69477344 | G31: =(1+([4]branche!G33/[4]branche!G34-1)-'Graph Hyper 8'!D31)*'Graph Hyper 8'!G32 -> 213827.049 | H31: =G31/[4]branche!P33 -> 20.99925844 | K31: 2008-09-01 | L31: 111.593616 | M31: 112.1049143 | N31: 0.0008714675023
A32: 2008-06-01 | B32: =[4]branche!T34/[4]branche!T35-1 -> -0.0004596901688 | C32: =[4]branche!C34/[4]branche!C35-1 -> -0.005419261942 | D32: 0.004959571773 | E32: 118.5016957 | F32: =[4]branche!C34/[4]branche!P34 -> 44.63863621 | G32: =(1+([4]branche!G34/[4]branche!G35-1)-'Graph Hyper 8'!D32)*'Graph Hyper 8'!G33 -> 213103.1906 | H32: =G32/[4]branche!P34 -> 20.86648884 | K32: 2008-06-01 | L32: 111.4534529 | M32: 111.3961214 | N32: -0.001048728626
A33: 2008-03-01 | B33: =[4]branche!T35/[4]branche!T36-1 -> 0.01263319807 | C33: =[4]branche!C35/[4]branche!C36-1 -> 0.00636932886 | D33: 0.006263869209 | E33: 117.9168784 | F33: =[4]branche!C35/[4]branche!P35 -> 44.85112087 | G33: =(1+([4]branche!G35/[4]branche!G36-1)-'Graph Hyper 8'!D33)*'Graph Hyper 8'!G34 -> 212973.8618 | H33: =G33/[4]branche!P35 -> 20.83954145 | K33: 2008-03-01 | L33: 111.9839832 | M33: 111.2522623 | N33: 0.002502935564
A34: 2007-12-01 | B34: =[4]branche!T36/[4]branche!T37-1 -> 0.009180964052 | C34: =[4]branche!C36/[4]branche!C37-1 -> 0.002873443001 | D34: 0.006307521051 | E34: 117.1828603 | F34: =[4]branche!C36/[4]branche!P36 -> 44.65114455 | G34: =(1+([4]branche!G36/[4]branche!G37-1)-'Graph Hyper 8'!D34)*'Graph Hyper 8'!G35 -> 212298.5596 | H34: =G34/[4]branche!P36 -> 20.81256405 | K34: 2007-12-01 | L34: 111.4846837 | M34: 111.1082429 | N34: -0.002199718795
A35: 2007-09-01 | B35: =[4]branche!T37/[4]branche!T38-1 -> 0.01148456432 | C35: =[4]branche!C37/[4]branche!C38-1 -> 0.004214455183 | D35: 0.007270109141 | E35: 116.4483599 | F35: =[4]branche!C37/[4]branche!P37 -> 44.65585731 | G35: =(1+([4]branche!G37/[4]branche!G38-1)-'Graph Hyper 8'!D35)*'Graph Hyper 8'!G36 -> 211293.066 | H35: =G35/[4]branche!P37 -> 20.77570411 | K35: 2007-09-01 | L35: 111.4964505 | M35: 110.9114655 | N35: 0.001299022634
A36: 2007-06-01 | B36: =[4]branche!T38/[4]branche!T39-1 -> 0.01172794348 | C36: =[4]branche!C38/[4]branche!C39-1 -> 0.006077580358 | D36: 0.005650363124 | E36: 115.607878 | F36: =[4]branche!C38/[4]branche!P38 -> 44.68549917 | G36: =(1+([4]branche!G38/[4]branche!G39-1)-'Graph Hyper 8'!D36)*'Graph Hyper 8'!G37 -> 210992.0018 | H36: =G36/[4]branche!P38 -> 20.84736402 | K36: 2007-06-01 | L36: 111.5704601 | M36: 111.2940232 | N36: -0.002385514931
A37: 2007-03-01 | B37: =[4]branche!T39/[4]branche!T40-1 -> 0.01240884871 | C37: =[4]branche!C39/[4]branche!C40-1 -> 0.008023446943 | D37: 0.004385401768 | E37: 114.9583217 | F37: =[4]branche!C39/[4]branche!P39 -> 44.73914169 | G37: =(1+([4]branche!G39/[4]branche!G40-1)-'Graph Hyper 8'!D37)*'Graph Hyper 8'!G38 -> 210371.0256 | H37: =G37/[4]branche!P39 -> 20.93744035 | K37: 2007-03-01 | L37: 111.7043943 | M37: 111.7748973 | N37: 0.009182013744
A38: 2006-12-01 | B38: =[4]branche!T40/[4]branche!T41-1 -> 0.01529061186 | C38: =[4]branche!C40/[4]branche!C41-1 -> 0.007881009637 | D38: 0.007409602224 | E38: 114.4563845 | F38: =[4]branche!C40/[4]branche!P40 -> 44.74958105 | G38: =(1+([4]branche!G40/[4]branche!G41-1)-'Graph Hyper 8'!D38)*'Graph Hyper 8'!G39 -> 209790.832 | H38: =G38/[4]branche!P40 -> 21.0521341 | K38: 2006-12-01 | L38: 111.7304593 | M38: 112.3871919 | N38: 0.01833108508
A39: 2006-09-01 | B39: =[4]branche!T41/[4]branche!T42-1 -> 0.007801301733 | C39: =[4]branche!C41/[4]branche!C42-1 -> -0.0001785169535 | D39: 0.007979818686 | E39: 113.6145459 | F39: =[4]branche!C41/[4]branche!P41 -> 44.5979236 | G39: =(1+([4]branche!G41/[4]branche!G42-1)-'Graph Hyper 8'!D39)*'Graph Hyper 8'!G40 -> 208498.1481 | H39: =G39/[4]branche!P41 -> 21.01583995 | K39: 2006-09-01 | L39: 111.3518019 | M39: 112.1934349 | N39: 0.02408101841
A40: 2006-06-01 | B40: =[4]branche!T42/[4]branche!T43-1 -> 0.01530053684 | C40: =[4]branche!C42/[4]branche!C43-1 -> 0.0112728004 | D40: 0.004027736439 | E40: 112.7150998 | F40: =[4]branche!C42/[4]branche!P42 -> 44.79235199 | G40: =(1+([4]branche!G42/[4]branche!G43-1)-'Graph Hyper 8'!D40)*'Graph Hyper 8'!G41 -> 207585.688 | H40: =G40/[4]branche!P42 -> 21.01133517 | K40: 2006-06-01 | L40: 111.8372495 | M40: 112.1693861 | N40: 0.03421310069
A41: 2006-03-01 | B41: =[4]branche!T43/[4]branche!T44-1 -> 0.01035260148 | C41: =[4]branche!C43/[4]branche!C44-1 -> 0.006261511823 | D41: 0.004091089654 | E41: 112.2629343 | F41: =[4]branche!C43/[4]branche!P43 -> 44.33208388 | G41: =(1+([4]branche!G43/[4]branche!G44-1)-'Graph Hyper 8'!D41)*'Graph Hyper 8'!G42 -> 206274.8679 | H41: =G41/[4]branche!P43 -> 20.89705885 | K41: 2006-03-01 | L41: 110.6880551 | M41: 111.5593199 | N41: 0.02520305701
A42: 2005-12-01 | B42: =[4]branche!T44/[4]branche!T45-1 -> 0.01510853979 | C42: =[4]branche!C44/[4]branche!C45-1 -> 0.007996680798 | D42: 0.007111858988 | E42: 111.8055279 | F42: =[4]branche!C44/[4]branche!P44 -> 43.94403913 | G42: =(1+([4]branche!G44/[4]branche!G45-1)-'Graph Hyper 8'!D42)*'Graph Hyper 8'!G43 -> 205487.7709 | H42: =G42/[4]branche!P44 -> 20.76431064 | K42: 2005-12-01 | L42: 109.7191875 | M42: 110.8506412 | N42: 0.01498799664
A43: 2005-09-01 | B43: =[4]branche!T45/[4]branche!T46-1 -> 0.008763370793 | C43: =[4]branche!C45/[4]branche!C46-1 -> 0.005104394299 | D43: 0.003658976494 | E43: 111.0159978 | F43: =[4]branche!C45/[4]branche!P45 -> 43.54921417 | G43: =(1+([4]branche!G45/[4]branche!G46-1)-'Graph Hyper 8'!D43)*'Graph Hyper 8'!G44 -> 204372.8268 | H43: =G43/[4]branche!P45 -> 20.62975832 | K43: 2005-09-01 | L43: 108.7333911 | M43: 110.1323313 | N43: 0.009638906267
A44: 2005-06-01 | B44: =[4]branche!T46/[4]branche!T47-1 -> 0.00731768226 | C44: =[4]branche!C46/[4]branche!C47-1 -> 0.002388986841 | D44: 0.00492869542 | E44: 110.6112737 | F44: =[4]branche!C46/[4]branche!P46 -> 43.31056333 | G44: =(1+([4]branche!G46/[4]branche!G47-1)-'Graph Hyper 8'!D44)*'Graph Hyper 8'!G45 -> 202983.6959 | H44: =G44/[4]branche!P46 -> 20.48126731 | K44: 2005-06-01 | L44: 108.1375293 | M44: 109.3396094 | N44: 0.0055529487
A45: 2005-03-01 | B45: =[4]branche!T47/[4]branche!T48-1 -> 0.00614089481 | C45: =[4]branche!C47/[4]branche!C48-1 -> -0.000434172656 | D45: 0.006575067466 | E45: 110.0687782 | F45: =[4]branche!C47/[4]branche!P47 -> 43.24224706 | G45: =(1+([4]branche!G47/[4]branche!G48-1)-'Graph Hyper 8'!D45)*'Graph Hyper 8'!G46 -> 202080.9758 | H45: =G45/[4]branche!P47 -> 20.40665432 | K45: 2005-03-01 | L45: 107.9669577 | M45: 108.9412867 | N45: 0.00795886413
A46: 2004-12-01 | B46: =[4]branche!T48/[4]branche!T49-1 -> 0.01231401796 | C46: =[4]branche!C48/[4]branche!C49-1 -> 0.005669200396 | D46: 0.006644817563 | E46: 109.3497959 | F46: =[4]branche!C48/[4]branche!P48 -> 43.29513184 | G46: =(1+([4]branche!G48/[4]branche!G49-1)-'Graph Hyper 8'!D46)*'Graph Hyper 8'!G47 -> 201649.3596 | H46: =G46/[4]branche!P48 -> 20.37912052 | K46: 2004-12-01 | L46: 108.0990001 | M46: 108.794297 | N46: 0.01279046814
A47: 2004-09-01 | B47: =[4]branche!T49/[4]branche!T50-1 -> 0.008343725735 | C47: =[4]branche!C49/[4]branche!C50-1 -> 0.004788232741 | D47: 0.003555492994 | E47: 108.6279828 | F47: =[4]branche!C49/[4]branche!P49 -> 43.13345484 | G47: =(1+([4]branche!G49/[4]branche!G50-1)-'Graph Hyper 8'!D47)*'Graph Hyper 8'!G48 -> 201265.491 | H47: =G47/[4]branche!P49 -> 20.37925182 | K47: 2004-09-01 | L47: 107.695326 | M47: 108.7949979 | N47: 0.01548388346
A48: 2004-06-01 | B48: =[4]branche!T50/[4]branche!T51-1 -> 0.009870828541 | C48: =[4]branche!C50/[4]branche!C51-1 -> 0.007466481628 | D48: 0.002404346913 | E48: 108.2431251 | F48: =[4]branche!C50/[4]branche!P50 -> 43.07139011 | G48: =(1+([4]branche!G50/[4]branche!G51-1)-'Graph Hyper 8'!D48)*'Graph Hyper 8'!G49 -> 200474.5974 | H48: =G48/[4]branche!P50 -> 20.36701825 | K48: 2004-06-01 | L48: 107.5403632 | M48: 108.7296888 | N48: 0.01914613578
A49: 2004-03-01 | B49: =[4]branche!T51/[4]branche!T52-1 -> 0.01045180716 | C49: =[4]branche!C51/[4]branche!C52-1 -> 0.007252551558 | D49: 0.003199255599 | E49: 107.9834953 | F49: =[4]branche!C51/[4]branche!P51 -> 42.90080538 | G49: =(1+([4]branche!G51/[4]branche!G52-1)-'Graph Hyper 8'!D49)*'Graph Hyper 8'!G50 -> 199450.5749 | H49: =G49/[4]branche!P51 -> 20.33342592 | K49: 2004-03-01 | L49: 107.1144484 | M49: 108.5503555 | N49: 0.01497215807
A50: 2003-12-01 | B50: =[4]branche!T52/[4]branche!T53-1 -> 0.01272215751 | C50: =[4]branche!C52/[4]branche!C53-1 -> 0.01004523377 | D50: 0.002676923742 | E50: 107.6391303 | F50: =[4]branche!C52/[4]branche!P52 -> 42.7483603 | G50: =(1+([4]branche!G52/[4]branche!G53-1)-'Graph Hyper 8'!D50)*'Graph Hyper 8'!G51 -> 197772.9282 | H50: =G50/[4]branche!P52 -> 20.23645806 | K50: 2003-12-01 | L50: 106.7338245 | M50: 108.0326909 | N50: 0.01092822921
A51: 2003-09-01 | B51: =[4]branche!T53/[4]branche!T54-1 -> 0.01220301605 | C51: =[4]branche!C53/[4]branche!C54-1 -> 0.006634169135 | D51: 0.005568846915 | E51: 107.3517578 | F51: =[4]branche!C53/[4]branche!P53 -> 42.47576504 | G51: =(1+([4]branche!G53/[4]branche!G54-1)-'Graph Hyper 8'!D51)*'Graph Hyper 8'!G52 -> 197028.4077 | H51: =G51/[4]branche!P53 -> 20.2329439 | K51: 2003-09-01 | L51: 106.0532104 | M51: 108.0139305 | N51: 0.003636927392
A52: 2003-06-01 | B52: =[4]branche!T54/[4]branche!T55-1 -> 0.004994137639 | C52: =[4]branche!C54/[4]branche!C55-1 -> -1.21681739e-05 | D52: 0.005006305813 | E52: 106.757243 | F52: =[4]branche!C54/[4]branche!P54 -> 42.26223168 | G52: =(1+([4]branche!G54/[4]branche!G55-1)-'Graph Hyper 8'!D52)*'Graph Hyper 8'!G53 -> 196253.8729 | H52: =G52/[4]branche!P54 -> 20.18512069 | K52: 2003-06-01 | L52: 105.5200618 | M52: 107.7586254 | N52: 0.002771229441
A53: 2003-03-01 | B53: =[4]branche!T55/[4]branche!T56-1 -> 0.004108091997 | C53: =[4]branche!C55/[4]branche!C56-1 -> 5.110894236e-05 | D53: 0.004056983055 | E53: 106.225446 | F53: =[4]branche!C55/[4]branche!P55 -> 42.26796276 | G53: =(1+([4]branche!G55/[4]branche!G56-1)-'Graph Hyper 8'!D53)*'Graph Hyper 8'!G54 -> 195891.7268 | H53: =G53/[4]branche!P55 -> 20.15036022 | K53: 2003-03-01 | L53: 105.5343711 | M53: 107.573056 | N53: 0.01531161129
A54: 2002-12-01 | B54: =[4]branche!T56/[4]branche!T57-1 -> 0.004217704382 | C54: =[4]branche!C56/[4]branche!C57-1 -> -0.001642518885 | D54: 0.005860223267 | E54: 105.7962325 | F54: =[4]branche!C56/[4]branche!P56 -> 42.2862465 | G54: =(1+([4]branche!G56/[4]branche!G57-1)-'Graph Hyper 8'!D54)*'Graph Hyper 8'!G55 -> 195533.3878 | H54: =G54/[4]branche!P56 -> 20.12322862 | K54: 2002-12-01 | L54: 105.5800218 | M54: 107.4282135 | N54: 0.03130530264
A55: 2002-09-01 | B55: =[4]branche!T57/[4]branche!T58-1 -> 0.007860694516 | C55: =[4]branche!C57/[4]branche!C58-1 -> 0.002001261135 | D55: 0.005859433381 | E55: 105.179855 | F55: =[4]branche!C57/[4]branche!P57 -> 42.32184357 | G55: =(1+([4]branche!G57/[4]branche!G58-1)-'Graph Hyper 8'!D55)*'Graph Hyper 8'!G56 -> 195384.0259 | H55: =G55/[4]branche!P57 -> 20.0917288 | K55: 2002-09-01 | L55: 105.6689003 | M55: 107.2600512 | N55: 0.03284739316
A56: 2002-06-01 | B56: =[4]branche!T58/[4]branche!T59-1 -> 0.009498577624 | C56: =[4]branche!C58/[4]branche!C59-1 -> 0.005210321772 | D56: 0.004288255852 | E56: 104.5671508 | F56: =[4]branche!C58/[4]branche!P58 -> 42.14543701 | G56: =(1+([4]branche!G58/[4]branche!G59-1)-'Graph Hyper 8'!D56)*'Graph Hyper 8'!G57 -> 195178.8579 | H56: =G56/[4]branche!P58 -> 20.0269714 | K56: 2002-06-01 | L56: 105.2284496 | M56: 106.9143426 | N56: 0.03346558457
A57: 2002-03-01 | B57: =[4]branche!T59/[4]branche!T60-1 -> 0.01149699677 | C57: =[4]branche!C59/[4]branche!C60-1 -> 0.006535142711 | D57: 0.004961854054 | E57: 104.1206548 | F57: =[4]branche!C59/[4]branche!P59 -> 41.63053224 | G57: =(1+([4]branche!G59/[4]branche!G60-1)-'Graph Hyper 8'!D57)*'Graph Hyper 8'!G58 -> 193565.9397 | H57: =G57/[4]branche!P59 -> 19.72103876 | K57: 2002-03-01 | L57: 103.9428387 | M57: 105.2811158 | N57: 0.02040780267
A58: 2001-12-01 | B58: =[4]branche!T60/[4]branche!T61-1 -> 0.003562624132 | C58: =[4]branche!C60/[4]branche!C61-1 -> -0.001917691689 | D58: 0.005480315821 | E58: 103.6065741 | F58: =[4]branche!C60/[4]branche!P60 -> 41.00264625 | G58: =(1+([4]branche!G60/[4]branche!G61-1)-'Graph Hyper 8'!D58)*'Graph Hyper 8'!G59 -> 192605.2782 | H58: =G58/[4]branche!P60 -> 19.4535066 | K58: 2001-12-01 | L58: 102.3751371 | M58: 103.8528906 | N58: 0.01010777744
A59: 2001-09-01 | B59: =[4]branche!T61/[4]branche!T62-1 -> 0.007926905261 | C59: =[4]branche!C61/[4]branche!C62-1 -> 0.00301838403 | D59: 0.004908521231 | E59: 103.0418721 | F59: =[4]branche!C61/[4]branche!P61 -> 40.97589233 | G59: =(1+([4]branche!G61/[4]branche!G62-1)-'Graph Hyper 8'!D59)*'Graph Hyper 8'!G60 -> 191885.3761 | H59: =G59/[4]branche!P61 -> 19.33100713 | K59: 2001-09-01 | L59: 102.3083381 | M59: 103.198925 | N59: 0.0127771749
A60: 2001-06-01 | B60: =[4]branche!T62/[4]branche!T63-1 -> 0.006099647605 | C60: =[4]branche!C62/[4]branche!C63-1 -> -0.0002317502817 | D60: 0.006331397887 | E60: 102.5385594 | F60: =[4]branche!C62/[4]branche!P62 -> 40.78068746 | G60: =(1+([4]branche!G62/[4]branche!G63-1)-'Graph Hyper 8'!D60)*'Graph Hyper 8'!G61 -> 190713.6208 | H60: =G60/[4]branche!P62 -> 19.1791489 | K60: 2001-06-01 | L60: 101.8209519 | M60: 102.3882272 | N60: 0.01011123635
A61: 2001-03-01 | B61: =[4]branche!T63/[4]branche!T64-1 -> 0.01109323867 | C61: =[4]branche!C63/[4]branche!C64-1 -> 0.006613822268 | D61: 0.004479416403 | E61: 101.8934315 | F61: =[4]branche!C63/[4]branche!P63 -> 40.79793601 | G61: =(1+([4]branche!G63/[4]branche!G64-1)-'Graph Hyper 8'!D61)*'Graph Hyper 8'!G62 -> 189167.905 | H61: =G61/[4]branche!P63 -> 19.02733934 | K61: 2001-03-01 | L61: 101.864018 | M61: 101.5777891 | N61: 0.01864017956
A62: 2000-12-01 | B62: =[4]branche!T64/[4]branche!T65-1 -> 0.01287058786 | C62: =[4]branche!C64/[4]branche!C65-1 -> 0.008550089105 | D62: 0.004320498752 | E62: 101.4390438 | F62: =[4]branche!C64/[4]branche!P64 -> 40.59234783 | G62: =(1+([4]branche!G64/[4]branche!G65-1)-'Graph Hyper 8'!D62)*'Graph Hyper 8'!G63 -> 189164.385 | H62: =G62/[4]branche!P64 -> 19.05631183 | K62: 2000-12-01 | L62: 101.3507068 | M62: 101.7324592
A63: 2000-09-01 | B63: =[4]branche!T65/[4]branche!T66-1 -> 0.01214417039 | C63: =[4]branche!C65/[4]branche!C66-1 -> 0.006279043409 | D63: 0.005865126983 | E63: 101.0026619 | F63: =[4]branche!C65/[4]branche!P65 -> 40.45894136 | G63: =(1+([4]branche!G65/[4]branche!G66-1)-'Graph Hyper 8'!D63)*'Graph Hyper 8'!G64 -> 187301.1841 | H63: =G63/[4]branche!P65 -> 18.96740059 | K63: 2000-09-01 | L63: 101.0176183 | M63: 101.2578051
A64: 2000-06-01 | B64: =[4]branche!T66/[4]branche!T67-1 -> 0.01255435468 | C64: =[4]branche!C66/[4]branche!C67-1 -> 0.008417127865 | D64: 0.004137226816 | E64: =E65*(1+D64) -> 100.4137227 | F64: =[4]branche!C66/[4]branche!P66 -> 40.37247186 | G64: =(1+([4]branche!G66/[4]branche!G67-1)-'Graph Hyper 8'!D64)*'Graph Hyper 8'!G65 -> 185579.1669 | H64: =G64/[4]branche!P66 -> 18.87060258 | K64: 2000-06-01 | L64: =L65*F64/F65 -> 100.8017219 | M64: =M65*H64/H65 -> 100.7410471
A65: 2000-03-01 | B65: =[4]branche!T67/[4]branche!T68-1 -> 0.01832649301 | C65: =[4]branche!C67/[4]branche!C68-1 -> 0.01113291182 | D65: 0.007193581191 | E65: 100 | F65: =[4]branche!C67/[4]branche!P67 -> 40.05137126 | G65: 184141 | H65: =G65/[4]branche!P67 -> 18.73179118 | K65: 2000-03-01 | L65: 100 | M65: 100
A66: 1999-12-01 | B66: =[4]branche!T68/[4]branche!T69-1 -> 0.01287264789 | C66: =[4]branche!C68/[4]branche!C69-1 -> 0.01245989277 | D66: 0.0004127551155 | F66: =[4]branche!C68/[4]branche!P68 -> 39.59146323 | H66: =G66/[4]branche!P68 -> 0
A67: 1999-09-01 | B67: =[4]branche!T69/[4]branche!T70-1 -> 0.01274748186 | C67: =[4]branche!C69/[4]branche!C70-1 -> 0.01075952694 | D67: =B67-C67 -> 0.001987954926 | F67: =[4]branche!C69/[4]branche!P69 -> 39.16435845 | H67: =G67/[4]branche!P69 -> 0
A68: 1999-06-01 | B68: =[4]branche!T70/[4]branche!T71-1 -> 0.009229017209 | C68: =[4]branche!C70/[4]branche!C71-1 -> 0.008326310824 | D68: 0.0009027063852 | F68: =[4]branche!C70/[4]branche!P70 -> 38.81187715 | H68: =G68/[4]branche!P70 -> 0
A69: 1999-03-01 | B69: =[4]branche!T71/[4]branche!T72-1 -> 0.005834862065 | C69: =[4]branche!C71/[4]branche!C72-1 -> 0.006009000171 | D69: -0.0001741381054 | F69: =[4]branche!C71/[4]branche!P71 -> 38.7276142 | H69: =G69/[4]branche!P71 -> 0
A70: 1998-12-01 | B70: =[4]branche!T72/[4]branche!T73-1 -> 0.006770007083 | C70: =[4]branche!C72/[4]branche!C73-1 -> 0.007907867831 | D70: -0.001137860748 | F70: =[4]branche!C72/[4]branche!P72 -> 38.651389 | H70: =G70/[4]branche!P72 -> 0
A71: 1998-09-01 | B71: =[4]branche!T73/[4]branche!T74-1 -> 0.007017947199 | C71: =[4]branche!C73/[4]branche!C74-1 -> 0.007087151122 | D71: -6.920392334e-05 | F71: =[4]branche!C73/[4]branche!P73 -> 38.38610859 | H71: =G71/[4]branche!P73 -> 0
A72: 1998-06-01 | B72: =[4]branche!T74/[4]branche!T75-1 -> 0.01498212496 | C72: =[4]branche!C74/[4]branche!C75-1 -> 0.01055285589 | D72: 0.004429269072 | F72: =[4]branche!C74/[4]branche!P74 -> 38.29014309 | H72: =G72/[4]branche!P74 -> 0
A73: 1998-03-01 | B73: =[4]branche!T75/[4]branche!T76-1 -> 0.01023640133 | C73: =[4]branche!C75/[4]branche!C76-1 -> 0.009201074103 | D73: 0.00103532723 | F73: =[4]branche!C75/[4]branche!P75 -> 38.021481 | H73: =G73/[4]branche!P75 -> 0
A74: 1997-12-01 | B74: =[4]branche!T76/[4]branche!T77-1 -> 0.01297142735 | C74: =[4]branche!C76/[4]branche!C77-1 -> 0.00988004593 | D74: 0.003091381416 | F74: =[4]branche!C76/[4]branche!P76 -> 37.76789902 | H74: =G74/[4]branche!P76 -> 0
A75: 1997-09-01 | B75: =[4]branche!T77/[4]branche!T78-1 -> 0.01042781576 | C75: =[4]branche!C77/[4]branche!C78-1 -> 0.007525468657 | D75: 0.002902347101 | F75: =[4]branche!C77/[4]branche!P77 -> 37.46791558 | H75: =G75/[4]branche!P77 -> 0
A76: 1997-06-01 | B76: =[4]branche!T78/[4]branche!T79-1 -> 0.01376375513 | C76: =[4]branche!C78/[4]branche!C79-1 -> 0.01067652017 | D76: 0.003087234962 | F76: =[4]branche!C78/[4]branche!P78 -> 37.19233019 | H76: =G76/[4]branche!P78 -> 0
A77: 1997-03-01 | B77: =[4]branche!T79/[4]branche!T80-1 -> 0.007083799165 | C77: =[4]branche!C79/[4]branche!C80-1 -> 0.00400047869 | D77: 0.003083320475 | F77: =[4]branche!C79/[4]branche!P79 -> 36.82597745 | H77: =G77/[4]branche!P79 -> 0
A78: 1996-12-01 | B78: =[4]branche!T80/[4]branche!T81-1 -> 0.001568915234 | C78: =[4]branche!C80/[4]branche!C81-1 -> 0.001575315491 | D78: -6.40025688e-06 | F78: =[4]branche!C80/[4]branche!P80 -> 36.69880375 | H78: =G78/[4]branche!P80 -> 0
A79: 1996-09-01 | B79: =[4]branche!T81/[4]branche!T82-1 -> 0.006770355651 | C79: =[4]branche!C81/[4]branche!C82-1 -> 0.003674922592 | D79: 0.003095433059 | F79: =[4]branche!C81/[4]branche!P81 -> 36.64069934 | H79: =G79/[4]branche!P81 -> 0
A80: 1996-06-01 | B80: =[4]branche!T82/[4]branche!T83-1 -> 0.004606879607 | C80: =[4]branche!C82/[4]branche!C83-1 -> 0.003056952988 | D80: 0.001549926619 | F80: =[4]branche!C82/[4]branche!P82 -> 36.53825222 | H80: =G80/[4]branche!P82 -> 0
A81: 1996-03-01 | B81: =[4]branche!T83/[4]branche!T84-1 -> 0.01255259944 | C81: =[4]branche!C83/[4]branche!C84-1 -> 0.005424907779 | D81: 0.007127691661 | F81: =[4]branche!C83/[4]branche!P83 -> 36.45245751 | H81: =G81/[4]branche!P83 -> 0
A82: 1995-12-01 | B82: =[4]branche!T84/[4]branche!T85-1 -> 0.00447734483 | C82: =[4]branche!C84/[4]branche!C85-1 -> 0.002731449029 | D82: 0.001745895801 | F82: =[4]branche!C84/[4]branche!P84 -> 36.32882434 | H82: =G82/[4]branche!P84 -> 0
A83: 1995-09-01 | B83: =[4]branche!T85/[4]branche!T86-1 -> 0.004264427162 | C83: =[4]branche!C85/[4]branche!C86-1 -> 0.002305164265 | D83: 0.001959262897 | F83: =[4]branche!C85/[4]branche!P85 -> 36.25687881 | H83: =G83/[4]branche!P85 -> 0
A84: 1995-06-01 | B84: =[4]branche!T86/[4]branche!T87-1 -> 0.00880836531 | C84: =[4]branche!C86/[4]branche!C87-1 -> 0.004426610989 | D84: 0.004381754321 | F84: =[4]branche!C86/[4]branche!P86 -> 36.18375301 | H84: =G84/[4]branche!P86 -> 0
A85: 1995-03-01 | B85: =[4]branche!T87/[4]branche!T88-1 -> 0.006493226407 | C85: =[4]branche!C87/[4]branche!C88-1 -> 0.005639246576 | D85: 0.0008539798314 | F85: =[4]branche!C87/[4]branche!P87 -> 35.98686144 | H85: =G85/[4]branche!P87 -> 0
A86: 1994-12-01 | B86: =[4]branche!T88/[4]branche!T89-1 -> 0.01255144379 | C86: =[4]branche!C88/[4]branche!C89-1 -> 0.009251887521 | D86: 0.003299556264 | F86: =[4]branche!C88/[4]branche!P88 -> 35.72732226 | H86: =G86/[4]branche!P88 -> 0
A87: 1994-09-01 | B87: =[4]branche!T89/[4]branche!T90-1 -> 0.007961287351 | C87: =[4]branche!C89/[4]branche!C90-1 -> 0.006317087409 | D87: 0.001644199943 | F87: =[4]branche!C89/[4]branche!P89 -> 35.41799008 | H87: =G87/[4]branche!P89 -> 0
A88: 1994-06-01 | B88: =[4]branche!T90/[4]branche!T91-1 -> 0.01440692522 | C88: =[4]branche!C90/[4]branche!C91-1 -> 0.0110574433 | D88: 0.00334948192 | F88: =[4]branche!C90/[4]branche!P90 -> 35.24812346 | H88: =G88/[4]branche!P90 -> 0
A89: 1994-03-01 | B89: =[4]branche!T91/[4]branche!T92-1 -> 0.006994410007 | C89: =[4]branche!C91/[4]branche!C92-1 -> 0.004197208312 | D89: 0.002797201694 | F89: =[4]branche!C91/[4]branche!P91 -> 34.93010487 | H89: =G89/[4]branche!P91 -> 0
A90: 1993-12-01 | B90: =[4]branche!T92/[4]branche!T93-1 -> 0.004848918813 | C90: =[4]branche!C92/[4]branche!C93-1 -> 0.0002661762571 | D90: 0.004582742556 | F90: =[4]branche!C92/[4]branche!P92 -> 34.79728521 | H90: =G90/[4]branche!P92 -> 0
A91: 1993-09-01 | B91: =[4]branche!T93/[4]branche!T94-1 -> 0.004847976808 | C91: =[4]branche!C93/[4]branche!C94-1 -> 0.003164777813 | D91: 0.001683198995 | F91: =[4]branche!C93/[4]branche!P93 -> 34.760593 | H91: =G91/[4]branche!P93 -> 0
A92: 1993-06-01 | B92: =[4]branche!T94/[4]branche!T95-1 -> 0.004117405684 | C92: =[4]branche!C94/[4]branche!C95-1 -> 0.0008108157353 | D92: 0.003306589948 | F92: =[4]branche!C94/[4]branche!P94 -> 34.55320354 | H92: =G92/[4]branche!P94 -> 0
A93: 1993-03-01 | B93: =[4]branche!T95/[4]branche!T96-1 -> 0.001387249944 | C93: =[4]branche!C95/[4]branche!C96-1 -> -0.005517553794 | D93: 0.006904803738 | F93: =[4]branche!C95/[4]branche!P95 -> 34.32762072 | H93: =G93/[4]branche!P95 -> 0
A94: 1992-12-01 | B94: =[4]branche!T96/[4]branche!T97-1 -> -9.832703572e-05 | C94: =[4]branche!C96/[4]branche!C97-1 -> -0.002557429196 | D94: 0.002459102161 | F94: =[4]branche!C96/[4]branche!P96 -> 34.26447153 | H94: =G94/[4]branche!P96 -> 0
A95: 1992-09-01 | B95: =[4]branche!T97/[4]branche!T98-1 -> 0.003566494686 | C95: =[4]branche!C97/[4]branche!C98-1 -> -0.001407764362 | D95: 0.004974259047 | F95: =[4]branche!C97/[4]branche!P97 -> 34.12912512 | H95: =G95/[4]branche!P97 -> 0
A96: 1992-06-01 | B96: =[4]branche!T98/[4]branche!T99-1 -> 0.002133160044 | C96: =[4]branche!C98/[4]branche!C99-1 -> 0.0009966547329 | D96: 0.001136505311 | F96: =[4]branche!C98/[4]branche!P98 -> 34.05191134 | H96: =G96/[4]branche!P98 -> 0
A97: 1992-03-01 | B97: =[4]branche!T99/[4]branche!T100-1 -> 0.01513663122 | C97: =[4]branche!C99/[4]branche!C100-1 -> 0.009354684788 | D97: 0.005781946433 | F97: =[4]branche!C99/[4]branche!P99 -> 33.93285176 | H97: =G97/[4]branche!P99 -> 0
A98: 1991-12-01 | B98: =[4]branche!T100/[4]branche!T101-1 -> 0.01102270874 | C98: =[4]branche!C100/[4]branche!C101-1 -> 0.006558801306 | D98: 0.004463907432 | F98: =[4]branche!C100/[4]branche!P100 -> 33.55254168 | H98: =G98/[4]branche!P100 -> 0
A99: 1991-09-01 | B99: =[4]branche!T101/[4]branche!T102-1 -> 0.008805128036 | C99: =[4]branche!C101/[4]branche!C102-1 -> 0.003912596164 | D99: 0.004892531872 | F99: =[4]branche!C101/[4]branche!P101 -> 33.27385436 | H99: =G99/[4]branche!P101 -> 0
A100: 1991-06-01 | B100: =[4]branche!T102/[4]branche!T103-1 -> 0.01413981844 | C100: =[4]branche!C102/[4]branche!C103-1 -> 0.007690403243 | D100: 0.006449415197 | F100: =[4]branche!C102/[4]branche!P102 -> 33.08490317 | H100: =G100/[4]branche!P102 -> 0
A101: 1991-03-01 | B101: =[4]branche!T103/[4]branche!T104-1 -> 0.009078050277 | C101: =[4]branche!C103/[4]branche!C104-1 -> -0.0003681372564 | D101: 0.009446187534 | F101: =[4]branche!C103/[4]branche!P103 -> 32.77978413 | H101: =G101/[4]branche!P103 -> 0
A102: 1990-12-01 | B102: =[4]branche!T104/[4]branche!T105-1 -> 0.00480523387 | C102: =[4]branche!C104/[4]branche!C105-1 -> -0.0002876211565 | D102: 0.005092855026 | F102: =[4]branche!C104/[4]branche!P104 -> 32.86520395 | H102: =G102/[4]branche!P104 -> 0
A103: 1990-09-01 | B103: =[4]branche!T105/[4]branche!T106-1 -> 0.005466629366 | C103: =[4]branche!C105/[4]branche!C106-1 -> 0.002884508021 | D103: 0.002582121345 | F103: =[4]branche!C105/[4]branche!P105 -> 32.82993197 | H103: =G103/[4]branche!P105 -> 0
A104: 1990-06-01 | B104: =[4]branche!T106/[4]branche!T107-1 -> 0.01273024515 | C104: =[4]branche!C106/[4]branche!C107-1 -> 0.0040484317 | D104: 0.008681813448 | F104: =[4]branche!C106/[4]branche!P106 -> 32.72919226 | H104: =G104/[4]branche!P106 -> 0
A105: 1990-03-01 | B105: =[4]branche!T107/[4]branche!T108-1 -> 0.01361766532 | C105: =[4]branche!C107/[4]branche!C108-1 -> 0.01133815415 | D105: 0.002279511173 | F105: =[4]branche!C107/[4]branche!P107 -> 32.52228164 | H105: =G105/[4]branche!P107 -> 0
A106: 1989-12-01 | B106: =[4]branche!T108/[4]branche!T109-1 -> 0.02089086277 | C106: =[4]branche!C108/[4]branche!C109-1 -> 0.008906640738 | D106: 0.01198422204 | F106: =[4]branche!C108/[4]branche!P108 -> 32.34373727 | H106: =G106/[4]branche!P108 -> 0
A107: 1989-09-01 | B107: =[4]branche!T109/[4]branche!T110-1 -> 0.01827108497 | C107: =[4]branche!C109/[4]branche!C110-1 -> 0.01029852232 | D107: 0.007972562653 | F107: =[4]branche!C109/[4]branche!P109 -> 32.11250791 | H107: =G107/[4]branche!P109 -> 0
A108: 1989-06-01 | B108: =[4]branche!T110/[4]branche!T111-1 -> 0.01520277188 | C108: =[4]branche!C110/[4]branche!C111-1 -> 0.01040896293 | D108: 0.004793808953 | F108: =[4]branche!C110/[4]branche!P110 -> 31.84398033 | H108: =G108/[4]branche!P110 -> 0
A109: 1989-03-01 | B109: =[4]branche!T111/[4]branche!T112-1 -> 0.02023198676 | C109: =[4]branche!C111/[4]branche!C112-1 -> 0.01684450088 | D109: 0.00338748588 | F109: =[4]branche!C111/[4]branche!P111 -> 31.56756535 | H109: =G109/[4]branche!P111 -> 0
A110: 1988-12-01 | B110: =[4]branche!T112/[4]branche!T113-1 -> 0.02148183242 | C110: =[4]branche!C112/[4]branche!C113-1 -> 0.009123164383 | D110: 0.01235866804 | F110: =[4]branche!C112/[4]branche!P112 -> 31.09015771 | H110: =G110/[4]branche!P112 -> 0
A111: 1988-09-01 | B111: =[4]branche!T113/[4]branche!T114-1 -> 0.02148113915 | C111: =[4]branche!C113/[4]branche!C114-1 -> 0.01186170105 | D111: 0.009619438097 | F111: =[4]branche!C113/[4]branche!P113 -> 30.87430122 | H111: =G111/[4]branche!P113 -> 0
A112: 1988-06-01 | B112: =[4]branche!T114/[4]branche!T115-1 -> 0.01736534649 | C112: =[4]branche!C114/[4]branche!C115-1 -> 0.007522777014 | D112: 0.009842569472 | F112: =[4]branche!C114/[4]branche!P114 -> 30.59915907 | H112: =G112/[4]branche!P114 -> 0
A113: 1988-03-01 | B113: =[4]branche!T115/[4]branche!T116-1 -> 0.02035745482 | C113: =[4]branche!C115/[4]branche!C116-1 -> 0.01305571884 | D113: 0.007301735982 | F113: =[4]branche!C115/[4]branche!P115 -> 30.47716062 | H113: =G113/[4]branche!P115 -> 0
A114: 1987-12-01 | B114: =[4]branche!T116/[4]branche!T117-1 -> 0.02179542911 | C114: =[4]branche!C116/[4]branche!C117-1 -> 0.01279100939 | D114: 0.009004419721 | F114: =[4]branche!C116/[4]branche!P116 -> 30.21217597 | H114: =G114/[4]branche!P116 -> 0
A115: 1987-09-01 | B115: =[4]branche!T117/[4]branche!T118-1 -> 0.0148540641 | C115: =[4]branche!C117/[4]branche!C118-1 -> 0.006524839595 | D115: 0.008329224505 | F115: =[4]branche!C117/[4]branche!P117 -> 29.96130096 | H115: =G115/[4]branche!P117 -> 0
A116: 1987-06-01 | B116: =[4]branche!T118/[4]branche!T119-1 -> 0.01628843164 | C116: =[4]branche!C118/[4]branche!C119-1 -> 0.01166331657 | D116: 0.004625115071 | F116: =[4]branche!C118/[4]branche!P118 -> 29.89461444 | H116: =G116/[4]branche!P118 -> 0
A117: 1987-03-01 | B117: =[4]branche!T119/[4]branche!T120-1 -> 0.005867536642 | C117: =[4]branche!C119/[4]branche!C120-1 -> 0.001356057352 | D117: 0.00451147929 | F117: =[4]branche!C119/[4]branche!P119 -> 29.67805402 | H117: =G117/[4]branche!P119 -> 0
A118: 1986-12-01 | B118: =[4]branche!T120/[4]branche!T121-1 -> 0.007375222924 | C118: =[4]branche!C120/[4]branche!C121-1 -> 0.0009060416992 | D118: 0.006469181225 | F118: =[4]branche!C120/[4]branche!P120 -> 29.7728714 | H118: =G118/[4]branche!P120 -> 0
A119: 1986-09-01 | B119: =[4]branche!T121/[4]branche!T122-1 -> 0.01747182281 | C119: =[4]branche!C121/[4]branche!C122-1 -> 0.004403839977 | D119: 0.01306798284 | F119: =[4]branche!C121/[4]branche!P121 -> 29.85984828 | H119: =G119/[4]branche!P121 -> 0
A120: 1986-06-01 | B120: =[4]branche!T122/[4]branche!T123-1 -> 0.02061752188 | C120: =[4]branche!C122/[4]branche!C123-1 -> 0.009936818128 | D120: 0.01068070375 | F120: =[4]branche!C122/[4]branche!P122 -> 29.81718737 | H120: =G120/[4]branche!P122 -> 0
A121: 1986-03-01 | B121: =[4]branche!T123/[4]branche!T124-1 -> 0.02003747427 | C121: =[4]branche!C123/[4]branche!C124-1 -> 0.0022178956 | D121: 0.01781957867 | F121: =[4]branche!C123/[4]branche!P123 -> 29.59056781 | H121: =G121/[4]branche!P123 -> 0
A122: 1985-12-01 | B122: =[4]branche!T124/[4]branche!T125-1 -> 0.01670795944 | C122: =[4]branche!C124/[4]branche!C125-1 -> 0.003105274982 | D122: 0.01360268446 | F122: =[4]branche!C124/[4]branche!P124 -> 29.57270892 | H122: =G122/[4]branche!P124 -> 0
A123: 1985-09-01 | B123: =[4]branche!T125/[4]branche!T126-1 -> 0.01748736906 | C123: =[4]branche!C125/[4]branche!C126-1 -> 0.006242024283 | D123: 0.01124534477 | F123: =[4]branche!C125/[4]branche!P125 -> 29.45127417 | H123: =G123/[4]branche!P125 -> 0
A124: 1985-06-01 | B124: =[4]branche!T126/[4]branche!T127-1 -> 0.02205165956 | C124: =[4]branche!C126/[4]branche!C127-1 -> 0.008438275577 | D124: 0.01361338398 | F124: =[4]branche!C126/[4]branche!P126 -> 29.16369823 | H124: =G124/[4]branche!P126 -> 0
A125: 1985-03-01 | B125: =[4]branche!T127/[4]branche!T128-1 -> 0.01891704078 | C125: =[4]branche!C127/[4]branche!C128-1 -> 0.001325405445 | D125: 0.01759163533 | F125: =[4]branche!C127/[4]branche!P127 -> 28.74210048 | H125: =G125/[4]branche!P127 -> 0
A126: 1984-12-01 | B126: =[4]branche!T128/[4]branche!T129-1 -> 0.01111389934 | C126: =[4]branche!C128/[4]branche!C129-1 -> 0.0001251928522 | D126: 0.01098870649 | F126: =[4]branche!C128/[4]branche!P128 -> 28.45924141 | H126: =G126/[4]branche!P128 -> 0
A127: 1984-09-01 | B127: =[4]branche!T129/[4]branche!T130-1 -> 0.01844647512 | C127: =[4]branche!C129/[4]branche!C130-1 -> 0.007191016236 | D127: 0.01125545889 | F127: =[4]branche!C129/[4]branche!P129 -> 28.2681919 | H127: =G127/[4]branche!P129 -> 0
A128: 1984-06-01 | B128: =[4]branche!T130/[4]branche!T131-1 -> 0.01690441813 | C128: =[4]branche!C130/[4]branche!C131-1 -> 0.003774736811 | D128: 0.01312968132 | F128: =[4]branche!C130/[4]branche!P130 -> 27.93349218 | H128: =G128/[4]branche!P130 -> 0
A129: 1984-03-01 | B129: =[4]branche!T131/[4]branche!T132-1 -> 0.02464715803 | C129: =[4]branche!C131/[4]branche!C132-1 -> 0.004629941284 | D129: 0.02001721675 | F129: =[4]branche!C131/[4]branche!P131 -> 27.74738669 | H129: =G129/[4]branche!P131 -> 0
A130: 1983-12-01 | B130: =[4]branche!T132/[4]branche!T133-1 -> 0.02179828274 | C130: =[4]branche!C132/[4]branche!C133-1 -> 0.006277237112 | D130: 0.01552104563 | F130: =[4]branche!C132/[4]branche!P132 -> 27.58417925 | H130: =G130/[4]branche!P132 -> 0
A131: 1983-09-01 | B131: =[4]branche!T133/[4]branche!T134-1 -> 0.02739640927 | C131: =[4]branche!C133/[4]branche!C134-1 -> 0.001624631066 | D131: =B131-C131 -> 0.0257717782 | F131: =[4]branche!C133/[4]branche!P133 -> 27.37849673 | H131: =G131/[4]branche!P133 -> 0
A132: 1983-06-01 | B132: =[4]branche!T134/[4]branche!T135-1 -> 0.02642418987 | C132: =[4]branche!C134/[4]branche!C135-1 -> 0.0008148637178 | D132: 0.02560932615 | F132: =[4]branche!C134/[4]branche!P134 -> 27.3053923 | H132: =G132/[4]branche!P134 -> 0
A133: 1983-03-01 | B133: =[4]branche!T135/[4]branche!T136-1 -> 0.03151926543 | C133: =[4]branche!C135/[4]branche!C136-1 -> 0.003463809812 | D133: 0.02805545562 | F133: =[4]branche!C135/[4]branche!P135 -> 27.26071351 | H133: =G133/[4]branche!P135 -> 0
A134: 1982-12-01 | B134: =[4]branche!T136/[4]branche!T137-1 -> 0.02257227028 | C134: =[4]branche!C136/[4]branche!C137-1 -> 0.005481120585 | D134: 0.01709114969 | F134: =[4]branche!C136/[4]branche!P136 -> 27.14874462 | H134: =G134/[4]branche!P136 -> 0
A135: 1982-09-01 | B135: =[4]branche!T137/[4]branche!T138-1 -> 0.01930591929 | C135: =[4]branche!C137/[4]branche!C138-1 -> 0.000784720053 | D135: 0.01852119924 | F135: =[4]branche!C137/[4]branche!P137 -> 26.89158205 | H135: =G135/[4]branche!P137 -> 0
A136: 1982-06-01 | B136: =[4]branche!T138/[4]branche!T139-1 -> 0.03392497661 | C136: =[4]branche!C138/[4]branche!C139-1 -> 0.006942739659 | D136: 0.02698223695 | F136: =[4]branche!C138/[4]branche!P138 -> 26.66930806 | H136: =G136/[4]branche!P138 -> 0
A137: 1982-03-01 | B137: =[4]branche!T139/[4]branche!T140-1 -> 0.04173558601 | C137: =[4]branche!C139/[4]branche!C140-1 -> 0.008015280457 | D137: 0.03372030555 | F137: =[4]branche!C139/[4]branche!P139 -> 26.20483078 | H137: =G137/[4]branche!P139 -> 0
A138: 1981-12-01 | B138: =[4]branche!T140/[4]branche!T141-1 -> 0.04339250493 | C138: =[4]branche!C140/[4]branche!C141-1 -> 0.004423438398 | D138: 0.03896906653 | F138: =[4]branche!C140/[4]branche!P140 -> 25.64003172 | H138: =G138/[4]branche!P140 -> 0
A139: 1981-09-01 | B139: =[4]branche!T141/[4]branche!T142-1 -> 0.03862681551 | C139: =[4]branche!C141/[4]branche!C142-1 -> 0.00702396596 | D139: 0.03160284955 | F139: =[4]branche!C141/[4]branche!P141 -> 25.26065886 | H139: =G139/[4]branche!P141 -> 0
A140: 1981-06-01 | B140: =[4]branche!T142/[4]branche!T143-1 -> 0.03120048851 | C140: =[4]branche!C142/[4]branche!C143-1 -> 0.006083021837 | D140: 0.02511746668 | F140: =[4]branche!C142/[4]branche!P142 -> 24.91022631 | H140: =G140/[4]branche!P142 -> 0
A141: 1981-03-01 | B141: =[4]branche!T143/[4]branche!T144-1 -> 0.03169562663 | C141: =[4]branche!C143/[4]branche!C144-1 -> 0.003874881996 | D141: 0.02782074464 | F141: =[4]branche!C143/[4]branche!P143 -> 24.65273736 | H141: =G141/[4]branche!P143 -> 0
A142: 1980-12-01 | B142: =[4]branche!T144/[4]branche!T145-1 -> 0.02223556646 | C142: =[4]branche!C144/[4]branche!C145-1 -> -0.001774315016 | D142: 0.02400988148 | F142: =[4]branche!C144/[4]branche!P144 -> 24.51762541 | H142: =G142/[4]branche!P144 -> 0
A143: 1980-09-01 | B143: =[4]branche!T145/[4]branche!T146-1 -> 0.02949450786 | C143: =[4]branche!C145/[4]branche!C146-1 -> 0.002102043961 | D143: 0.0273924639 | F143: =[4]branche!C145/[4]branche!P145 -> 24.53222031 | H143: =G143/[4]branche!P145 -> 0
A144: 1980-06-01 | B144: =[4]branche!T146/[4]branche!T147-1 -> 0.02281807852 | C144: =[4]branche!C146/[4]branche!C147-1 -> -0.006153447423 | D144: 0.02897152594 | F144: =[4]branche!C146/[4]branche!P146 -> 24.46301362 | H144: =G144/[4]branche!P146 -> 0
A145: 1980-03-01 | B145: =[4]branche!T147/[4]branche!T148-1 -> 0.04254282466 | C145: =[4]branche!C147/[4]branche!C148-1 -> 0.01890944592 | D145: 0.02363337874 | F145: =[4]branche!C147/[4]branche!P147 -> 24.60401349 | H145: =G145/[4]branche!P147 -> 0
A146: 1979-12-01 | B146: =[4]branche!T148/[4]branche!T149-1 -> 0.03091636134 | C146: =[4]branche!C148/[4]branche!C149-1 -> -0.000943381142 | D146: 0.03185974249 | F146: =[4]branche!C148/[4]branche!P148 -> 24.11454816 | H146: =G146/[4]branche!P148 -> 0
A147: 1979-09-01 | B147: =[4]branche!T149/[4]branche!T150-1 -> 0.0374805853 | C147: =[4]branche!C149/[4]branche!C150-1 -> 0.01221550102 | D147: 0.02526508428 | F147: =[4]branche!C149/[4]branche!P149 -> 24.15199992 | H147: =G147/[4]branche!P149 -> 0
A148: 1979-06-01 | B148: =[4]branche!T150/[4]branche!T151-1 -> 0.02626915131 | C148: =[4]branche!C150/[4]branche!C151-1 -> 0.001341090862 | D148: 0.02492806045 | F148: =[4]branche!C150/[4]branche!P150 -> 23.90206869 | H148: =G148/[4]branche!P150 -> 0
A149: 1979-03-01 | B149: =[4]branche!T151/[4]branche!T152-1 -> 0.03617298707 | C149: =[4]branche!C151/[4]branche!C152-1 -> 0.009340367235 | D149: 0.02683261983 | F149: =[4]branche!C151/[4]branche!P151 -> 23.92303964 | H149: =G149/[4]branche!P151 -> 0
A150: 1978-12-01 | B150: =[4]branche!T152/[4]branche!T153-1 -> 0.03137958086 | C150: =[4]branche!C152/[4]branche!C153-1 -> 0.007461302988 | D150: 0.02391827787 | F150: =[4]branche!C152/[4]branche!P152 -> 23.7638484 | H150: =G150/[4]branche!P152 -> 0
A151: 1978-09-01 | B151: =[4]branche!T153/[4]branche!T154-1 -> 0.03858464762 | C151: =[4]branche!C153/[4]branche!C154-1 -> 0.009318939778 | D151: 0.02926570784 | F151: =[4]branche!C153/[4]branche!P153 -> 23.60276171 | H151: =G151/[4]branche!P153 -> 0
A152: 1978-06-01 | B152: =[4]branche!T154/[4]branche!T155-1 -> 0.04196228246 | C152: =[4]branche!C154/[4]branche!C155-1 -> 0.004490336378 | D152: 0.03747194608 | F152: =[4]branche!C154/[4]branche!P154 -> 23.36076005 | H152: =G152/[4]branche!P154 -> 0
A153: 1978-03-01 | B153: =[4]branche!T155/[4]branche!T156-1 -> 0.02978643687 | C153: =[4]branche!C155/[4]branche!C156-1 -> 0.009896354041 | D153: 0.01989008283 | F153: =[4]branche!C155/[4]branche!P155 -> 23.21618712 | H153: =G153/[4]branche!P155 -> 0
A154: 1977-12-01 | B154: =[4]branche!T156/[4]branche!T157-1 -> 0.02618324426 | C154: =[4]branche!C156/[4]branche!C157-1 -> 0.01019755906 | D154: 0.0159856852 | F154: =[4]branche!C156/[4]branche!P156 -> 22.92111039 | H154: =G154/[4]branche!P156 -> 0
A155: 1977-09-01 | B155: =[4]branche!T157/[4]branche!T158-1 -> 0.02859289726 | C155: =[4]branche!C157/[4]branche!C158-1 -> 0.01156124182 | D155: 0.01703165543 | F155: =[4]branche!C157/[4]branche!P157 -> 22.60797518 | H155: =G155/[4]branche!P157 -> 0
A156: 1977-06-01 | B156: =[4]branche!T158/[4]branche!T159-1 -> 0.02875044075 | C156: =[4]branche!C158/[4]branche!C159-1 -> 0.002978905544 | D156: 0.02577153521 | F156: =[4]branche!C158/[4]branche!P158 -> 22.24649495 | H156: =G156/[4]branche!P158 -> 0
A157: 1977-03-01 | B157: =[4]branche!T159/[4]branche!T160-1 -> 0.02489332425 | C157: =[4]branche!C159/[4]branche!C160-1 -> 0.01762081588 | D157: 0.007272508371 | F157: =[4]branche!C159/[4]branche!P159 -> 22.05331859 | H157: =G157/[4]branche!P159 -> 0
A158: 1976-12-01 | B158: =[4]branche!T160/[4]branche!T161-1 -> 0.03071501225 | C158: =[4]branche!C160/[4]branche!C161-1 -> 0.00540105367 | D158: 0.02531395858 | F158: =[4]branche!C160/[4]branche!P160 -> 21.54041529 | H158: =G158/[4]branche!P160 -> 0
A159: 1976-09-01 | B159: =[4]branche!T161/[4]branche!T162-1 -> 0.03711462744 | C159: =[4]branche!C161/[4]branche!C162-1 -> 0.01682664196 | D159: 0.02028798548 | F159: =[4]branche!C161/[4]branche!P161 -> 21.3851786 | H159: =G159/[4]branche!P161 -> 0
A160: 1976-06-01 | B160: =[4]branche!T162/[4]branche!T163-1 -> 0.04585573546 | C160: =[4]branche!C162/[4]branche!C163-1 -> 0.01293009185 | D160: 0.03292564361 | F160: =[4]branche!C162/[4]branche!P162 -> 21.0881463 | H160: =G160/[4]branche!P162 -> 0
A161: 1976-03-01 | B161: =[4]branche!T163/[4]branche!T164-1 -> 0.0392920011 | C161: =[4]branche!C163/[4]branche!C164-1 -> 0.004016284708 | D161: 0.03527571639 | F161: =[4]branche!C163/[4]branche!P163 -> 20.97974555 | H161: =G161/[4]branche!P163 -> 0
A162: 1975-12-01 | B162: =[4]branche!T164/[4]branche!T165-1 -> 0.03569337816 | C162: =[4]branche!C164/[4]branche!C165-1 -> 0.01885684458 | D162: 0.01683653358 | F162: =[4]branche!C164/[4]branche!P164 -> 21.14830222 | H162: =G162/[4]branche!P164 -> 0
A163: 1975-09-01 | B163: =[4]branche!T165/[4]branche!T166-1 -> 0.02901843342 | C163: =[4]branche!C165/[4]branche!C166-1 -> 0.001647907904 | D163: 0.02737052551 | F163: =[4]branche!C165/[4]branche!P165 -> 20.8874265 | H163: =G163/[4]branche!P165 -> 0
A164: 1975-06-01 | B164: =[4]branche!T166/[4]branche!T167-1 -> 0.02234695853 | C164: =[4]branche!C166/[4]branche!C167-1 -> -0.01383869587 | D164: 0.03618565439 | F164: =[4]branche!C166/[4]branche!P166 -> 20.86301437 | H164: =G164/[4]branche!P166 -> 0
A165: 1975-03-01 | B165: =[4]branche!T167/[4]branche!T168-1 -> 0.02796418558 | C165: =[4]branche!C167/[4]branche!C168-1 -> -0.006485695337 | D165: 0.03444988092 | F165: =[4]branche!C167/[4]branche!P167 -> 21.05591206 | H165: =G165/[4]branche!P167 -> 0
A166: 1974-12-01 | B166: =[4]branche!T168/[4]branche!T169-1 -> 0.03012968622 | C166: =[4]branche!C168/[4]branche!C169-1 -> -0.01267154682 | D166: 0.04280123304 | F166: =[4]branche!C168/[4]branche!P168 -> 20.97862174 | H166: =G166/[4]branche!P168 -> 0
A167: 1974-09-01 | B167: =[4]branche!T169/[4]branche!T170-1 -> 0.04181387584 | C167: =[4]branche!C169/[4]branche!C170-1 -> 0.007332972447 | D167: 0.03448090339 | F167: =[4]branche!C169/[4]branche!P169 -> 21.0685505 | H167: =G167/[4]branche!P169 -> 0
A168: 1974-06-01 | B168: =[4]branche!T170/[4]branche!T171-1 -> 0.03831657025 | C168: =[4]branche!C170/[4]branche!C171-1 -> 0.01085212145 | D168: 0.0274644488 | F168: =[4]branche!C170/[4]branche!P170 -> 20.80787907 | H168: =G168/[4]branche!P170 -> 0
A169: 1974-03-01 | B169: =[4]branche!T171/[4]branche!T172-1 -> 0.03239970035 | C169: =[4]branche!C171/[4]branche!C172-1 -> 0.02750321288 | D169: 0.004896487468 | F169: =[4]branche!C171/[4]branche!P171 -> 20.52640024 | H169: =G169/[4]branche!P171 -> 0
A170: 1973-12-01 | B170: =[4]branche!T172/[4]branche!T173-1 -> 0.051070624 | C170: =[4]branche!C172/[4]branche!C173-1 -> 0.01022887282 | D170: 0.04084175118 | F170: =[4]branche!C172/[4]branche!P172 -> 19.94327444 | H170: =G170/[4]branche!P172 -> 0
A171: 1973-09-01 | B171: =[4]branche!T173/[4]branche!T174-1 -> 0.04126716618 | C171: =[4]branche!C173/[4]branche!C174-1 -> 0.01301658987 | D171: 0.02825057632 | F171: =[4]branche!C173/[4]branche!P173 -> 19.73780901 | H171: =G171/[4]branche!P173 -> 0
A172: 1973-06-01 | B172: =[4]branche!T174/[4]branche!T175-1 -> 0.03424802732 | C172: =[4]branche!C174/[4]branche!C175-1 -> 0.02162669499 | D172: 0.01262133233 | F172: =[4]branche!C174/[4]branche!P174 -> 19.50348457 | H172: =G172/[4]branche!P174 -> 0
A173: 1973-03-01 | B173: =[4]branche!T175/[4]branche!T176-1 -> 0.03690406409 | C173: =[4]branche!C175/[4]branche!C176-1 -> 0.01448294871 | D173: 0.02242111538 | F173: =[4]branche!C175/[4]branche!P175 -> 19.14713505 | H173: =G173/[4]branche!P175 -> 0
A174: 1972-12-01 | B174: =[4]branche!T176/[4]branche!T177-1 -> 0.02606255012 | C174: =[4]branche!C176/[4]branche!C177-1 -> 0.01359279521 | D174: 0.01246975491 | F174: =[4]branche!C176/[4]branche!P176 -> 18.97446869 | H174: =G174/[4]branche!P176 -> 0
A175: 1972-09-01 | B175: =[4]branche!T177/[4]branche!T178-1 -> 0.03453282174 | C175: =[4]branche!C177/[4]branche!C178-1 -> 0.01170140602 | D175: 0.02283141572 | F175: =[4]branche!C177/[4]branche!P177 -> 18.74585793 | H175: =G175/[4]branche!P177 -> 0
A176: 1972-06-01 | B176: =[4]branche!T178/[4]branche!T179-1 -> 0.0237817178 | C176: =[4]branche!C178/[4]branche!C179-1 -> 0.01445633644 | D176: 0.009325381362 | F176: =[4]branche!C178/[4]branche!P178 -> 18.47784182 | H176: =G176/[4]branche!P178 -> 0
A177: 1972-03-01 | B177: =[4]branche!T179/[4]branche!T180-1 -> 0.03374855951 | C177: =[4]branche!C179/[4]branche!C180-1 -> 0.006290001049 | D177: 0.02745855846 | F177: =[4]branche!C179/[4]branche!P179 -> 18.09186513 | H177: =G177/[4]branche!P179 -> 0
A178: 1971-12-01 | B178: =[4]branche!T180/[4]branche!T181-1 -> 0.01975377728 | C178: =[4]branche!C180/[4]branche!C181-1 -> 0.009998251498 | D178: 0.009755525782 | F178: =[4]branche!C180/[4]branche!P180 -> 17.80679876 | H178: =G178/[4]branche!P180 -> 0
A179: 1971-09-01 | B179: =[4]branche!T181/[4]branche!T182-1 -> 0.03264952326 | C179: =[4]branche!C181/[4]branche!C182-1 -> 0.01274972231 | D179: 0.01989980095 | F179: =[4]branche!C181/[4]branche!P181 -> 17.53714493 | H179: =G179/[4]branche!P181 -> 0
A180: 1971-06-01 | B180: =[4]branche!T182/[4]branche!T183-1 -> 0.02091383735 | C180: =[4]branche!C182/[4]branche!C183-1 -> 0.01103497664 | D180: 0.009878860706 | F180: =[4]branche!C182/[4]branche!P182 -> 17.28248168 | H180: =G180/[4]branche!P182 -> 0
A181: 1971-03-01 | B181: =[4]branche!T183/[4]branche!T184-1 -> 0.0355560986 | C181: =[4]branche!C183/[4]branche!C184-1 -> 0.01301977423 | D181: 0.02253632438 | F181: =[4]branche!C183/[4]branche!P183 -> 17.10336828 | H181: =G181/[4]branche!P183 -> 0
A182: 1970-12-01 | B182: =[4]branche!T184/[4]branche!T185-1 -> 0.02331905849 | C182: =[4]branche!C184/[4]branche!C185-1 -> 0.0150114636 | D182: 0.008307594881 | F182: =[4]branche!C184/[4]branche!P184 -> 16.92123128 | H182: =G182/[4]branche!P184 -> 0
A183: 1970-09-01 | B183: =[4]branche!T185/[4]branche!T186-1 -> 0.0269324602 | C183: =[4]branche!C185/[4]branche!C186-1 -> 0.01215057224 | D183: 0.01478188796 | F183: =[4]branche!C185/[4]branche!P185 -> 16.70655446 | H183: =G183/[4]branche!P185 -> 0
A184: 1970-06-01 | B184: =[4]branche!T186/[4]branche!T187-1 -> 0.03026093859 | C184: =[4]branche!C186/[4]branche!C187-1 -> 0.01495693434 | D184: 0.01530400424 | F184: =[4]branche!C186/[4]branche!P186 -> 16.55444119 | H184: =G184/[4]branche!P186 -> 0
A185: 1970-03-01 | B185: =[4]branche!T187/[4]branche!T188-1 -> 0.035336415 | C185: =[4]branche!C187/[4]branche!C188-1 -> 0.02488488465 | D185: 0.01045153035 | F185: =[4]branche!C187/[4]branche!P187 -> 16.33950392 | H185: =G185/[4]branche!P187 -> 0
A186: 1969-12-01 | B186: =[4]branche!T188/[4]branche!T189-1 -> 0.02466493579 | C186: =[4]branche!C188/[4]branche!C189-1 -> 0.01114093641 | D186: 0.01352399939 | F186: =[4]branche!C188/[4]branche!P188 -> 15.98332801 | H186: =G186/[4]branche!P188 -> 0
A187: 1969-09-01 | B187: =[4]branche!T189/[4]branche!T190-1 -> 0.02363166212 | C187: =[4]branche!C189/[4]branche!C190-1 -> 0.01606878866 | D187: 0.007562873462 | F187: =[4]branche!C189/[4]branche!P189 -> 15.82921281 | H187: =G187/[4]branche!P189 -> 0
A188: 1969-06-01 | B188: =[4]branche!T190/[4]branche!T191-1 -> 0.0253351009 | C188: =[4]branche!C190/[4]branche!C191-1 -> 0.01439029466 | D188: 0.01094480624 | F188: =[4]branche!C190/[4]branche!P190 -> 15.53943815 | H188: =G188/[4]branche!P190 -> 0
A189: 1969-03-01 | B189: =[4]branche!T191/[4]branche!T192-1 -> 0.03843065275 | C189: =[4]branche!C191/[4]branche!C192-1 -> 0.009753022324 | D189: 0.02867763042 | F189: =[4]branche!C191/[4]branche!P191 -> 15.24096498 | H189: =G189/[4]branche!P191 -> 0
A190: 1968-12-01 | B190: =[4]branche!T192/[4]branche!T193-1 -> 0.03412685859 | C190: =[4]branche!C192/[4]branche!C193-1 -> 0.01241458714 | D190: 0.02171227145 | F190: =[4]branche!C192/[4]branche!P192 -> 14.98124983 | H190: =G190/[4]branche!P192 -> 0
A191: 1968-09-01 | B191: =[4]branche!T193/[4]branche!T194-1 -> 0.1085879619 | C191: =[4]branche!C193/[4]branche!C194-1 -> 0.09559327611 | D191: 0.01299468584 | F191: =[4]branche!C193/[4]branche!P193 -> 14.71037105 | H191: =G191/[4]branche!P193 -> 0
A192: 1968-06-01 | B192: =[4]branche!T194/[4]branche!T195-1 -> -0.03815989206 | C192: =[4]branche!C194/[4]branche!C195-1 -> -0.06810878495 | D192: 0.0299488929 | F192: =[4]branche!C194/[4]branche!P194 -> 13.33857605 | H192: =G192/[4]branche!P194 -> 0
A193: 1968-03-01 | B193: =[4]branche!T195/[4]branche!T196-1 -> 0.03355704698 | C193: =[4]branche!C195/[4]branche!C196-1 -> 0.0343075388 | D193: -0.0007504918243 | F193: =[4]branche!C195/[4]branche!P195 -> 14.26297326 | H193: =G193/[4]branche!P195 -> 0
A194: 1967-12-01 | B194: =[4]branche!T196/[4]branche!T197-1 -> 0.008970187319 | C194: =[4]branche!C196/[4]branche!C197-1 -> 0.01232148232 | D194: -0.003351295005 | F194: =[4]branche!C196/[4]branche!P196 -> 13.78096088 | H194: =G194/[4]branche!P196 -> 0
A195: 1967-09-01 | B195: =[4]branche!T197/[4]branche!T198-1 -> 0.02317001845 | C195: =[4]branche!C197/[4]branche!C198-1 -> 0.02252363169 | D195: =B195-C195 -> 0.0006463867584 | F195: =[4]branche!C197/[4]branche!P197 -> 13.56542018 | H195: =G195/[4]branche!P197 -> 0
A196: 1967-06-01 | B196: =[4]branche!T198/[4]branche!T199-1 -> 0.01567355145 | C196: =[4]branche!C198/[4]branche!C199-1 -> 0.0100450438 | D196: 0.005628507653 | F196: =[4]branche!C198/[4]branche!P198 -> 13.22580353 | H196: =G196/[4]branche!P198 -> 0
A197: 1967-03-01 | B197: =[4]branche!T199/[4]branche!T200-1 -> 0.02505972177 | C197: =[4]branche!C199/[4]branche!C200-1 -> 0.01379054343 | D197: 0.01126917834 | F197: =[4]branche!C199/[4]branche!P199 -> 13.03308062 | H197: =G197/[4]branche!P199 -> 0
A198: 1966-12-01 | B198: =[4]branche!T200/[4]branche!T201-1 -> 0.01637705308 | C198: =[4]branche!C200/[4]branche!C201-1 -> 0.005436351729 | D198: 0.01094070135 | F198: =[4]branche!C200/[4]branche!P200 -> 12.78740059 | H198: =G198/[4]branche!P200 -> 0

Sheet Graph Hyper 9
A2: 2015-12-01
A3: 2015-09-01 | B3: 10.2 | C3: =[4]branche!H5/[4]branche!H9-1 -> 0.009802416093
A4: 2015-06-01 | B4: 10 | C4: =[4]branche!H6/[4]branche!H10-1 -> 0.008637775916
A5: 2015-03-01 | B5: 10 | C5: =[4]branche!H7/[4]branche!H11-1 -> 0.009548477945
A6: 2014-12-01 | B6: 10.1 | C6: =[4]branche!H8/[4]branche!H12-1 -> 0.01115121469
A7: 2014-09-01 | B7: 10 | C7: =[4]branche!H9/[4]branche!H13-1 -> 0.01106242463
A8: 2014-06-01 | B8: 9.7 | C8: =[4]branche!H10/[4]branche!H14-1 -> 0.0133934864
A9: 2014-03-01 | B9: 9.8 | C9: =[4]branche!H11/[4]branche!H15-1 -> 0.01752736025
A10: 2013-12-01 | B10: 9.7 | C10: =[4]branche!H12/[4]branche!H16-1 -> 0.01634413186
A11: 2013-09-01 | B11: 9.9 | C11: =[4]branche!H13/[4]branche!H17-1 -> 0.01906938298
A12: 2013-06-01 | B12: 10 | C12: =[4]branche!H14/[4]branche!H18-1 -> 0.02202048253
A13: 2013-03-01 | B13: 9.9 | C13: =[4]branche!H15/[4]branche!H19-1 -> 0.02146027993
A14: 2012-12-01 | B14: 9.7 | C14: =[4]branche!H16/[4]branche!H20-1 -> 0.02264106325
A15: 2012-09-01 | B15: 9.4 | C15: =[4]branche!H17/[4]branche!H21-1 -> 0.02436837847
A16: 2012-06-01 | B16: 9.3 | C16: =[4]branche!H18/[4]branche!H22-1 -> 0.02179179535
A17: 2012-03-01 | B17: 9.1 | C17: =[4]branche!H19/[4]branche!H23-1 -> 0.02064518263
A18: 2011-12-01 | B18: 9 | C18: =[4]branche!H20/[4]branche!H24-1 -> 0.02090772111
A19: 2011-09-01 | B19: 8.8 | C19: =[4]branche!H21/[4]branche!H25-1 -> 0.01601421184
A20: 2011-06-01 | B20: 8.7 | C20: =[4]branche!H22/[4]branche!H26-1 -> 0.0166068761
A21: 2011-03-01 | B21: 8.7 | C21: =[4]branche!H23/[4]branche!H27-1 -> 0.0164943664
A22: 2010-12-01 | B22: 8.8 | C22: =[4]branche!H24/[4]branche!H28-1 -> 0.01756154101
A23: 2010-09-01 | B23: 8.8 | C23: =[4]branche!H25/[4]branche!H29-1 -> 0.02500514712
A24: 2010-06-01 | B24: 8.9 | C24: =[4]branche!H26/[4]branche!H30-1 -> 0.02885977014
A25: 2010-03-01 | B25: 9 | C25: =[4]branche!H27/[4]branche!H31-1 -> 0.03166779603
A26: 2009-12-01 | B26: 9.2 | C26: =[4]branche!H28/[4]branche!H32-1 -> 0.0278706364
A27: 2009-09-01 | B27: 8.8 | C27: =[4]branche!H29/[4]branche!H33-1 -> 0.022729207
A28: 2009-06-01 | B28: 8.8 | C28: =[4]branche!H30/[4]branche!H34-1 -> 0.0222301572
A29: 2009-03-01 | B29: 8.2 | C29: =[4]branche!H31/[4]branche!H35-1 -> 0.02120012385
A30: 2008-12-01 | B30: 7.4 | C30: =[4]branche!H32/[4]branche!H36-1 -> 0.02657028387
A31: 2008-09-01 | B31: 7.1 | C31: =[4]branche!H33/[4]branche!H37-1 -> 0.03004368735
A32: 2008-06-01 | B32: 7 | C32: =[4]branche!H34/[4]branche!H38-1 -> 0.02590732494
A33: 2008-03-01 | B33: 6.8 | C33: =[4]branche!H35/[4]branche!H39-1 -> 0.02086195128
A34: 2007-12-01 | B34: 7.2 | C34: =[4]branche!H36/[4]branche!H40-1 -> 0.01210078171
A35: 2007-09-01 | B35: 7.6 | C35: =[4]branche!H37/[4]branche!H41-1 -> 0.01314563467
A36: 2007-06-01 | B36: 7.8 | C36: =[4]branche!H38/[4]branche!H42-1 -> 0.01754983379
A37: 2007-03-01 | B37: 8.1 | C37: =[4]branche!H39/[4]branche!H43-1 -> 0.02586800591
A38: 2006-12-01 | B38: 8 | C38: =[4]branche!H40/[4]branche!H44-1 -> 0.0377742103
A39: 2006-09-01 | B39: 8.5 | C39: =[4]branche!H41/[4]branche!H45-1 -> 0.04244113805
A40: 2006-06-01 | B40: 8.6 | C40: =[4]branche!H42/[4]branche!H46-1 -> 0.04528417578
A41: 2006-03-01 | B41: 8.7 | C41: =[4]branche!H43/[4]branche!H47-1 -> 0.04434014947
A42: 2005-12-01 | B42: 8.7 | C42: =[4]branche!H44/[4]branche!H48-1 -> 0.04168028564
A43: 2005-09-01 | B43: 8.6 | C43: =[4]branche!H45/[4]branche!H49-1 -> 0.03447024906
A44: 2005-06-01 | B44: 8.4 | C44: =[4]branche!H46/[4]branche!H50-1 -> 0.0275463201
A45: 2005-03-01 | B45: 8.3 | C45: =[4]branche!H47/[4]branche!H51-1 -> 0.02292815141
A46: 2004-12-01 | B46: 8.5 | C46: =[4]branche!H48/[4]branche!H52-1 -> 0.02298733975
A47: 2004-09-01 | B47: 8.5 | C47: =[4]branche!H49/[4]branche!H53-1 -> 0.01914113552
A48: 2004-06-01 | B48: 8.4 | C48: =[4]branche!H50/[4]branche!H54-1 -> 0.02298268839
A49: 2004-03-01 | B49: 8.6 | C49: =[4]branche!H51/[4]branche!H55-1 -> 0.02571592945
A50: 2003-12-01 | B50: 8.4 | C50: =[4]branche!H52/[4]branche!H56-1 -> 0.02309460833
A51: 2003-09-01 | B51: 8 | C51: =[4]branche!H53/[4]branche!H57-1 -> 0.02777907698
A52: 2003-06-01 | B52: 8.1 | C52: =[4]branche!H54/[4]branche!H58-1 -> 0.02897863282
A53: 2003-03-01 | B53: 8 | C53: =[4]branche!H55/[4]branche!H59-1 -> 0.04236921343
A54: 2002-12-01 | B54: 7.6 | C54: =[4]branche!H56/[4]branche!H60-1 -> 0.05621443173
A55: 2002-09-01 | B55: 7.5 | C55: =[4]branche!H57/[4]branche!H61-1 -> 0.06082606707
A56: 2002-06-01 | B56: 7.5 | C56: =[4]branche!H58/[4]branche!H62-1 -> 0.06474654939
A57: 2002-03-01 | B57: 7.5 | C57: =[4]branche!H59/[4]branche!H63-1 -> 0.05898018757
A58: 2001-12-01 | B58: 7.5 | C58: =[4]branche!H60/[4]branche!H64-1 -> 0.04255080587
A59: 2001-09-01 | B59: 7.4 | C59: =[4]branche!H61/[4]branche!H65-1 -> 0.03961861224
A60: 2001-06-01 | B60: 7.3 | C60: =[4]branche!H62/[4]branche!H66-1 -> 0.03770483089
A61: 2001-03-01 | B61: 7.4 | C61: =[4]branche!H63/[4]branche!H67-1 -> 0.03487848048
A62: 2000-12-01 | B62: 7.7 | C62: =[4]branche!H64/[4]branche!H68-1 -> 0.04689710084
A63: 2000-09-01 | B63: 8 | C63: =[4]branche!H65/[4]branche!H69-1 -> 0.05080153756
A64: 2000-06-01 | B64: 8.3 | C64: =[4]branche!H66/[4]branche!H70-1 -> 0.05012713305
A65: 2000-03-01 | B65: 8.7 | C65: =[4]branche!H67/[4]branche!H71-1 -> 0.04316617932
A66: 1999-12-01 | B66: 9.1 | C66: =[4]branche!H68/[4]branche!H72-1 -> 0.03625346908
A67: 1999-09-01 | B67: 9.5 | C67: =[4]branche!H69/[4]branche!H73-1 -> 0.03135290708
A68: 1999-06-01 | B68: 9.8 | C68: =[4]branche!H70/[4]branche!H74-1 -> 0.02908997437
A69: 1999-03-01 | B69: 9.9 | C69: =[4]branche!H71/[4]branche!H75-1 -> 0.03064208697
A70: 1998-12-01 | B70: 9.8 | C70: =[4]branche!H72/[4]branche!H76-1 -> 0.03143657058
A71: 1998-09-01 | B71: 9.8 | C71: =[4]branche!H73/[4]branche!H77-1 -> 0.02864952172
A72: 1998-06-01 | B72: 9.9 | C72: =[4]branche!H74/[4]branche!H78-1 -> 0.02556599128
A73: 1998-03-01 | B73: 10 | C73: =[4]branche!H75/[4]branche!H79-1 -> 0.02777136799
A74: 1997-12-01 | B74: 10.2 | C74: =[4]branche!H76/[4]branche!H80-1 -> 0.02631998535
A75: 1997-09-01 | B75: 10.3 | C75: =[4]branche!H77/[4]branche!H81-1 -> 0.02349705297
A76: 1997-06-01 | B76: 10.4 | C76: =[4]branche!H78/[4]branche!H82-1 -> 0.023435317
A77: 1997-03-01 | B77: 10.3 | C77: =[4]branche!H79/[4]branche!H83-1 -> 0.02156545212
A78: 1996-12-01 | B78: 10.2 | C78: =[4]branche!H80/[4]branche!H84-1 -> 0.02079475706
A79: 1996-09-01 | B79: 10.2 | C79: =[4]branche!H81/[4]branche!H85-1 -> 0.0230224084
A80: 1996-06-01 | B80: 10.2 | C80: =[4]branche!H82/[4]branche!H86-1 -> 0.02466385205
A81: 1996-03-01 | B81: 9.9 | C81: =[4]branche!H83/[4]branche!H87-1 -> 0.02903045253
A82: 1995-12-01 | B82: 9.6 | C82: =[4]branche!H84/[4]branche!H88-1 -> 0.03095187557
A83: 1995-09-01 | B83: 9.5 | C83: =[4]branche!H85/[4]branche!H89-1 -> 0.03963446989
A84: 1995-06-01 | B84: 9.7 | C84: =[4]branche!H86/[4]branche!H90-1 -> 0.04096390887
A85: 1995-03-01 | B85: 9.9 | C85: =[4]branche!H87/[4]branche!H91-1 -> 0.03297880377
A86: 1994-12-01 | B86: 10 | C86: =[4]branche!H88/[4]branche!H92-1 -> 0.02857776909
A87: 1994-09-01 | B87: 10.3 | C87: =[4]branche!H89/[4]branche!H93-1 -> 0.02063194399
A88: 1994-06-01 | B88: 10.4 | C88: =[4]branche!H90/[4]branche!H94-1 -> 0.01601948357
A89: 1994-03-01 | B89: 10.3 | C89: =[4]branche!H91/[4]branche!H95-1 -> 0.01956602747
A90: 1993-12-01 | B90: 10.1 | C90: =[4]branche!H92/[4]branche!H96-1 -> 0.02698707561
A91: 1993-09-01 | B91: 9.8 | C91: =[4]branche!H93/[4]branche!H97-1 -> 0.03465372739
A92: 1993-06-01 | B92: 9.5 | C92: =[4]branche!H94/[4]branche!H98-1 -> 0.04468346922
A93: 1993-03-01 | B93: 9.2 | C93: =[4]branche!H95/[4]branche!H99-1 -> 0.04381240963
A94: 1992-12-01 | B94: 8.9 | C94: =[4]branche!H96/[4]branche!H100-1 -> 0.04690209032
A95: 1992-09-01 | B95: 8.8 | C95: =[4]branche!H97/[4]branche!H101-1 -> 0.04978893144
A96: 1992-06-01 | B96: 8.6 | C96: =[4]branche!H98/[4]branche!H102-1 -> 0.04428086042
A97: 1992-03-01 | B97: 8.3 | C97: =[4]branche!H99/[4]branche!H103-1 -> 0.05476777791
A98: 1991-12-01 | B98: 8.1 | C98: =[4]branche!H100/[4]branche!H104-1 -> 0.04459199646
A99: 1991-09-01 | B99: 7.9 | C99: =[4]branche!H101/[4]branche!H105-1 -> 0.04136817838
A100: 1991-06-01 | B100: 7.7 | C100: =[4]branche!H102/[4]branche!H106-1 -> 0.04784673716
A101: 1991-03-01 | B101: 7.5 | C101: =[4]branche!H103/[4]branche!H107-1 -> 0.05100240967
A102: 1990-12-01 | B102: 7.6 | C102: =[4]branche!H104/[4]branche!H108-1 -> 0.05767421485
A103: 1990-09-01 | B103: 7.6 | C103: =[4]branche!H105/[4]branche!H109-1 -> 0.06478025605
A104: 1990-06-01 | B104: 7.6 | C104: =[4]branche!H106/[4]branche!H110-1 -> 0.0622108697
A105: 1990-03-01 | B105: 7.7 | C105: =[4]branche!H107/[4]branche!H111-1 -> 0.05956283513
A106: 1989-12-01 | B106: 7.7 | C106: =[4]branche!H108/[4]branche!H112-1 -> 0.06290561096
A107: 1989-09-01 | B107: 7.8 | C107: =[4]branche!H109/[4]branche!H113-1 -> 0.05630292267
A108: 1989-06-01 | B108: 7.9 | C108: =[4]branche!H110/[4]branche!H114-1 -> 0.05696115368
A109: 1989-03-01 | B109: 8 | C109: =[4]branche!H111/[4]branche!H115-1 -> 0.04815564356
A110: 1988-12-01 | B110: 8.2 | C110: =[4]branche!H112/[4]branche!H116-1 -> 0.04518694478
A111: 1988-09-01 | B111: 8.4 | C111: =[4]branche!H113/[4]branche!H117-1 -> 0.04194145817
A112: 1988-06-01 | B112: 8.4 | C112: =[4]branche!H114/[4]branche!H118-1 -> 0.03846781182
A113: 1988-03-01 | B113: 8.6 | C113: =[4]branche!H115/[4]branche!H119-1 -> 0.03448463283
A114: 1987-12-01 | B114: 8.6 | C114: =[4]branche!H116/[4]branche!H120-1 -> 0.03390843428
A115: 1987-09-01 | B115: 8.7 | C115: =[4]branche!H117/[4]branche!H121-1 -> 0.02637391287
A116: 1987-06-01 | B116: 8.8 | C116: =[4]branche!H118/[4]branche!H122-1 -> 0.01803860928
A117: 1987-03-01 | B117: 8.8 | C117: =[4]branche!H119/[4]branche!H123-1 -> 0.02931142808
A118: 1986-12-01 | B118: 8.7 | C118: =[4]branche!H120/[4]branche!H124-1 -> 0.02756817037
A119: 1986-09-01 | B119: 8.6 | C119: =[4]branche!H121/[4]branche!H125-1 -> 0.04119872435
A120: 1986-06-01 | B120: 8.6 | C120: =[4]branche!H122/[4]branche!H126-1 -> 0.05826569331
A121: 1986-03-01 | B121: 8.5 | C121: =[4]branche!H123/[4]branche!H127-1 -> 0.06418893221
A122: 1985-12-01 | B122: 8.5 | C122: =[4]branche!H124/[4]branche!H128-1 -> 0.07894276188
A123: 1985-09-01 | B123: 8.6 | C123: =[4]branche!H125/[4]branche!H129-1 -> 0.08974072286
A124: 1985-06-01 | B124: 8.5 | C124: =[4]branche!H126/[4]branche!H130-1 -> 0.08165366218
A125: 1985-03-01 | B125: 8.5 | C125: =[4]branche!H127/[4]branche!H131-1 -> 0.08315071477
A126: 1984-12-01 | B126: 8.4 | C126: =[4]branche!H128/[4]branche!H132-1 -> 0.07845977829
A127: 1984-09-01 | B127: 8.2 | C127: =[4]branche!H129/[4]branche!H133-1 -> 0.07468674487
A128: 1984-06-01 | B128: 8 | C128: =[4]branche!H130/[4]branche!H134-1 -> 0.09216742764
A129: 1984-03-01 | B129: 7.6 | C129: =[4]branche!H131/[4]branche!H135-1 -> 0.09075177269
A130: 1983-12-01 | B130: 7.2 | C130: =[4]branche!H132/[4]branche!H136-1 -> 0.1013381075
A131: 1983-09-01 | B131: 6.9 | C131: =[4]branche!H133/[4]branche!H137-1 -> 0.1050117708
A132: 1983-06-01 | B132: 6.7 | C132: =[4]branche!H134/[4]branche!H138-1 -> 0.1092890188
A133: 1983-03-01 | B133: 6.7 | C133: =[4]branche!H135/[4]branche!H139-1 -> 0.1305810552
A134: 1982-12-01 | B134: 6.7 | C134: =[4]branche!H136/[4]branche!H140-1 -> 0.1644637119
A135: 1982-09-01 | B135: 6.7 | C135: =[4]branche!H137/[4]branche!H141-1 -> 0.1949666137
A136: 1982-06-01 | B136: 6.5 | C136: =[4]branche!H138/[4]branche!H142-1 -> 0.2093288351
A137: 1982-03-01 | B137: 6.4 | C137: =[4]branche!H139/[4]branche!H143-1 -> 0.205227875
A138: 1981-12-01 | B138: 6.4 | C138: =[4]branche!H140/[4]branche!H144-1 -> 0.1725771558
A139: 1981-09-01 | B139: 6.2 | C139: =[4]branche!H141/[4]branche!H145-1 -> 0.1480235779
A140: 1981-06-01 | B140: 5.9 | C140: =[4]branche!H142/[4]branche!H146-1 -> 0.1382647722
A141: 1981-03-01 | B141: 5.6 | C141: =[4]branche!H143/[4]branche!H147-1 -> 0.1390442334
A142: 1980-12-01 | B142: 5.3 | C142: =[4]branche!H144/[4]branche!H148-1 -> 0.1476562157
A143: 1980-09-01 | B143: 5.1 | C143: =[4]branche!H145/[4]branche!H149-1 -> 0.1531916786
A144: 1980-06-01 | B144: 5 | C144: =[4]branche!H146/[4]branche!H150-1 -> 0.1535004927
A145: 1980-03-01 | B145: 5 | C145: =[4]branche!H147/[4]branche!H151-1 -> 0.1469851432
A146: 1979-12-01 | B146: 4.9 | C146: =[4]branche!H148/[4]branche!H152-1 -> 0.1326763493
A147: 1979-09-01 | B147: 4.9 | C147: =[4]branche!H149/[4]branche!H153-1 -> 0.1285336757
A148: 1979-06-01 | B148: 4.7 | C148: =[4]branche!H150/[4]branche!H154-1 -> 0.1288437382
A149: 1979-03-01 | B149: 4.6 | C149: =[4]branche!H151/[4]branche!H155-1 -> 0.1305125646
A150: 1978-12-01 | B150: 4.6 | C150: =[4]branche!H152/[4]branche!H156-1 -> 0.1412015205
A151: 1978-09-01 | B151: 4.4 | C151: =[4]branche!H153/[4]branche!H157-1 -> 0.147194739
A152: 1978-06-01 | B152: 4.1 | C152: =[4]branche!H154/[4]branche!H158-1 -> 0.1460669364
A153: 1978-03-01 | B153: 4 | C153: =[4]branche!H155/[4]branche!H159-1 -> 0.1460734988
A154: 1977-12-01 | B154: 4.2 | C154: =[4]branche!H156/[4]branche!H160-1 -> 0.1486129221
A155: 1977-09-01 | B155: 4.3 | C155: =[4]branche!H157/[4]branche!H161-1 -> 0.14860319
A156: 1977-06-01 | B156: 4.1 | C156: =[4]branche!H158/[4]branche!H162-1 -> 0.1535160214
A157: 1977-03-01 | B157: 3.8 | C157: =[4]branche!H159/[4]branche!H163-1 -> 0.153790777
A158: 1976-12-01 | B158: 3.6 | C158: =[4]branche!H160/[4]branche!H164-1 -> 0.1419193445
A159: 1976-09-01 | B159: 3.6 | C159: =[4]branche!H161/[4]branche!H165-1 -> 0.1309408833
A160: 1976-06-01 | B160: 3.7 | C160: =[4]branche!H162/[4]branche!H166-1 -> 0.1300375814
A161: 1976-03-01 | B161: 3.6 | C161: =[4]branche!H163/[4]branche!H167-1 -> 0.145942526
A162: 1975-12-01 | B162: 3.6 | C162: =[4]branche!H164/[4]branche!H168-1 -> 0.1825888596
A163: 1975-09-01 | B163: 3.5 | C163: =[4]branche!H165/[4]branche!H169-1 -> 0.1991812394
A164: 1975-06-01 | B164: 3.2 | C164: =[4]branche!H166/[4]branche!H170-1 -> 0.212720478
A165: 1975-03-01 | B165: 2.9 | C165: =[4]branche!H167/[4]branche!H171-1 -> 0.2302427591
A166: 1974-12-01 | C166: =[4]branche!H168/[4]branche!H172-1 -> 0.2195531264
A167: 1974-09-01 | C167: =[4]branche!H169/[4]branche!H173-1 -> 0.2186321145
A168: 1974-06-01 | C168: =[4]branche!H170/[4]branche!H174-1 -> 0.2072883391
A169: 1974-03-01 | C169: =[4]branche!H171/[4]branche!H175-1 -> 0.1705317212
A170: 1973-12-01 | C170: =[4]branche!H172/[4]branche!H176-1 -> 0.1502899553
A171: 1973-09-01 | C171: =[4]branche!H173/[4]branche!H177-1 -> 0.1435142067
A172: 1973-06-01 | C172: =[4]branche!H174/[4]branche!H178-1 -> 0.136439775
A173: 1973-03-01 | C173: =[4]branche!H175/[4]branche!H179-1 -> 0.1436339217
A174: 1972-12-01 | C174: =[4]branche!H176/[4]branche!H180-1 -> 0.1430227778
A175: 1972-09-01 | C175: =[4]branche!H177/[4]branche!H181-1 -> 0.1446777792
A176: 1972-06-01 | C176: =[4]branche!H178/[4]branche!H182-1 -> 0.145093899
A177: 1972-03-01 | C177: =[4]branche!H179/[4]branche!H183-1 -> 0.1309499046
A178: 1971-12-01 | C178: =[4]branche!H180/[4]branche!H184-1 -> 0.1300472462
A179: 1971-09-01 | C179: =[4]branche!H181/[4]branche!H185-1 -> 0.1269818924
A180: 1971-06-01 | C180: =[4]branche!H182/[4]branche!H186-1 -> 0.1163661
A181: 1971-03-01 | C181: =[4]branche!H183/[4]branche!H187-1 -> 0.1217768302
A182: 1970-12-01 | C182: =[4]branche!H184/[4]branche!H188-1 -> 0.1247056951
A183: 1970-09-01 | C183: =[4]branche!H185/[4]branche!H189-1 -> 0.1257716909
A184: 1970-06-01 | C184: =[4]branche!H186/[4]branche!H190-1 -> 0.1338045266
A185: 1970-03-01 | C185: =[4]branche!H187/[4]branche!H191-1 -> 0.1378107345
A186: 1969-12-01 | C186: =[4]branche!H188/[4]branche!H192-1 -> 0.1341162474
A187: 1969-09-01 | C187: =[4]branche!H189/[4]branche!H193-1 -> 0.1318319316
A188: 1969-06-01 | C188: =[4]branche!H190/[4]branche!H194-1 -> 0.2191564565
A189: 1969-03-01 | C189: =[4]branche!H191/[4]branche!H195-1 -> 0.1992306869
A190: 1968-12-01 | C190: =[4]branche!H192/[4]branche!H196-1 -> 0.1979611716
A191: 1968-09-01 | C191: =[4]branche!H193/[4]branche!H197-1 -> 0.1828336219
A192: 1968-06-01 | C192: =[4]branche!H194/[4]branche!H198-1 -> 0.08830565823
A193: 1968-03-01 | C193: =[4]branche!H195/[4]branche!H199-1 -> 0.09084764363
A194: 1967-12-01 | C194: =[4]branche!H196/[4]branche!H200-1 -> 0.09224455647
A195: 1967-09-01 | C195: =[4]branche!H197/[4]branche!H201-1 -> 0.09795782107
A196: 1967-06-01 | C196: =[4]branche!H198/[4]branche!H202-1 -> 0.09603258419
A197: 1967-03-01 | C197: =[4]branche!H199/[4]branche!H203-1 -> 0.09563717947
A198: 1966-12-01 | C198: =[4]branche!H200/[4]branche!H204-1 -> 0.08074597459

Sheet Graph Hyper 10
A1: Back to menu
H3: France | I3: Espagne | J3: Italie | K3: Allemagne
G4: 1995 | H4: =B87 -> 98.83 | I4: =C87 -> 98.67 | J4: 98.37 | K4: 99.9
H5: =B88 -> 99.59 | I5: =C88 -> 99.9 | J5: =D88 -> 99.42 | K5: =E88 -> 100.35
H6: 101.42 | I6: 100.56 | J6: 100.64 | K6: 100.03
H7: 100.16 | I7: 100.87 | J7: 101.57 | K7: 99.72
G8: 1996 | H8: 99.11 | I8: 101.25 | J8: 102.59 | K8: 99.27
H9: 100.29 | I9: 101.97 | J9: 103.08 | K9: 98.92
H10: 102.41 | I10: 102.03 | J10: 104.32 | K10: 98.58
H11: 101.71 | I11: 102.22 | J11: 105.38 | K11: 98.09
G12: 1997 | H12: 97.69 | I12: 102.42 | J12: 107.07 | K12: 97.78
H13: 100.76 | I13: 103.22 | J13: 107.28 | K13: 97.42
H14: 101.71 | I14: 103.76 | J14: 107.33 | K14: 97.27
H15: 101.47 | I15: 104.54 | J15: 107.82 | K15: 96.81
G16: 1998 | H16: 99.58 | I16: 104.93 | J16: 106.35 | K16: 96.55
H17: 101.94 | I17: 107.24 | J17: 107.5 | K17: 96.96
H18: 104.54 | I18: 109.4 | J18: 107.72 | K18: 96.88
H19: 104.07 | I19: 111.61 | J19: 107.75 | K19: 96.75
G20: 1999 | H20: 105.25 | I20: 115 | J20: 107.52 | K20: 96.67
H21: 107.84 | I21: 118.84 | J21: 108.21 | K21: 96.84
H22: 112.32 | I22: 122.08 | J22: 108.74 | K22: 97.08
H23: 112.56 | I23: 122.23 | J23: 109.35 | K23: 97.4
G24: 2000 | H24: 114.45 | I24: 126.21 | J24: 110.91 | K24: 97.89
H25: 117.99 | I25: 129.75 | J25: 111.85 | K25: 98.34
H26: 122.47 | I26: 131.52 | J26: 113.38 | K26: 98.68
H27: 121.76 | I27: 131.67 | J27: 114.68 | K27: 99.09
G28: 2001 | H28: 123.42 | I28: 137.12 | J28: 116.01 | K28: 99.29
H29: 127.66 | I29: 141.84 | J29: 117.48 | K29: 99.58
H30: 131.67 | I30: 144.94 | J30: 120 | K30: 99.87
H31: 131.67 | I31: 146.41 | J31: 123.21 | K31: 99.98
G32: 2002 | H32: 132.85 | I32: 155.11 | J32: 130.28 | K32: 100.36
H33: 137.57 | I33: 164.69 | J33: 133.02 | K33: 100.62
H34: 143.71 | I34: 168.53 | J34: 134.62 | K34: 100.66
H35: 145.13 | I35: 171.77 | J35: 135.62 | K35: 100.5
G36: 2003 | H36: 147.72 | I36: 181.35 | J36: 138.69 | K36: 100.39
H37: 153.62 | I37: 193.15 | J37: 140.55 | K37: 99.69
H38: 160.46 | I38: 198.31 | J38: 143.15 | K38: 99.59
H39: 163.53 | I39: 203.47 | J39: 144.04 | K39: 100.19
G40: 2004 | H40: 168.96 | I40: 214.68 | J40: 145.53 | K40: 100.09
H41: 176.04 | I41: 226.91 | J41: 148.47 | K41: 100.69
H42: 185.24 | I42: 231.63 | J42: 152.36 | K42: 100.59
H43: 189.72 | I43: 238.56 | J43: 154.7 | K43: 101.29
G44: 2005 | H44: 195.15 | I44: 248.44 | J44: 157.65 | K44: 104.99
H45: 203.65 | I45: 258.47 | J45: 160.56 | K45: 103.49
H46: 214.03 | I46: 262.74 | J46: 163.69 | K46: 104.69
H47: 218.04 | I47: 268.93 | J47: 165.16 | K47: 103.99
G48: 2006 | H48: 223 | I48: 278.93 | J48: 166.94 | K48: 103.19
H49: 230.08 | I49: 290.87 | J49: 170.18 | K49: 104.59
H50: 237.44 | I50: 300.37 | J50: 173.27 | K50: 105.59
H51: 239.41 | I51: 308.13 | J51: 174.43 | K51: 104.49
G52: 2007 | H52: 241.13 | I52: 315.53 | J52: 176.73 | K52: 103.89
H53: 245.3 | I53: 324.54 | J53: 178.75 | K53: 103.79
H54: 250.95 | I54: 328.05 | J54: 181.21 | K54: 104.49
H55: 252.67 | I55: 325.71 | J55: 182.17 | K55: 104.69
G56: 2008 | H56: 250.95 | I56: 324.51 | J56: 183.33 | K56: 106.89
H57: 251.68 | I57: 323.66 | J57: 185.16 | K57: 107.69
H58: 252.42 | I58: 318.51 | J58: 185.95 | K58: 107.09
H59: 243.83 | I59: 308.68 | J59: 183.12 | K59: 107.79
G60: 2009 | H60: 234.74 | I60: 300.43 | J60: 183.77 | K60: 107.59
H61: 231.3 | I61: 299.09 | J61: 183.57 | K61: 106.49
H62: 235.23 | I62: 296.37 | J62: 183.85 | K62: 106.49
H63: 235.97 | I63: 295.17 | J63: 182.65 | K63: 106.99
G64: 2010 | H64: 237.69 | I64: 291.48 | J64: 179.9 | K64: 105.99
H65: =B148 -> 242.6 | I65: 296.22 | J65: 180.81 | K65: 107.19
H66: =B149 -> 249.47 | I66: =C149 -> 291.31 | J66: =D149 -> 181.35 | K66: =E149 -> 107.99
H67: 252.42 | I67: 291.01 | J67: 181.17 | K67: 108.59
G68: 2011 | H68: 253.89 | I68: 281.1 | J68: 180.99 | K68: 109.29
H69: 259.05 | I69: 277.73 | J69: 182.98 | K69: 109.69
H70: 264.21 | I70: 267.82 | J70: 182.98 | K70: 110.89
H71: 261.75 | I71: 253.92 | J71: 181.71 | K71: 111.09
G72: 2012 | H72: 258.31 | I72: 241.26 | J72: 180.63 | K72: 111.99
H73: 258.56 | I73: 233.42 | J73: 179.18 | K73: 113.49
H74: 260.28 | I74: 224.7 | J74: 176.11 | K74: 113.89
H75: 256.35 | I75: 221.54 | J75: 172.31 | K75: 114.89
G76: 2013 | H76: 253.4 | I76: 210.31 | J76: 169.78 | K76: 115.79
H77: 252.91 | I77: 208.64 | J77: 168.69 | K77: 117.19
H78: 255.12 | I78: 210.28 | J78: 166.16 | K78: 118.19
H79: 252.42 | I79: 207.59 | J79: 163.09 | K79: 117.69
G80: 2014 | H80: 249.47 | I80: 206.95 | J80: 161.46 | K80: 118.59
H81: 249.97 | I81: 210.4 | J81: 160.38 | K81: 120.09
H82: 251.68 | I82: 210.87 | J82: 159.65 | K82: 121.89
H83: 246.53 | I83: 211.25 | J83: 157.12 | K83: 122.79
G84: 2015 | H84: 244.32 | I84: 210.17 | J84: 155.68 | K84: 124.49
H85: 244.56 | I85: 218.85 | J85: 155.68 | K85: 125.39
H86: 248.62 | I86: 220.32 | J86: 156.04 | K86: 127.19
A87: 1995-03-31 | B87: 98.83 | C87: 98.67 | D87: 98.37 | E87: 99.9
A88: 1995-06-30 | B88: 99.59 | C88: 99.9 | D88: 99.42 | E88: 100.35
A89: 1995-09-30 | B89: 101.42 | C89: 100.56 | D89: 100.64 | E89: 100.03
A90: 1995-12-31 | B90: 100.16 | C90: 100.87 | D90: 101.57 | E90: 99.72
A91: 1996-03-31 | B91: 99.11 | C91: 101.25 | D91: 102.59 | E91: 99.27
A92: 1996-06-30 | B92: 100.29 | C92: 101.97 | D92: 103.08 | E92: 98.92
A93: 1996-09-30 | B93: 102.41 | C93: 102.03 | D93: 104.32 | E93: 98.58
A94: 1996-12-31 | B94: 101.71 | C94: 102.22 | D94: 105.38 | E94: 98.09
A95: 1997-03-31 | B95: 97.69 | C95: 102.42 | D95: 107.07 | E95: 97.78
A96: 1997-06-30 | B96: 100.76 | C96: 103.22 | D96: 107.28 | E96: 97.42
A97: 1997-09-30 | B97: 101.71 | C97: 103.76 | D97: 107.33 | E97: 97.27
A98: 1997-12-31 | B98: 101.47 | C98: 104.54 | D98: 107.82 | E98: 96.81
A99: 1998-03-31 | B99: 99.58 | C99: 104.93 | D99: 106.35 | E99: 96.55
A100: 1998-06-30 | B100: 101.94 | C100: 107.24 | D100: 107.5 | E100: 96.96
A101: 1998-09-30 | B101: 104.54 | C101: 109.4 | D101: 107.72 | E101: 96.88
A102: 1998-12-31 | B102: 104.07 | C102: 111.61 | D102: 107.75 | E102: 96.75
A103: 1999-03-31 | B103: 105.25 | C103: 115 | D103: 107.52 | E103: 96.67
A104: 1999-06-30 | B104: 107.84 | C104: 118.84 | D104: 108.21 | E104: 96.84
A105: 1999-09-30 | B105: 112.32 | C105: 122.08 | D105: 108.74 | E105: 97.08
A106: 1999-12-31 | B106: 112.56 | C106: 122.23 | D106: 109.35 | E106: 97.4
A107: 2000-03-31 | B107: 114.45 | C107: 126.21 | D107: 110.91 | E107: 97.89
A108: 2000-06-30 | B108: 117.99 | C108: 129.75 | D108: 111.85 | E108: 98.34
A109: 2000-09-30 | B109: 122.47 | C109: 131.52 | D109: 113.38 | E109: 98.68
A110: 2000-12-31 | B110: 121.76 | C110: 131.67 | D110: 114.68 | E110: 99.09
A111: 2001-03-31 | B111: 123.42 | C111: 137.12 | D111: 116.01 | E111: 99.29
A112: 2001-06-30 | B112: 127.66 | C112: 141.84 | D112: 117.48 | E112: 99.58
A113: 2001-09-30 | B113: 131.67 | C113: 144.94 | D113: 120 | E113: 99.87
A114: 2001-12-31 | B114: 131.67 | C114: 146.41 | D114: 123.21 | E114: 99.98
A115: 2002-03-31 | B115: 132.85 | C115: 155.11 | D115: 130.28 | E115: 100.36
A116: 2002-06-30 | B116: 137.57 | C116: 164.69 | D116: 133.02 | E116: 100.62
A117: 2002-09-30 | B117: 143.71 | C117: 168.53 | D117: 134.62 | E117: 100.66
A118: 2002-12-31 | B118: 145.13 | C118: 171.77 | D118: 135.62 | E118: 100.5
A119: 2003-03-31 | B119: 147.72 | C119: 181.35 | D119: 138.69 | E119: 100.39
A120: 2003-06-30 | B120: 153.62 | C120: 193.15 | D120: 140.55 | E120: 99.69
A121: 2003-09-30 | B121: 160.46 | C121: 198.31 | D121: 143.15 | E121: 99.59
A122: 2003-12-31 | B122: 163.53 | C122: 203.47 | D122: 144.04 | E122: 100.19
A123: 2004-03-31 | B123: 168.96 | C123: 214.68 | D123: 145.53 | E123: 100.09
A124: 2004-06-30 | B124: 176.04 | C124: 226.91 | D124: 148.47 | E124: 100.69
A125: 2004-09-30 | B125: 185.24 | C125: 231.63 | D125: 152.36 | E125: 100.59
A126: 2004-12-31 | B126: 189.72 | C126: 238.56 | D126: 154.7 | E126: 101.29
A127: 2005-03-31 | B127: 195.15 | C127: 248.44 | D127: 157.65 | E127: 104.99
A128: 2005-06-30 | B128: 203.65 | C128: 258.47 | D128: 160.56 | E128: 103.49
A129: 2005-09-30 | B129: 214.03 | C129: 262.74 | D129: 163.69 | E129: 104.69
A130: 2005-12-31 | B130: 218.04 | C130: 268.93 | D130: 165.16 | E130: 103.99
A131: 2006-03-31 | B131: 223 | C131: 278.93 | D131: 166.94 | E131: 103.19
A132: 2006-06-30 | B132: 230.08 | C132: 290.87 | D132: 170.18 | E132: 104.59
A133: 2006-09-30 | B133: 237.44 | C133: 300.37 | D133: 173.27 | E133: 105.59
A134: 2006-12-31 | B134: 239.41 | C134: 308.13 | D134: 174.43 | E134: 104.49
A135: 2007-03-31 | B135: 241.13 | C135: 315.53 | D135: 176.73 | E135: 103.89
A136: 2007-06-30 | B136: 245.3 | C136: 324.54 | D136: 178.75 | E136: 103.79
A137: 2007-09-30 | B137: 250.95 | C137: 328.05 | D137: 181.21 | E137: 104.49
A138: 2007-12-31 | B138: 252.67 | C138: 325.71 | D138: 182.17 | E138: 104.69
A139: 2008-03-31 | B139: 250.95 | C139: 324.51 | D139: 183.33 | E139: 106.89
A140: 2008-06-30 | B140: 251.68 | C140: 323.66 | D140: 185.16 | E140: 107.69
A141: 2008-09-30 | B141: 252.42 | C141: 318.51 | D141: 185.95 | E141: 107.09
A142: 2008-12-31 | B142: 243.83 | C142: 308.68 | D142: 183.12 | E142: 107.79
A143: 2009-03-31 | B143: 234.74 | C143: 300.43 | D143: 183.77 | E143: 107.59
A144: 2009-06-30 | B144: 231.3 | C144: 299.09 | D144: 183.57 | E144: 106.49
A145: 2009-09-30 | B145: 235.23 | C145: 296.37 | D145: 183.85 | E145: 106.49
A146: 2009-12-31 | B146: 235.97 | C146: 295.17 | D146: 182.65 | E146: 106.99
A147: 2010-03-31 | B147: 237.69 | C147: 291.48 | D147: 179.9 | E147: 105.99
A148: 2010-06-30 | B148: 242.6 | C148: 296.22 | D148: 180.81 | E148: 107.19
A149: 2010-09-30 | B149: 249.47 | C149: 291.31 | D149: 181.35 | E149: 107.99
A150: 2010-12-31 | B150: 252.42 | C150: 291.01 | D150: 181.17 | E150: 108.59
A151: 2011-03-31 | B151: 253.89 | C151: 281.1 | D151: 180.99 | E151: 109.29
A152: 2011-06-30 | B152: 259.05 | C152: 277.73 | D152: 182.98 | E152: 109.69
A153: 2011-09-30 | B153: 264.21 | C153: 267.82 | D153: 182.98 | E153: 110.89
A154: 2011-12-31 | B154: 261.75 | C154: 253.92 | D154: 181.71 | E154: 111.09
A155: 2012-03-31 | B155: 258.31 | C155: 241.26 | D155: 180.63 | E155: 111.99
A156: 2012-06-30 | B156: 258.56 | C156: 233.42 | D156: 179.18 | E156: 113.49
A157: 2012-09-30 | B157: 260.28 | C157: 224.7 | D157: 176.11 | E157: 113.89
A158: 2012-12-31 | B158: 256.35 | C158: 221.54 | D158: 172.31 | E158: 114.89
A159: 2013-03-31 | B159: 253.4 | C159: 210.31 | D159: 169.78 | E159: 115.79
A160: 2013-06-30 | B160: 252.91 | C160: 208.64 | D160: 168.69 | E160: 117.19
A161: 2013-09-30 | B161: 255.12 | C161: 210.28 | D161: 166.16 | E161: 118.19
A162: 2013-12-31 | B162: 252.42 | C162: 207.59 | D162: 163.09 | E162: 117.69
A163: 2014-03-31 | B163: 249.47 | C163: 206.95 | D163: 161.46 | E163: 118.59
A164: 2014-06-30 | B164: 249.97 | C164: 210.4 | D164: 160.38 | E164: 120.09
A165: 2014-09-30 | B165: 251.68 | C165: 210.87 | D165: 159.65 | E165: 121.89
A166: 2014-12-31 | B166: 246.53 | C166: 211.25 | D166: 157.12 | E166: 122.79
A167: 2015-03-31 | B167: 244.32 | C167: 210.17 | D167: 155.68 | E167: 124.49
A168: 2015-06-30 | B168: 244.56 | C168: 218.85 | D168: 155.68 | E168: 125.39
A169: 2015-09-30 | B169: 248.62 | C169: 220.32 | D169: 156.04 | E169: 127.19
A170: 2015-12-31

Sheet Graph hyper 11
A5: Parts de marché mondial
A6: BACI, WTFC
B8: haut de gamme
B9: 2000 | C9: 2014
A10: Espagne | B10: 1.53 | C10: 1.77
A11: Royaume-Uni | B11: 5.86 | C11: 4.2
A12: Italie | B12: 4.05 | C12: 4.22
A13: France | B13: 5.4 | C13: 4.65
A14: Japon | B14: 12.2 | C14: 5.73
A15: Chine | B15: 2.25 | C15: 7.13
A16: États-unis | B16: 17.32 | C16: 11.05
A17: Allemagne | B17: 11.26 | C17: 14.24
